Workbook

Sheet Sheet1
B1: Examination Room and Row-wise Seating Arrangement
B2: Room No | C2: Row No-1 | D2: Row No-2 | E2: Row No-3 | F2: Row No-4
E14: First Fill Roll Number Series as requirement then select Roll Number Series :
B15: Serial No | C15: Roll Number | D15: Roll No Series-1 | E15: Roll No Series-2 | F15: Roll No Series-3
B16: 1 | C16: 101 | D16: 101 | E16: 1001 | F16: 2001
B17: 2 | C17: 1001 | D17: 102 | E17: 1002 | F17: 2002
B18: 3 | C18: 2001 | D18: 103 | E18: 1003 | F18: 2003
B19: 4 | C19: 102 | D19: 104 | E19: 1004 | F19: 2004
B20: 5 | C20: 1002 | D20: 105 | E20: 1005 | F20: 2005
B21: 6 | C21: 2002 | D21: 106 | E21: 1006 | F21: 2006
B22: 7 | C22: 103 | D22: 107 | E22: 1007 | F22: 2007
B23: 8 | C23: 1003 | D23: 108 | E23: 1008 | F23: 2008
B24: 9 | C24: 2003 | D24: 109 | E24: 1009 | F24: 2009
B25: 10 | C25: 104 | D25: 110 | E25: 1010 | F25: 2010
B26: 11 | C26: 1004 | D26: 111 | E26: 1011 | F26: 2011
B27: 12 | C27: 2004 | D27: 112 | E27: 1012 | F27: 2012
B28: 13 | C28: 105 | D28: 113 | E28: 1013 | F28: 2013
B29: 14 | C29: 1005 | D29: 114 | E29: 1014 | F29: 2014
B30: 15 | C30: 2005 | D30: 115 | E30: 1015 | F30: 2015
B31: 16 | C31: 106 | D31: 116 | E31: 1016 | F31: 2016
B32: 17 | C32: 1006 | D32: 117 | E32: 1017 | F32: 2017
B33: 18 | C33: 2006 | D33: 118 | E33: 1018 | F33: 2018
B34: 19 | C34: 107 | D34: 119 | E34: 1019 | F34: 2019
B35: 20 | C35: 1007 | D35: 120 | E35: 1020 | F35: 2020
B36: 21 | C36: 2007 | D36: 121 | E36: 1021 | F36: 2021
B37: 22 | C37: 108 | D37: 122 | E37: 1022 | F37: 2022
B38: 23 | C38: 1008 | D38: 123 | E38: 1023 | F38: 2023
B39: 24 | C39: 2008 | D39: 124 | E39: 1024 | F39: 2024
B40: 25 | C40: 109 | D40: 125 | E40: 1025 | F40: 2025
B41: 26 | C41: 1009 | D41: 126 | E41: 1026 | F41: 2026
B42: 27 | C42: 2009 | D42: 127 | E42: 1027 | F42: 2027
B43: 28 | C43: 110 | D43: 128 | E43: 1028 | F43: 2028
B44: 29 | C44: 1010 | D44: 129 | E44: 1029 | F44: 2029
B45: 30 | C45: 2010 | D45: 130 | E45: 1030 | F45: 2030
B46: 31 | C46: 111 | D46: 131 | E46: 1031 | F46: 2031
B47: 32 | C47: 1011 | D47: 132 | E47: 1032 | F47: 2032
B48: 33 | C48: 2011 | D48: 133 | E48: 1033 | F48: 2033
B49: 34 | C49: 112 | D49: 134 | E49: 1034 | F49: 2034
B50: 35 | C50: 1012 | D50: 135 | E50: 1035 | F50: 2035
B51: 36 | C51: 2012 | D51: 136 | E51: 1036 | F51: 2036
B52: 37 | C52: 113 | D52: 137 | E52: 1037 | F52: 2037
B53: 38 | C53: 1013 | D53: 138 | E53: 1038 | F53: 2038
B54: 39 | C54: 2013 | D54: 139 | E54: 1039 | F54: 2039
B55: 40 | C55: 114 | D55: 140 | E55: 1040 | F55: 2040
B56: 41 | C56: 1014 | D56: 141 | E56: 1041 | F56: 2041
B57: 42 | C57: 2014 | D57: 142 | E57: 1042 | F57: 2042
B58: 43 | C58: 115 | D58: 143 | E58: 1043 | F58: 2043
B59: 44 | C59: 1015 | D59: 144 | E59: 1044 | F59: 2044
B60: 45 | C60: 2015 | D60: 145 | E60: 1045 | F60: 2045
B61: 46 | C61: 116 | D61: 146 | E61: 1046 | F61: 2046
B62: 47 | C62: 1016 | D62: 147 | E62: 1047 | F62: 2047
B63: 48 | C63: 2016 | D63: 148 | E63: 1048 | F63: 2048
B64: 49 | C64: 117 | D64: 149 | E64: 1049 | F64: 2049
B65: 50 | C65: 1017 | D65: 150 | E65: 1050 | F65: 2050
B66: 51 | C66: 2017 | D66: 151 | E66: 1051 | F66: 2051
B67: 52 | C67: 118 | D67: 152 | E67: 1052 | F67: 2052
B68: 53 | C68: 1018 | D68: 153 | E68: 1053 | F68: 2053
B69: 54 | C69: 2018 | D69: 154 | E69: 1054 | F69: 2054
B70: 55 | C70: 119 | D70: 155 | E70: 1055 | F70: 2055
B71: 56 | C71: 1019 | D71: 156 | E71: 1056 | F71: 2056
B72: 57 | C72: 2019 | D72: 157 | E72: 1057 | F72: 2057
B73: 58 | C73: 120 | D73: 158 | E73: 1058 | F73: 2058
B74: 59 | C74: 1020 | D74: 159 | E74: 1059 | F74: 2059
B75: 60 | C75: 2020 | D75: 160 | E75: 1060 | F75: 2060
B76: 61 | C76: 121 | D76: 161 | E76: 1061 | F76: 2061
B77: 62 | C77: 1021 | D77: 162 | E77: 1062 | F77: 2062
B78: 63 | C78: 2021 | D78: 163 | E78: 1063 | F78: 2063
B79: 64 | C79: 122 | D79: 164 | E79: 1064 | F79: 2064
B80: 65 | C80: 1022 | D80: 165 | E80: 1065 | F80: 2065
B81: 66 | C81: 2022 | D81: 166 | E81: 1066 | F81: 2066
B82: 67 | C82: 123 | D82: 167 | E82: 1067 | F82: 2067
B83: 68 | C83: 1023 | D83: 168 | E83: 1068 | F83: 2068
B84: 69 | C84: 2023 | D84: 169 | E84: 1069 | F84: 2069
B85: 70 | C85: 124 | D85: 170 | E85: 1070 | F85: 2070
B86: 71 | C86: 1024 | D86: 171 | E86: 1071 | F86: 2071
B87: 72 | C87: 2024 | D87: 172 | E87: 1072 | F87: 2072
B88: 73 | C88: 125 | D88: 173 | E88: 1073 | F88: 2073
B89: 74 | C89: 1025 | D89: 174 | E89: 1074 | F89: 2074
B90: 75 | C90: 2025 | D90: 175 | E90: 1075 | F90: 2075
B91: 76 | C91: 126 | D91: 176 | E91: 1076 | F91: 2076
B92: 77 | C92: 1026 | D92: 177 | E92: 1077 | F92: 2077
B93: 78 | C93: 2026 | D93: 178 | E93: 1078 | F93: 2078
B94: 79 | C94: 127 | D94: 179 | E94: 1079 | F94: 2079
B95: 80 | C95: 1027 | D95: 180 | E95: 1080 | F95: 2080
B96: 81 | C96: 2027 | D96: 181 | E96: 1081 | F96: 2081
B97: 82 | C97: 128 | D97: 182 | E97: 1082 | F97: 2082
B98: 83 | C98: 1028 | D98: 183 | E98: 1083 | F98: 2083
B99: 84 | C99: 2028 | D99: 184 | E99: 1084 | F99: 2084
B100: 85 | C100: 129 | D100: 185 | E100: 1085 | F100: 2085
B101: 86 | C101: 1029 | D101: 186 | E101: 1086 | F101: 2086
B102: 87 | C102: 2029 | D102: 187 | E102: 1087 | F102: 2087
B103: 88 | C103: 130 | D103: 188 | E103: 1088 | F103: 2088
B104: 89 | C104: 1030 | D104: 189 | E104: 1089 | F104: 2089
B105: 90 | C105: 2030 | D105: 190 | E105: 1090 | F105: 2090
B106: 91 | C106: 131 | D106: 191 | E106: 1091 | F106: 2091
B107: 92 | C107: 1031 | D107: 192 | E107: 1092 | F107: 2092
B108: 93 | C108: 2031 | D108: 193 | E108: 1093 | F108: 2093
B109: 94 | C109: 132 | D109: 194 | E109: 1094 | F109: 2094
B110: 95 | C110: 1032 | D110: 195 | E110: 1095 | F110: 2095
B111: 96 | C111: 2032 | D111: 196 | E111: 1096 | F111: 2096
B112: 97 | C112: 133 | D112: 197 | E112: 1097 | F112: 2097
B113: 98 | C113: 1033 | D113: 198 | E113: 1098 | F113: 2098
B114: 99 | C114: 2033 | D114: 199 | E114: 1099 | F114: 2099
B115: 100 | C115: 134 | D115: 200 | E115: 1100 | F115: 2100
B116: 101 | C116: 1034 | D116: 201 | E116: 1101 | F116: 2101
B117: 102 | C117: 2034 | D117: 202 | E117: 1102 | F117: 2102
B118: 103 | C118: 135 | D118: 203 | E118: 1103 | F118: 2103
B119: 104 | C119: 1035 | D119: 204 | E119: 1104 | F119: 2104
B120: 105 | C120: 2035 | D120: 205 | E120: 1105 | F120: 2105
B121: 106 | C121: 136 | D121: 206 | E121: 1106 | F121: 2106
B122: 107 | C122: 1036 | D122: 207 | E122: 1107 | F122: 2107
B123: 108 | C123: 2036 | D123: 208 | E123: 1108 | F123: 2108
B124: 109 | C124: 137 | D124: 209 | E124: 1109 | F124: 2109
B125: 110 | C125: 1037 | D125: 210 | E125: 1110 | F125: 2110
B126: 111 | C126: 2037 | D126: 211 | E126: 1111 | F126: 2111
B127: 112 | C127: 138 | D127: 212 | E127: 1112 | F127: 2112
B128: 113 | C128: 1038 | D128: 213 | E128: 1113 | F128: 2113
B129: 114 | C129: 2038 | D129: 214 | E129: 1114 | F129: 2114
B130: 115 | C130: 139 | D130: 215 | E130: 1115 | F130: 2115
B131: 116 | C131: 1039 | D131: 216 | E131: 1116 | F131: 2116
B132: 117 | C132: 2039 | D132: 217 | E132: 1117 | F132: 2117
B133: 118 | C133: 140 | D133: 218 | E133: 1118 | F133: 2118
B134: 119 | C134: 1040 | D134: 219 | E134: 1119 | F134: 2119
B135: 120 | C135: 2040 | D135: 220 | E135: 1120 | F135: 2120
B136: 121 | C136: 141 | D136: 221 | E136: 1121 | F136: 2121
B137: 122 | C137: 1041 | D137: 222 | E137: 1122 | F137: 2122
B138: 123 | C138: 2041 | D138: 223 | E138: 1123 | F138: 2123
B139: 124 | C139: 142 | D139: 224 | E139: 1124 | F139: 2124
B140: 125 | C140: 1042 | D140: 225 | E140: 1125 | F140: 2125
B141: 126 | C141: 2042 | D141: 226 | E141: 1126 | F141: 2126
B142: 127 | C142: 143 | D142: 227 | E142: 1127 | F142: 2127
B143: 128 | C143: 1043 | D143: 228 | E143: 1128 | F143: 2128
B144: 129 | C144: 2043 | D144: 229 | E144: 1129 | F144: 2129
B145: 130 | C145: 144 | D145: 230 | E145: 1130 | F145: 2130
B146: 131 | C146: 1044 | D146: 231 | E146: 1131 | F146: 2131
B147: 132 | C147: 2044 | D147: 232 | E147: 1132 | F147: 2132
B148: 133 | C148: 145 | D148: 233 | E148: 1133 | F148: 2133
B149: 134 | C149: 1045 | D149: 234 | E149: 1134 | F149: 2134
B150: 135 | C150: 2045 | D150: 235 | E150: 1135 | F150: 2135
B151: 136 | C151: 146 | D151: 236 | E151: 1136 | F151: 2136
B152: 137 | C152: 1046 | D152: 237 | E152: 1137 | F152: 2137
B153: 138 | C153: 2046 | D153: 238 | E153: 1138 | F153: 2138
B154: 139 | C154: 147 | D154: 239 | E154: 1139 | F154: 2139
B155: 140 | C155: 1047 | D155: 240 | E155: 1140 | F155: 2140
B156: 141 | C156: 2047 | D156: 241 | E156: 1141 | F156: 2141
B157: 142 | C157: 148 | D157: 242 | E157: 1142 | F157: 2142
B158: 143 | C158: 1048 | D158: 243 | E158: 1143 | F158: 2143
B159: 144 | C159: 2048 | D159: 244 | E159: 1144 | F159: 2144
B160: 145 | C160: 149 | D160: 245 | E160: 1145 | F160: 2145
B161: 146 | C161: 1049 | D161: 246 | E161: 1146 | F161: 2146
B162: 147 | C162: 2049 | D162: 247 | E162: 1147 | F162: 2147
B163: 148 | C163: 150 | D163: 248 | E163: 1148 | F163: 2148
B164: 149 | C164: 1050 | D164: 249 | E164: 1149 | F164: 2149
B165: 150 | C165: 2050 | D165: 250 | E165: 1150 | F165: 2150
B166: 151 | C166: 151 | D166: 251 | E166: 1151 | F166: 2151
B167: 152 | C167: 1051 | D167: 252 | E167: 1152 | F167: 2152
B168: 153 | C168: 2051 | D168: 253 | E168: 1153 | F168: 2153
B169: 154 | C169: 152 | D169: 254 | E169: 1154 | F169: 2154
B170: 155 | C170: 1052 | D170: 255 | E170: 1155 | F170: 2155
B171: 156 | C171: 2052 | D171: 256 | E171: 1156 | F171: 2156
B172: 157 | C172: 153 | D172: 257 | E172: 1157 | F172: 2157
B173: 158 | C173: 1053 | D173: 258 | E173: 1158 | F173: 2158
B174: 159 | C174: 2053 | D174: 259 | E174: 1159 | F174: 2159
B175: 160 | C175: 154 | D175: 260 | E175: 1160 | F175: 2160
B176: 161 | C176: 1054 | D176: 261 | E176: 1161 | F176: 2161
B177: 162 | C177: 2054 | D177: 262 | E177: 1162 | F177: 2162
B178: 163 | C178: 155 | D178: 263 | E178: 1163 | F178: 2163
B179: 164 | C179: 1055 | D179: 264 | E179: 1164 | F179: 2164
B180: 165 | C180: 2055 | D180: 265 | E180: 1165 | F180: 2165
B181: 166 | C181: 156 | D181: 266 | E181: 1166 | F181: 2166
B182: 167 | C182: 1056 | D182: 267 | E182: 1167 | F182: 2167
B183: 168 | C183: 2056 | D183: 268 | E183: 1168 | F183: 2168
B184: 169 | C184: 157 | D184: 269 | E184: 1169 | F184: 2169
B185: 170 | C185: 1057 | D185: 270 | E185: 1170 | F185: 2170
B186: 171 | C186: 2057 | D186: 271 | E186: 1171 | F186: 2171
B187: 172 | C187: 158 | D187: 272 | E187: 1172 | F187: 2172
B188: 173 | C188: 1058 | D188: 273 | E188: 1173 | F188: 2173
B189: 174 | C189: 2058 | D189: 274 | E189: 1174 | F189: 2174
B190: 175 | C190: 159 | D190: 275 | E190: 1175 | F190: 2175
B191: 176 | C191: 1059 | D191: 276 | E191: 1176 | F191: 2176
B192: 177 | C192: 2059 | D192: 277 | E192: 1177 | F192: 2177
B193: 178 | C193: 160 | D193: 278 | E193: 1178 | F193: 2178
B194: 179 | C194: 1060 | D194: 279 | E194: 1179 | F194: 2179
B195: 180 | C195: 2060 | D195: 280 | E195: 1180 | F195: 2180
B196: 181 | C196: 161 | D196: 281 | E196: 1181 | F196: 2181
B197: 182 | C197: 1061 | D197: 282 | E197: 1182 | F197: 2182
B198: 183 | C198: 2061 | D198: 283 | E198: 1183 | F198: 2183
B199: 184 | C199: 162 | D199: 284 | E199: 1184 | F199: 2184
B200: 185 | C200: 1062 | D200: 285 | E200: 1185 | F200: 2185
B201: 186 | C201: 2062 | D201: 286 | E201: 1186 | F201: 2186
B202: 187 | C202: 163 | D202: 287 | E202: 1187 | F202: 2187
B203: 188 | C203: 1063 | D203: 288 | E203: 1188 | F203: 2188
B204: 189 | C204: 2063 | D204: 289 | E204: 1189 | F204: 2189
B205: 190 | C205: 164 | D205: 290 | E205: 1190 | F205: 2190
B206: 191 | C206: 1064 | D206: 291 | E206: 1191 | F206: 2191
B207: 192 | C207: 2064 | D207: 292 | E207: 1192 | F207: 2192
B208: 193 | C208: 165 | D208: 293 | E208: 1193 | F208: 2193
B209: 194 | C209: 1065 | D209: 294 | E209: 1194 | F209: 2194
B210: 195 | C210: 2065 | D210: 295 | E210: 1195 | F210: 2195
B211: 196 | C211: 166 | D211: 296 | E211: 1196 | F211: 2196
... 2204 more rows

Sheet Sheet2
B1: =$J$1 -> Half Yearly Examination 2024 | J1: Half Yearly Examination 2024 | K1: 1 | L1: 6 | M1: 6 | N1: 6 | O1: 6
B2: परीक्षा केंद्र नाम एवं परीक्षा केंद्र क्रमांक | J2: Govt Sr Sc School Malutana | K2: 2 | L2: 6 | M2: 6 | N2: 5 | O2: 7
B3: =$J$2&" ("&$J$3&")" -> Govt Sr Sc School Malutana (216405) | J3: 216405 | K3: 3 | L3: 5 | M3: 5 | N3: 5 | O3: 8
B4: परीक्षा कक्ष / हॉल क्रमांक | J4: XYZ | K4: 4 | L4: 10 | M4: 11 | N4: 12 | O4: 9
B5: =$K$1 -> 01 | J5: Principal | K5: 5 | L5: 14 | M5: 15 | N5: 20 | O5: 13
B6: परीक्षा दिनांक (दिवस) ... से ... तक | J6: XYZ | K6: 6 | L6: 21 | M6: 20 | N6: 10 | O6: 20
B7: =TEXT($J$8,"DD-MM-YYYY") -> 14-12-2024 | C7: =IF(B7="","",TEXT(B7,"DDDD")) -> Saturday | D7: =TEXT($J$9,"DD-MM-YYYY") -> 24-12-2024 | E7: =IF(D7="","",TEXT(D7,"DDDD")) -> Tuesday | J7: Lecturer | K7: 7 | L7: 10 | M7: 10 | N7: 10 | O7: 10
B8: परीक्षार्थी रोल नंबर ... से ... तक | J8: 2024-12-14 | K8: 8 | L8: 6 | M8: 0 | N8: 0 | O8: 11
B9: =IF(B14>0,B15,IF(C14>0,C15,IF(D14>0,D15,IF(E14>0,E15,0)))) -> 101 | D9: =IF(E14>0,LOOKUP(2,1/(E15:E34<>""),E15:E34),IF(D14>0,LOOKUP(2,1/(D15:D34<>""),D15:D34),IF(C14>0,LOOKUP(2,1/(C15:C34<>""),C15:C34),IF(B14>0,LOOKUP(2,1/(B15:B34<>""),B15:B34),0)))) -> 2008 | J9: 2024-12-24 | K9: 9 | L9: 6 | M9: 5 | N9: 5 | O9: 5
B10: कुल सम्मिलित परीक्षार्थी | J10: II | K10: 10 | L10: 1 | M10: 1 | N10: 2 | O10: 9
B11: =COUNTIF(B15:E34,">0") -> 24
B12: परीक्षार्थी बैठक व्यवस्था
B13: पंक्ति 1 | C13: पंक्ति 2 | D13: पंक्ति 3 | E13: पंक्ति 4
B14: =L1 -> 6 | C14: =M1 -> 6 | D14: 6 | E14: 6
B15: =IF(ROW(B1)-1>=$B$14,"",OFFSET(INDIRECT(MID(CELL("filename",Sheet1!$A$15),FIND("]",CELL("filename",Sheet1!$A$15))+1,31)&"!"&ADDRESS(16,3,4)),ROW(B1)-1,0)) -> 101 | C15: =IF(ROW(B1)-1>=$C$14,"",OFFSET(INDIRECT(MID(CELL("filename",Sheet1!$A$15),FIND("]",CELL("filename",Sheet1!$A$15))+1,31)&"!"&ADDRESS(16,3,4)),ROW(B1)-1+SUM($B$14:$B$14),0)) -> 103 | D15: =IF(ROW(B1)-1>=$D$14,"",OFFSET(INDIRECT(MID(CELL("filename",Sheet1!$A$15),FIND("]",CELL("filename",Sheet1!$A$15))+1,31)&"!"&ADDRESS(16,3,4)),ROW(B1)-1+SUM($B$14:$C$14),0)) -> 105 | E15: =IF(ROW(B1)-1>=$E$14,"",OFFSET(INDIRECT(MID(CELL("filename",Sheet1!$A$15),FIND("]",CELL("filename",Sheet1!$A$15))+1,31)&"!"&ADDRESS(16,3,4)),ROW(B1)-1+SUM($B$14:$D$14),0)) -> 107 | F15: =IF(SUM(B15:E15)>0,1,"") -> 1
B16: =IF(ROW(B2)-1>=$B$14,"",OFFSET(INDIRECT(MID(CELL("filename",Sheet1!$A$15),FIND("]",CELL("filename",Sheet1!$A$15))+1,31)&"!"&ADDRESS(16,3,4)),ROW(B2)-1,0)) -> 1001 | C16: =IF(ROW(B2)-1>=$C$14,"",OFFSET(INDIRECT(MID(CELL("filename",Sheet1!$A$15),FIND("]",CELL("filename",Sheet1!$A$15))+1,31)&"!"&ADDRESS(16,3,4)),ROW(B2)-1+SUM($B$14:$B$14),0)) -> 1003 | D16: =IF(ROW(B2)-1>=$D$14,"",OFFSET(INDIRECT(MID(CELL("filename",Sheet1!$A$15),FIND("]",CELL("filename",Sheet1!$A$15))+1,31)&"!"&ADDRESS(16,3,4)),ROW(B2)-1+SUM($B$14:$C$14),0)) -> 1005 | E16: =IF(ROW(B2)-1>=$E$14,"",OFFSET(INDIRECT(MID(CELL("filename",Sheet1!$A$15),FIND("]",CELL("filename",Sheet1!$A$15))+1,31)&"!"&ADDRESS(16,3,4)),ROW(B2)-1+SUM($B$14:$D$14),0)) -> 1007 | F16: =IF(SUM(B16:E16)>0,1,"") -> 1
B17: =IF(ROW(B3)-1>=$B$14,"",OFFSET(INDIRECT(MID(CELL("filename",Sheet1!$A$15),FIND("]",CELL("filename",Sheet1!$A$15))+1,31)&"!"&ADDRESS(16,3,4)),ROW(B3)-1,0)) -> 2001 | C17: =IF(ROW(B3)-1>=$C$14,"",OFFSET(INDIRECT(MID(CELL("filename",Sheet1!$A$15),FIND("]",CELL("filename",Sheet1!$A$15))+1,31)&"!"&ADDRESS(16,3,4)),ROW(B3)-1+SUM($B$14:$B$14),0)) -> 2003 | D17: =IF(ROW(B3)-1>=$D$14,"",OFFSET(INDIRECT(MID(CELL("filename",Sheet1!$A$15),FIND("]",CELL("filename",Sheet1!$A$15))+1,31)&"!"&ADDRESS(16,3,4)),ROW(B3)-1+SUM($B$14:$C$14),0)) -> 2005 | E17: =IF(ROW(B3)-1>=$E$14,"",OFFSET(INDIRECT(MID(CELL("filename",Sheet1!$A$15),FIND("]",CELL("filename",Sheet1!$A$15))+1,31)&"!"&ADDRESS(16,3,4)),ROW(B3)-1+SUM($B$14:$D$14),0)) -> 2007 | F17: 1
B18: =IF(ROW(B4)-1>=$B$14,"",OFFSET(INDIRECT(MID(CELL("filename",Sheet1!$A$15),FIND("]",CELL("filename",Sheet1!$A$15))+1,31)&"!"&ADDRESS(16,3,4)),ROW(B4)-1,0)) -> 102 | C18: =IF(ROW(B4)-1>=$C$14,"",OFFSET(INDIRECT(MID(CELL("filename",Sheet1!$A$15),FIND("]",CELL("filename",Sheet1!$A$15))+1,31)&"!"&ADDRESS(16,3,4)),ROW(B4)-1+SUM($B$14:$B$14),0)) -> 104 | D18: =IF(ROW(B4)-1>=$D$14,"",OFFSET(INDIRECT(MID(CELL("filename",Sheet1!$A$15),FIND("]",CELL("filename",Sheet1!$A$15))+1,31)&"!"&ADDRESS(16,3,4)),ROW(B4)-1+SUM($B$14:$C$14),0)) -> 106 | E18: =IF(ROW(B4)-1>=$E$14,"",OFFSET(INDIRECT(MID(CELL("filename",Sheet1!$A$15),FIND("]",CELL("filename",Sheet1!$A$15))+1,31)&"!"&ADDRESS(16,3,4)),ROW(B4)-1+SUM($B$14:$D$14),0)) -> 108 | F18: 1
B19: =IF(ROW(B5)-1>=$B$14,"",OFFSET(INDIRECT(MID(CELL("filename",Sheet1!$A$15),FIND("]",CELL("filename",Sheet1!$A$15))+1,31)&"!"&ADDRESS(16,3,4)),ROW(B5)-1,0)) -> 1002 | C19: =IF(ROW(B5)-1>=$C$14,"",OFFSET(INDIRECT(MID(CELL("filename",Sheet1!$A$15),FIND("]",CELL("filename",Sheet1!$A$15))+1,31)&"!"&ADDRESS(16,3,4)),ROW(B5)-1+SUM($B$14:$B$14),0)) -> 1004 | D19: =IF(ROW(B5)-1>=$D$14,"",OFFSET(INDIRECT(MID(CELL("filename",Sheet1!$A$15),FIND("]",CELL("filename",Sheet1!$A$15))+1,31)&"!"&ADDRESS(16,3,4)),ROW(B5)-1+SUM($B$14:$C$14),0)) -> 1006 | E19: =IF(ROW(B5)-1>=$E$14,"",OFFSET(INDIRECT(MID(CELL("filename",Sheet1!$A$15),FIND("]",CELL("filename",Sheet1!$A$15))+1,31)&"!"&ADDRESS(16,3,4)),ROW(B5)-1+SUM($B$14:$D$14),0)) -> 1008 | F19: 1
B20: =IF(ROW(B6)-1>=$B$14,"",OFFSET(INDIRECT(MID(CELL("filename",Sheet1!$A$15),FIND("]",CELL("filename",Sheet1!$A$15))+1,31)&"!"&ADDRESS(16,3,4)),ROW(B6)-1,0)) -> 2002 | C20: =IF(ROW(B6)-1>=$C$14,"",OFFSET(INDIRECT(MID(CELL("filename",Sheet1!$A$15),FIND("]",CELL("filename",Sheet1!$A$15))+1,31)&"!"&ADDRESS(16,3,4)),ROW(B6)-1+SUM($B$14:$B$14),0)) -> 2004 | D20: =IF(ROW(B6)-1>=$D$14,"",OFFSET(INDIRECT(MID(CELL("filename",Sheet1!$A$15),FIND("]",CELL("filename",Sheet1!$A$15))+1,31)&"!"&ADDRESS(16,3,4)),ROW(B6)-1+SUM($B$14:$C$14),0)) -> 2006 | E20: =IF(ROW(B6)-1>=$E$14,"",OFFSET(INDIRECT(MID(CELL("filename",Sheet1!$A$15),FIND("]",CELL("filename",Sheet1!$A$15))+1,31)&"!"&ADDRESS(16,3,4)),ROW(B6)-1+SUM($B$14:$D$14),0)) -> 2008 | F20: 1
B21: =IF(ROW(B7)-1>=$B$14,"",OFFSET(INDIRECT(MID(CELL("filename",Sheet1!$A$15),FIND("]",CELL("filename",Sheet1!$A$15))+1,31)&"!"&ADDRESS(16,3,4)),ROW(B7)-1,0)) ->  | C21: =IF(ROW(B7)-1>=$C$14,"",OFFSET(INDIRECT(MID(CELL("filename",Sheet1!$A$15),FIND("]",CELL("filename",Sheet1!$A$15))+1,31)&"!"&ADDRESS(16,3,4)),ROW(B7)-1+SUM($B$14:$B$14),0)) ->  | D21: =IF(ROW(B7)-1>=$D$14,"",OFFSET(INDIRECT(MID(CELL("filename",Sheet1!$A$15),FIND("]",CELL("filename",Sheet1!$A$15))+1,31)&"!"&ADDRESS(16,3,4)),ROW(B7)-1+SUM($B$14:$C$14),0)) ->  | E21: =IF(ROW(B7)-1>=$E$14,"",OFFSET(INDIRECT(MID(CELL("filename",Sheet1!$A$15),FIND("]",CELL("filename",Sheet1!$A$15))+1,31)&"!"&ADDRESS(16,3,4)),ROW(B7)-1+SUM($B$14:$D$14),0)) -> 
B22: =IF(ROW(B8)-1>=$B$14,"",OFFSET(INDIRECT(MID(CELL("filename",Sheet1!$A$15),FIND("]",CELL("filename",Sheet1!$A$15))+1,31)&"!"&ADDRESS(16,3,4)),ROW(B8)-1,0)) ->  | C22: =IF(ROW(B8)-1>=$C$14,"",OFFSET(INDIRECT(MID(CELL("filename",Sheet1!$A$15),FIND("]",CELL("filename",Sheet1!$A$15))+1,31)&"!"&ADDRESS(16,3,4)),ROW(B8)-1+SUM($B$14:$B$14),0)) ->  | D22: =IF(ROW(B8)-1>=$D$14,"",OFFSET(INDIRECT(MID(CELL("filename",Sheet1!$A$15),FIND("]",CELL("filename",Sheet1!$A$15))+1,31)&"!"&ADDRESS(16,3,4)),ROW(B8)-1+SUM($B$14:$C$14),0)) ->  | E22: =IF(ROW(B8)-1>=$E$14,"",OFFSET(INDIRECT(MID(CELL("filename",Sheet1!$A$15),FIND("]",CELL("filename",Sheet1!$A$15))+1,31)&"!"&ADDRESS(16,3,4)),ROW(B8)-1+SUM($B$14:$D$14),0)) -> 
B23: =IF(ROW(B9)-1>=$B$14,"",OFFSET(INDIRECT(MID(CELL("filename",Sheet1!$A$15),FIND("]",CELL("filename",Sheet1!$A$15))+1,31)&"!"&ADDRESS(16,3,4)),ROW(B9)-1,0)) ->  | C23: =IF(ROW(B9)-1>=$C$14,"",OFFSET(INDIRECT(MID(CELL("filename",Sheet1!$A$15),FIND("]",CELL("filename",Sheet1!$A$15))+1,31)&"!"&ADDRESS(16,3,4)),ROW(B9)-1+SUM($B$14:$B$14),0)) ->  | D23: =IF(ROW(B9)-1>=$D$14,"",OFFSET(INDIRECT(MID(CELL("filename",Sheet1!$A$15),FIND("]",CELL("filename",Sheet1!$A$15))+1,31)&"!"&ADDRESS(16,3,4)),ROW(B9)-1+SUM($B$14:$C$14),0)) ->  | E23: =IF(ROW(B9)-1>=$E$14,"",OFFSET(INDIRECT(MID(CELL("filename",Sheet1!$A$15),FIND("]",CELL("filename",Sheet1!$A$15))+1,31)&"!"&ADDRESS(16,3,4)),ROW(B9)-1+SUM($B$14:$D$14),0)) -> 
B24: =IF(ROW(B10)-1>=$B$14,"",OFFSET(INDIRECT(MID(CELL("filename",Sheet1!$A$15),FIND("]",CELL("filename",Sheet1!$A$15))+1,31)&"!"&ADDRESS(16,3,4)),ROW(B10)-1,0)) ->  | C24: =IF(ROW(B10)-1>=$C$14,"",OFFSET(INDIRECT(MID(CELL("filename",Sheet1!$A$15),FIND("]",CELL("filename",Sheet1!$A$15))+1,31)&"!"&ADDRESS(16,3,4)),ROW(B10)-1+SUM($B$14:$B$14),0)) ->  | D24: =IF(ROW(B10)-1>=$D$14,"",OFFSET(INDIRECT(MID(CELL("filename",Sheet1!$A$15),FIND("]",CELL("filename",Sheet1!$A$15))+1,31)&"!"&ADDRESS(16,3,4)),ROW(B10)-1+SUM($B$14:$C$14),0)) ->  | E24: =IF(ROW(B10)-1>=$E$14,"",OFFSET(INDIRECT(MID(CELL("filename",Sheet1!$A$15),FIND("]",CELL("filename",Sheet1!$A$15))+1,31)&"!"&ADDRESS(16,3,4)),ROW(B10)-1+SUM($B$14:$D$14),0)) -> 
B25: =IF(ROW(B11)-1>=$B$14,"",OFFSET(INDIRECT(MID(CELL("filename",Sheet1!$A$15),FIND("]",CELL("filename",Sheet1!$A$15))+1,31)&"!"&ADDRESS(16,3,4)),ROW(B11)-1,0)) ->  | C25: =IF(ROW(B11)-1>=$C$14,"",OFFSET(INDIRECT(MID(CELL("filename",Sheet1!$A$15),FIND("]",CELL("filename",Sheet1!$A$15))+1,31)&"!"&ADDRESS(16,3,4)),ROW(B11)-1+SUM($B$14:$B$14),0)) ->  | D25: =IF(ROW(B11)-1>=$D$14,"",OFFSET(INDIRECT(MID(CELL("filename",Sheet1!$A$15),FIND("]",CELL("filename",Sheet1!$A$15))+1,31)&"!"&ADDRESS(16,3,4)),ROW(B11)-1+SUM($B$14:$C$14),0)) ->  | E25: =IF(ROW(B11)-1>=$E$14,"",OFFSET(INDIRECT(MID(CELL("filename",Sheet1!$A$15),FIND("]",CELL("filename",Sheet1!$A$15))+1,31)&"!"&ADDRESS(16,3,4)),ROW(B11)-1+SUM($B$14:$D$14),0)) -> 
B26: =IF(ROW(B12)-1>=$B$14,"",OFFSET(INDIRECT(MID(CELL("filename",Sheet1!$A$15),FIND("]",CELL("filename",Sheet1!$A$15))+1,31)&"!"&ADDRESS(16,3,4)),ROW(B12)-1,0)) ->  | C26: =IF(ROW(B12)-1>=$C$14,"",OFFSET(INDIRECT(MID(CELL("filename",Sheet1!$A$15),FIND("]",CELL("filename",Sheet1!$A$15))+1,31)&"!"&ADDRESS(16,3,4)),ROW(B12)-1+SUM($B$14:$B$14),0)) ->  | D26: =IF(ROW(B12)-1>=$D$14,"",OFFSET(INDIRECT(MID(CELL("filename",Sheet1!$A$15),FIND("]",CELL("filename",Sheet1!$A$15))+1,31)&"!"&ADDRESS(16,3,4)),ROW(B12)-1+SUM($B$14:$C$14),0)) ->  | E26: =IF(ROW(B12)-1>=$E$14,"",OFFSET(INDIRECT(MID(CELL("filename",Sheet1!$A$15),FIND("]",CELL("filename",Sheet1!$A$15))+1,31)&"!"&ADDRESS(16,3,4)),ROW(B12)-1+SUM($B$14:$D$14),0)) -> 
B27: =IF(ROW(B13)-1>=$B$14,"",OFFSET(INDIRECT(MID(CELL("filename",Sheet1!$A$15),FIND("]",CELL("filename",Sheet1!$A$15))+1,31)&"!"&ADDRESS(16,3,4)),ROW(B13)-1,0)) ->  | C27: =IF(ROW(B13)-1>=$C$14,"",OFFSET(INDIRECT(MID(CELL("filename",Sheet1!$A$15),FIND("]",CELL("filename",Sheet1!$A$15))+1,31)&"!"&ADDRESS(16,3,4)),ROW(B13)-1+SUM($B$14:$B$14),0)) ->  | D27: =IF(ROW(B13)-1>=$D$14,"",OFFSET(INDIRECT(MID(CELL("filename",Sheet1!$A$15),FIND("]",CELL("filename",Sheet1!$A$15))+1,31)&"!"&ADDRESS(16,3,4)),ROW(B13)-1+SUM($B$14:$C$14),0)) ->  | E27: =IF(ROW(B13)-1>=$E$14,"",OFFSET(INDIRECT(MID(CELL("filename",Sheet1!$A$15),FIND("]",CELL("filename",Sheet1!$A$15))+1,31)&"!"&ADDRESS(16,3,4)),ROW(B13)-1+SUM($B$14:$D$14),0)) -> 
B28: =IF(ROW(B14)-1>=$B$14,"",OFFSET(INDIRECT(MID(CELL("filename",Sheet1!$A$15),FIND("]",CELL("filename",Sheet1!$A$15))+1,31)&"!"&ADDRESS(16,3,4)),ROW(B14)-1,0)) ->  | C28: =IF(ROW(B14)-1>=$C$14,"",OFFSET(INDIRECT(MID(CELL("filename",Sheet1!$A$15),FIND("]",CELL("filename",Sheet1!$A$15))+1,31)&"!"&ADDRESS(16,3,4)),ROW(B14)-1+SUM($B$14:$B$14),0)) ->  | D28: =IF(ROW(B14)-1>=$D$14,"",OFFSET(INDIRECT(MID(CELL("filename",Sheet1!$A$15),FIND("]",CELL("filename",Sheet1!$A$15))+1,31)&"!"&ADDRESS(16,3,4)),ROW(B14)-1+SUM($B$14:$C$14),0)) ->  | E28: =IF(ROW(B14)-1>=$E$14,"",OFFSET(INDIRECT(MID(CELL("filename",Sheet1!$A$15),FIND("]",CELL("filename",Sheet1!$A$15))+1,31)&"!"&ADDRESS(16,3,4)),ROW(B14)-1+SUM($B$14:$D$14),0)) -> 
B29: =IF(ROW(B15)-1>=$B$14,"",OFFSET(INDIRECT(MID(CELL("filename",Sheet1!$A$15),FIND("]",CELL("filename",Sheet1!$A$15))+1,31)&"!"&ADDRESS(16,3,4)),ROW(B15)-1,0)) ->  | C29: =IF(ROW(B15)-1>=$C$14,"",OFFSET(INDIRECT(MID(CELL("filename",Sheet1!$A$15),FIND("]",CELL("filename",Sheet1!$A$15))+1,31)&"!"&ADDRESS(16,3,4)),ROW(B15)-1+SUM($B$14:$B$14),0)) ->  | D29: =IF(ROW(B15)-1>=$D$14,"",OFFSET(INDIRECT(MID(CELL("filename",Sheet1!$A$15),FIND("]",CELL("filename",Sheet1!$A$15))+1,31)&"!"&ADDRESS(16,3,4)),ROW(B15)-1+SUM($B$14:$C$14),0)) ->  | E29: =IF(ROW(B15)-1>=$E$14,"",OFFSET(INDIRECT(MID(CELL("filename",Sheet1!$A$15),FIND("]",CELL("filename",Sheet1!$A$15))+1,31)&"!"&ADDRESS(16,3,4)),ROW(B15)-1+SUM($B$14:$D$14),0)) -> 
B30: =IF(ROW(B16)-1>=$B$14,"",OFFSET(INDIRECT(MID(CELL("filename",Sheet1!$A$15),FIND("]",CELL("filename",Sheet1!$A$15))+1,31)&"!"&ADDRESS(16,3,4)),ROW(B16)-1,0)) ->  | C30: =IF(ROW(B16)-1>=$C$14,"",OFFSET(INDIRECT(MID(CELL("filename",Sheet1!$A$15),FIND("]",CELL("filename",Sheet1!$A$15))+1,31)&"!"&ADDRESS(16,3,4)),ROW(B16)-1+SUM($B$14:$B$14),0)) ->  | D30: =IF(ROW(B16)-1>=$D$14,"",OFFSET(INDIRECT(MID(CELL("filename",Sheet1!$A$15),FIND("]",CELL("filename",Sheet1!$A$15))+1,31)&"!"&ADDRESS(16,3,4)),ROW(B16)-1+SUM($B$14:$C$14),0)) ->  | E30: =IF(ROW(B16)-1>=$E$14,"",OFFSET(INDIRECT(MID(CELL("filename",Sheet1!$A$15),FIND("]",CELL("filename",Sheet1!$A$15))+1,31)&"!"&ADDRESS(16,3,4)),ROW(B16)-1+SUM($B$14:$D$14),0)) -> 
B31: =IF(ROW(B17)-1>=$B$14,"",OFFSET(INDIRECT(MID(CELL("filename",Sheet1!$A$15),FIND("]",CELL("filename",Sheet1!$A$15))+1,31)&"!"&ADDRESS(16,3,4)),ROW(B17)-1,0)) ->  | C31: =IF(ROW(B17)-1>=$C$14,"",OFFSET(INDIRECT(MID(CELL("filename",Sheet1!$A$15),FIND("]",CELL("filename",Sheet1!$A$15))+1,31)&"!"&ADDRESS(16,3,4)),ROW(B17)-1+SUM($B$14:$B$14),0)) ->  | D31: =IF(ROW(B17)-1>=$D$14,"",OFFSET(INDIRECT(MID(CELL("filename",Sheet1!$A$15),FIND("]",CELL("filename",Sheet1!$A$15))+1,31)&"!"&ADDRESS(16,3,4)),ROW(B17)-1+SUM($B$14:$C$14),0)) ->  | E31: =IF(ROW(B17)-1>=$E$14,"",OFFSET(INDIRECT(MID(CELL("filename",Sheet1!$A$15),FIND("]",CELL("filename",Sheet1!$A$15))+1,31)&"!"&ADDRESS(16,3,4)),ROW(B17)-1+SUM($B$14:$D$14),0)) -> 
B32: =IF(ROW(B18)-1>=$B$14,"",OFFSET(INDIRECT(MID(CELL("filename",Sheet1!$A$15),FIND("]",CELL("filename",Sheet1!$A$15))+1,31)&"!"&ADDRESS(16,3,4)),ROW(B18)-1,0)) ->  | C32: =IF(ROW(B18)-1>=$C$14,"",OFFSET(INDIRECT(MID(CELL("filename",Sheet1!$A$15),FIND("]",CELL("filename",Sheet1!$A$15))+1,31)&"!"&ADDRESS(16,3,4)),ROW(B18)-1+SUM($B$14:$B$14),0)) ->  | D32: =IF(ROW(B18)-1>=$D$14,"",OFFSET(INDIRECT(MID(CELL("filename",Sheet1!$A$15),FIND("]",CELL("filename",Sheet1!$A$15))+1,31)&"!"&ADDRESS(16,3,4)),ROW(B18)-1+SUM($B$14:$C$14),0)) ->  | E32: =IF(ROW(B18)-1>=$E$14,"",OFFSET(INDIRECT(MID(CELL("filename",Sheet1!$A$15),FIND("]",CELL("filename",Sheet1!$A$15))+1,31)&"!"&ADDRESS(16,3,4)),ROW(B18)-1+SUM($B$14:$D$14),0)) -> 
B33: =IF(ROW(B19)-1>=$B$14,"",OFFSET(INDIRECT(MID(CELL("filename",Sheet1!$A$15),FIND("]",CELL("filename",Sheet1!$A$15))+1,31)&"!"&ADDRESS(16,3,4)),ROW(B19)-1,0)) ->  | C33: =IF(ROW(B19)-1>=$C$14,"",OFFSET(INDIRECT(MID(CELL("filename",Sheet1!$A$15),FIND("]",CELL("filename",Sheet1!$A$15))+1,31)&"!"&ADDRESS(16,3,4)),ROW(B19)-1+SUM($B$14:$B$14),0)) ->  | D33: =IF(ROW(B19)-1>=$D$14,"",OFFSET(INDIRECT(MID(CELL("filename",Sheet1!$A$15),FIND("]",CELL("filename",Sheet1!$A$15))+1,31)&"!"&ADDRESS(16,3,4)),ROW(B19)-1+SUM($B$14:$C$14),0)) ->  | E33: =IF(ROW(B19)-1>=$E$14,"",OFFSET(INDIRECT(MID(CELL("filename",Sheet1!$A$15),FIND("]",CELL("filename",Sheet1!$A$15))+1,31)&"!"&ADDRESS(16,3,4)),ROW(B19)-1+SUM($B$14:$D$14),0)) -> 
B34: =IF(ROW(B20)-1>=$B$14,"",OFFSET(INDIRECT(MID(CELL("filename",Sheet1!$A$15),FIND("]",CELL("filename",Sheet1!$A$15))+1,31)&"!"&ADDRESS(16,3,4)),ROW(B20)-1,0)) ->  | C34: =IF(ROW(B20)-1>=$C$14,"",OFFSET(INDIRECT(MID(CELL("filename",Sheet1!$A$15),FIND("]",CELL("filename",Sheet1!$A$15))+1,31)&"!"&ADDRESS(16,3,4)),ROW(B20)-1+SUM($B$14:$B$14),0)) ->  | D34: =IF(ROW(B20)-1>=$D$14,"",OFFSET(INDIRECT(MID(CELL("filename",Sheet1!$A$15),FIND("]",CELL("filename",Sheet1!$A$15))+1,31)&"!"&ADDRESS(16,3,4)),ROW(B20)-1+SUM($B$14:$C$14),0)) ->  | E34: =IF(ROW(B20)-1>=$E$14,"",OFFSET(INDIRECT(MID(CELL("filename",Sheet1!$A$15),FIND("]",CELL("filename",Sheet1!$A$15))+1,31)&"!"&ADDRESS(16,3,4)),ROW(B20)-1+SUM($B$14:$D$14),0)) -> 
B36: परीक्षा प्रभारी | E36: केन्द्राधीक्षक
B37: =$J$6&" ("&$J$7&")" -> XYZ (Lecturer) | E37: =$J$4&" ("&$J$5&")" -> XYZ (Principal)

Sheet Sheet3
B1: =Sheet2!$B$1 -> Half Yearly Examination 2024
B2: परीक्षा केंद्र नाम एवं परीक्षा केंद्र क्रमांक
B3: =Sheet2!$B$3 -> Govt Sr Sc School Malutana (216405)
B4: परीक्षा कक्ष / हॉल क्रमांक
B5: =Sheet2!$K$2 -> 02
B6: परीक्षा दिनांक (दिवस) ... से ... तक
B7: =Sheet2!$B$7 -> 14-12-2024 | C7: =IF(B7="","",TEXT(B7,"DDDD")) -> Saturday | D7: =Sheet2!$D$7 -> 24-12-2024 | E7: =IF(D7="","",TEXT(D7,"DDDD")) -> Tuesday
B8: परीक्षार्थी रोल नंबर ... से ... तक
B9: =IF(B14>0,B15,IF(C14>0,C15,IF(D14>0,D15,IF(E14>0,E15,0)))) -> 109 | D9: =IF(E14>0,LOOKUP(2,1/(E15:E34<>""),E15:E34),IF(D14>0,LOOKUP(2,1/(D15:D34<>""),D15:D34),IF(C14>0,LOOKUP(2,1/(C15:C34<>""),C15:C34),IF(B14>0,LOOKUP(2,1/(B15:B34<>""),B15:B34),0)))) -> 2016
B10: कुल सम्मिलित परीक्षार्थी
B11: =COUNTIF($B$15:$E$34,">0") -> 24
B12: परीक्षार्थी बैठक व्यवस्था
B13: पंक्ति 1 | C13: पंक्ति 2 | D13: पंक्ति 3 | E13: पंक्ति 4
B14: =Sheet2!L2 -> 6 | C14: =Sheet2!M2 -> 6 | D14: =Sheet2!N2 -> 5 | E14: =Sheet2!O2 -> 7
B15: =IF(ROW(B1)-1>=$B$14,"",OFFSET(INDIRECT(MID(CELL("filename",Sheet1!$A$15),FIND("]",CELL("filename",Sheet1!$A$15))+1,31)&"!"&ADDRESS(MATCH(Sheet2!$D$9,Sheet1!C:C,0)+1,3,4)),ROW(B1)-1,0)) -> 109 | C15: =IF(ROW(B1)-1>=$C$14,"",OFFSET(INDIRECT(MID(CELL("filename",Sheet1!$A$15),FIND("]",CELL("filename",Sheet1!$A$15))+1,31)&"!"&ADDRESS(MATCH(Sheet2!$D$9,Sheet1!C:C,0)+1,3,4)),ROW(B1)-1+SUM($B$14:$B$14),0)) -> 111 | D15: =IF(ROW(B1)-1>=$D$14,"",OFFSET(INDIRECT(MID(CELL("filename",Sheet1!$A$15),FIND("]",CELL("filename",Sheet1!$A$15))+1,31)&"!"&ADDRESS(MATCH(Sheet2!$D$9,Sheet1!C:C,0)+1,3,4)),ROW(B1)-1+SUM($B$14:$C$14),0)) -> 113 | E15: =IF(ROW(B1)-1>=$E$14,"",OFFSET(INDIRECT(MID(CELL("filename",Sheet1!$A$15),FIND("]",CELL("filename",Sheet1!$A$15))+1,31)&"!"&ADDRESS(MATCH(Sheet2!$D$9,Sheet1!C:C,0)+1,3,4)),ROW(B1)-1+SUM($B$14:$D$14),0)) -> 2014 | F15: =IF(SUM(B15:E15)>0,1,"") -> 1
B16: =IF(ROW(B2)-1>=$B$14,"",OFFSET(INDIRECT(MID(CELL("filename",Sheet1!$A$15),FIND("]",CELL("filename",Sheet1!$A$15))+1,31)&"!"&ADDRESS(MATCH(Sheet2!$D$9,Sheet1!C:C,0)+1,3,4)),ROW(B2)-1,0)) -> 1009 | C16: =IF(ROW(B2)-1>=$C$14,"",OFFSET(INDIRECT(MID(CELL("filename",Sheet1!$A$15),FIND("]",CELL("filename",Sheet1!$A$15))+1,31)&"!"&ADDRESS(MATCH(Sheet2!$D$9,Sheet1!C:C,0)+1,3,4)),ROW(B2)-1+SUM($B$14:$B$14),0)) -> 1011 | D16: =IF(ROW(B2)-1>=$D$14,"",OFFSET(INDIRECT(MID(CELL("filename",Sheet1!$A$15),FIND("]",CELL("filename",Sheet1!$A$15))+1,31)&"!"&ADDRESS(MATCH(Sheet2!$D$9,Sheet1!C:C,0)+1,3,4)),ROW(B2)-1+SUM($B$14:$C$14),0)) -> 1013 | E16: =IF(ROW(B2)-1>=$E$14,"",OFFSET(INDIRECT(MID(CELL("filename",Sheet1!$A$15),FIND("]",CELL("filename",Sheet1!$A$15))+1,31)&"!"&ADDRESS(MATCH(Sheet2!$D$9,Sheet1!C:C,0)+1,3,4)),ROW(B2)-1+SUM($B$14:$D$14),0)) -> 115 | F16: =IF(SUM(B16:E16)>0,1,"") -> 1
B17: =IF(ROW(B3)-1>=$B$14,"",OFFSET(INDIRECT(MID(CELL("filename",Sheet1!$A$15),FIND("]",CELL("filename",Sheet1!$A$15))+1,31)&"!"&ADDRESS(MATCH(Sheet2!$D$9,Sheet1!C:C,0)+1,3,4)),ROW(B3)-1,0)) -> 2009 | C17: =IF(ROW(B3)-1>=$C$14,"",OFFSET(INDIRECT(MID(CELL("filename",Sheet1!$A$15),FIND("]",CELL("filename",Sheet1!$A$15))+1,31)&"!"&ADDRESS(MATCH(Sheet2!$D$9,Sheet1!C:C,0)+1,3,4)),ROW(B3)-1+SUM($B$14:$B$14),0)) -> 2011 | D17: =IF(ROW(B3)-1>=$D$14,"",OFFSET(INDIRECT(MID(CELL("filename",Sheet1!$A$15),FIND("]",CELL("filename",Sheet1!$A$15))+1,31)&"!"&ADDRESS(MATCH(Sheet2!$D$9,Sheet1!C:C,0)+1,3,4)),ROW(B3)-1+SUM($B$14:$C$14),0)) -> 2013 | E17: =IF(ROW(B3)-1>=$E$14,"",OFFSET(INDIRECT(MID(CELL("filename",Sheet1!$A$15),FIND("]",CELL("filename",Sheet1!$A$15))+1,31)&"!"&ADDRESS(MATCH(Sheet2!$D$9,Sheet1!C:C,0)+1,3,4)),ROW(B3)-1+SUM($B$14:$D$14),0)) -> 1015 | F17: 1
B18: =IF(ROW(B4)-1>=$B$14,"",OFFSET(INDIRECT(MID(CELL("filename",Sheet1!$A$15),FIND("]",CELL("filename",Sheet1!$A$15))+1,31)&"!"&ADDRESS(MATCH(Sheet2!$D$9,Sheet1!C:C,0)+1,3,4)),ROW(B4)-1,0)) -> 110 | C18: =IF(ROW(B4)-1>=$C$14,"",OFFSET(INDIRECT(MID(CELL("filename",Sheet1!$A$15),FIND("]",CELL("filename",Sheet1!$A$15))+1,31)&"!"&ADDRESS(MATCH(Sheet2!$D$9,Sheet1!C:C,0)+1,3,4)),ROW(B4)-1+SUM($B$14:$B$14),0)) -> 112 | D18: =IF(ROW(B4)-1>=$D$14,"",OFFSET(INDIRECT(MID(CELL("filename",Sheet1!$A$15),FIND("]",CELL("filename",Sheet1!$A$15))+1,31)&"!"&ADDRESS(MATCH(Sheet2!$D$9,Sheet1!C:C,0)+1,3,4)),ROW(B4)-1+SUM($B$14:$C$14),0)) -> 114 | E18: =IF(ROW(B4)-1>=$E$14,"",OFFSET(INDIRECT(MID(CELL("filename",Sheet1!$A$15),FIND("]",CELL("filename",Sheet1!$A$15))+1,31)&"!"&ADDRESS(MATCH(Sheet2!$D$9,Sheet1!C:C,0)+1,3,4)),ROW(B4)-1+SUM($B$14:$D$14),0)) -> 2015 | F18: 1
B19: =IF(ROW(B5)-1>=$B$14,"",OFFSET(INDIRECT(MID(CELL("filename",Sheet1!$A$15),FIND("]",CELL("filename",Sheet1!$A$15))+1,31)&"!"&ADDRESS(MATCH(Sheet2!$D$9,Sheet1!C:C,0)+1,3,4)),ROW(B5)-1,0)) -> 1010 | C19: =IF(ROW(B5)-1>=$C$14,"",OFFSET(INDIRECT(MID(CELL("filename",Sheet1!$A$15),FIND("]",CELL("filename",Sheet1!$A$15))+1,31)&"!"&ADDRESS(MATCH(Sheet2!$D$9,Sheet1!C:C,0)+1,3,4)),ROW(B5)-1+SUM($B$14:$B$14),0)) -> 1012 | D19: =IF(ROW(B5)-1>=$D$14,"",OFFSET(INDIRECT(MID(CELL("filename",Sheet1!$A$15),FIND("]",CELL("filename",Sheet1!$A$15))+1,31)&"!"&ADDRESS(MATCH(Sheet2!$D$9,Sheet1!C:C,0)+1,3,4)),ROW(B5)-1+SUM($B$14:$C$14),0)) -> 1014 | E19: =IF(ROW(B5)-1>=$E$14,"",OFFSET(INDIRECT(MID(CELL("filename",Sheet1!$A$15),FIND("]",CELL("filename",Sheet1!$A$15))+1,31)&"!"&ADDRESS(MATCH(Sheet2!$D$9,Sheet1!C:C,0)+1,3,4)),ROW(B5)-1+SUM($B$14:$D$14),0)) -> 116 | F19: 1
B20: =IF(ROW(B6)-1>=$B$14,"",OFFSET(INDIRECT(MID(CELL("filename",Sheet1!$A$15),FIND("]",CELL("filename",Sheet1!$A$15))+1,31)&"!"&ADDRESS(MATCH(Sheet2!$D$9,Sheet1!C:C,0)+1,3,4)),ROW(B6)-1,0)) -> 2010 | C20: =IF(ROW(B6)-1>=$C$14,"",OFFSET(INDIRECT(MID(CELL("filename",Sheet1!$A$15),FIND("]",CELL("filename",Sheet1!$A$15))+1,31)&"!"&ADDRESS(MATCH(Sheet2!$D$9,Sheet1!C:C,0)+1,3,4)),ROW(B6)-1+SUM($B$14:$B$14),0)) -> 2012 | D20: =IF(ROW(B6)-1>=$D$14,"",OFFSET(INDIRECT(MID(CELL("filename",Sheet1!$A$15),FIND("]",CELL("filename",Sheet1!$A$15))+1,31)&"!"&ADDRESS(MATCH(Sheet2!$D$9,Sheet1!C:C,0)+1,3,4)),ROW(B6)-1+SUM($B$14:$C$14),0)) ->  | E20: =IF(ROW(B6)-1>=$E$14,"",OFFSET(INDIRECT(MID(CELL("filename",Sheet1!$A$15),FIND("]",CELL("filename",Sheet1!$A$15))+1,31)&"!"&ADDRESS(MATCH(Sheet2!$D$9,Sheet1!C:C,0)+1,3,4)),ROW(B6)-1+SUM($B$14:$D$14),0)) -> 1016 | F20: 1
B21: =IF(ROW(B7)-1>=$B$14,"",OFFSET(INDIRECT(MID(CELL("filename",Sheet1!$A$15),FIND("]",CELL("filename",Sheet1!$A$15))+1,31)&"!"&ADDRESS(MATCH(Sheet2!$D$9,Sheet1!C:C,0)+1,3,4)),ROW(B7)-1,0)) ->  | C21: =IF(ROW(B7)-1>=$C$14,"",OFFSET(INDIRECT(MID(CELL("filename",Sheet1!$A$15),FIND("]",CELL("filename",Sheet1!$A$15))+1,31)&"!"&ADDRESS(MATCH(Sheet2!$D$9,Sheet1!C:C,0)+1,3,4)),ROW(B7)-1+SUM($B$14:$B$14),0)) ->  | D21: =IF(ROW(B7)-1>=$D$14,"",OFFSET(INDIRECT(MID(CELL("filename",Sheet1!$A$15),FIND("]",CELL("filename",Sheet1!$A$15))+1,31)&"!"&ADDRESS(MATCH(Sheet2!$D$9,Sheet1!C:C,0)+1,3,4)),ROW(B7)-1+SUM($B$14:$C$14),0)) ->  | E21: =IF(ROW(B7)-1>=$E$14,"",OFFSET(INDIRECT(MID(CELL("filename",Sheet1!$A$15),FIND("]",CELL("filename",Sheet1!$A$15))+1,31)&"!"&ADDRESS(MATCH(Sheet2!$D$9,Sheet1!C:C,0)+1,3,4)),ROW(B7)-1+SUM($B$14:$D$14),0)) -> 2016 | F21: 1
B22: =IF(ROW(B8)-1>=$B$14,"",OFFSET(INDIRECT(MID(CELL("filename",Sheet1!$A$15),FIND("]",CELL("filename",Sheet1!$A$15))+1,31)&"!"&ADDRESS(MATCH(Sheet2!$D$9,Sheet1!C:C,0)+1,3,4)),ROW(B8)-1,0)) ->  | C22: =IF(ROW(B8)-1>=$C$14,"",OFFSET(INDIRECT(MID(CELL("filename",Sheet1!$A$15),FIND("]",CELL("filename",Sheet1!$A$15))+1,31)&"!"&ADDRESS(MATCH(Sheet2!$D$9,Sheet1!C:C,0)+1,3,4)),ROW(B8)-1+SUM($B$14:$B$14),0)) ->  | D22: =IF(ROW(B8)-1>=$D$14,"",OFFSET(INDIRECT(MID(CELL("filename",Sheet1!$A$15),FIND("]",CELL("filename",Sheet1!$A$15))+1,31)&"!"&ADDRESS(MATCH(Sheet2!$D$9,Sheet1!C:C,0)+1,3,4)),ROW(B8)-1+SUM($B$14:$C$14),0)) ->  | E22: =IF(ROW(B8)-1>=$E$14,"",OFFSET(INDIRECT(MID(CELL("filename",Sheet1!$A$15),FIND("]",CELL("filename",Sheet1!$A$15))+1,31)&"!"&ADDRESS(MATCH(Sheet2!$D$9,Sheet1!C:C,0)+1,3,4)),ROW(B8)-1+SUM($B$14:$D$14),0)) -> 
B23: =IF(ROW(B9)-1>=$B$14,"",OFFSET(INDIRECT(MID(CELL("filename",Sheet1!$A$15),FIND("]",CELL("filename",Sheet1!$A$15))+1,31)&"!"&ADDRESS(MATCH(Sheet2!$D$9,Sheet1!C:C,0)+1,3,4)),ROW(B9)-1,0)) ->  | C23: =IF(ROW(B9)-1>=$C$14,"",OFFSET(INDIRECT(MID(CELL("filename",Sheet1!$A$15),FIND("]",CELL("filename",Sheet1!$A$15))+1,31)&"!"&ADDRESS(MATCH(Sheet2!$D$9,Sheet1!C:C,0)+1,3,4)),ROW(B9)-1+SUM($B$14:$B$14),0)) ->  | D23: =IF(ROW(B9)-1>=$D$14,"",OFFSET(INDIRECT(MID(CELL("filename",Sheet1!$A$15),FIND("]",CELL("filename",Sheet1!$A$15))+1,31)&"!"&ADDRESS(MATCH(Sheet2!$D$9,Sheet1!C:C,0)+1,3,4)),ROW(B9)-1+SUM($B$14:$C$14),0)) ->  | E23: =IF(ROW(B9)-1>=$E$14,"",OFFSET(INDIRECT(MID(CELL("filename",Sheet1!$A$15),FIND("]",CELL("filename",Sheet1!$A$15))+1,31)&"!"&ADDRESS(MATCH(Sheet2!$D$9,Sheet1!C:C,0)+1,3,4)),ROW(B9)-1+SUM($B$14:$D$14),0)) -> 
B24: =IF(ROW(B10)-1>=$B$14,"",OFFSET(INDIRECT(MID(CELL("filename",Sheet1!$A$15),FIND("]",CELL("filename",Sheet1!$A$15))+1,31)&"!"&ADDRESS(MATCH(Sheet2!$D$9,Sheet1!C:C,0)+1,3,4)),ROW(B10)-1,0)) ->  | C24: =IF(ROW(B10)-1>=$C$14,"",OFFSET(INDIRECT(MID(CELL("filename",Sheet1!$A$15),FIND("]",CELL("filename",Sheet1!$A$15))+1,31)&"!"&ADDRESS(MATCH(Sheet2!$D$9,Sheet1!C:C,0)+1,3,4)),ROW(B10)-1+SUM($B$14:$B$14),0)) ->  | D24: =IF(ROW(B10)-1>=$D$14,"",OFFSET(INDIRECT(MID(CELL("filename",Sheet1!$A$15),FIND("]",CELL("filename",Sheet1!$A$15))+1,31)&"!"&ADDRESS(MATCH(Sheet2!$D$9,Sheet1!C:C,0)+1,3,4)),ROW(B10)-1+SUM($B$14:$C$14),0)) ->  | E24: =IF(ROW(B10)-1>=$E$14,"",OFFSET(INDIRECT(MID(CELL("filename",Sheet1!$A$15),FIND("]",CELL("filename",Sheet1!$A$15))+1,31)&"!"&ADDRESS(MATCH(Sheet2!$D$9,Sheet1!C:C,0)+1,3,4)),ROW(B10)-1+SUM($B$14:$D$14),0)) -> 
B25: =IF(ROW(B11)-1>=$B$14,"",OFFSET(INDIRECT(MID(CELL("filename",Sheet1!$A$15),FIND("]",CELL("filename",Sheet1!$A$15))+1,31)&"!"&ADDRESS(MATCH(Sheet2!$D$9,Sheet1!C:C,0)+1,3,4)),ROW(B11)-1,0)) ->  | C25: =IF(ROW(B11)-1>=$C$14,"",OFFSET(INDIRECT(MID(CELL("filename",Sheet1!$A$15),FIND("]",CELL("filename",Sheet1!$A$15))+1,31)&"!"&ADDRESS(MATCH(Sheet2!$D$9,Sheet1!C:C,0)+1,3,4)),ROW(B11)-1+SUM($B$14:$B$14),0)) ->  | D25: =IF(ROW(B11)-1>=$D$14,"",OFFSET(INDIRECT(MID(CELL("filename",Sheet1!$A$15),FIND("]",CELL("filename",Sheet1!$A$15))+1,31)&"!"&ADDRESS(MATCH(Sheet2!$D$9,Sheet1!C:C,0)+1,3,4)),ROW(B11)-1+SUM($B$14:$C$14),0)) ->  | E25: =IF(ROW(B11)-1>=$E$14,"",OFFSET(INDIRECT(MID(CELL("filename",Sheet1!$A$15),FIND("]",CELL("filename",Sheet1!$A$15))+1,31)&"!"&ADDRESS(MATCH(Sheet2!$D$9,Sheet1!C:C,0)+1,3,4)),ROW(B11)-1+SUM($B$14:$D$14),0)) -> 
B26: =IF(ROW(B12)-1>=$B$14,"",OFFSET(INDIRECT(MID(CELL("filename",Sheet1!$A$15),FIND("]",CELL("filename",Sheet1!$A$15))+1,31)&"!"&ADDRESS(MATCH(Sheet2!$D$9,Sheet1!C:C,0)+1,3,4)),ROW(B12)-1,0)) ->  | C26: =IF(ROW(B12)-1>=$C$14,"",OFFSET(INDIRECT(MID(CELL("filename",Sheet1!$A$15),FIND("]",CELL("filename",Sheet1!$A$15))+1,31)&"!"&ADDRESS(MATCH(Sheet2!$D$9,Sheet1!C:C,0)+1,3,4)),ROW(B12)-1+SUM($B$14:$B$14),0)) ->  | D26: =IF(ROW(B12)-1>=$D$14,"",OFFSET(INDIRECT(MID(CELL("filename",Sheet1!$A$15),FIND("]",CELL("filename",Sheet1!$A$15))+1,31)&"!"&ADDRESS(MATCH(Sheet2!$D$9,Sheet1!C:C,0)+1,3,4)),ROW(B12)-1+SUM($B$14:$C$14),0)) ->  | E26: =IF(ROW(B12)-1>=$E$14,"",OFFSET(INDIRECT(MID(CELL("filename",Sheet1!$A$15),FIND("]",CELL("filename",Sheet1!$A$15))+1,31)&"!"&ADDRESS(MATCH(Sheet2!$D$9,Sheet1!C:C,0)+1,3,4)),ROW(B12)-1+SUM($B$14:$D$14),0)) -> 
B27: =IF(ROW(B13)-1>=$B$14,"",OFFSET(INDIRECT(MID(CELL("filename",Sheet1!$A$15),FIND("]",CELL("filename",Sheet1!$A$15))+1,31)&"!"&ADDRESS(MATCH(Sheet2!$D$9,Sheet1!C:C,0)+1,3,4)),ROW(B13)-1,0)) ->  | C27: =IF(ROW(B13)-1>=$C$14,"",OFFSET(INDIRECT(MID(CELL("filename",Sheet1!$A$15),FIND("]",CELL("filename",Sheet1!$A$15))+1,31)&"!"&ADDRESS(MATCH(Sheet2!$D$9,Sheet1!C:C,0)+1,3,4)),ROW(B13)-1+SUM($B$14:$B$14),0)) ->  | D27: =IF(ROW(B13)-1>=$D$14,"",OFFSET(INDIRECT(MID(CELL("filename",Sheet1!$A$15),FIND("]",CELL("filename",Sheet1!$A$15))+1,31)&"!"&ADDRESS(MATCH(Sheet2!$D$9,Sheet1!C:C,0)+1,3,4)),ROW(B13)-1+SUM($B$14:$C$14),0)) ->  | E27: =IF(ROW(B13)-1>=$E$14,"",OFFSET(INDIRECT(MID(CELL("filename",Sheet1!$A$15),FIND("]",CELL("filename",Sheet1!$A$15))+1,31)&"!"&ADDRESS(MATCH(Sheet2!$D$9,Sheet1!C:C,0)+1,3,4)),ROW(B13)-1+SUM($B$14:$D$14),0)) -> 
B28: =IF(ROW(B14)-1>=$B$14,"",OFFSET(INDIRECT(MID(CELL("filename",Sheet1!$A$15),FIND("]",CELL("filename",Sheet1!$A$15))+1,31)&"!"&ADDRESS(MATCH(Sheet2!$D$9,Sheet1!C:C,0)+1,3,4)),ROW(B14)-1,0)) ->  | C28: =IF(ROW(B14)-1>=$C$14,"",OFFSET(INDIRECT(MID(CELL("filename",Sheet1!$A$15),FIND("]",CELL("filename",Sheet1!$A$15))+1,31)&"!"&ADDRESS(MATCH(Sheet2!$D$9,Sheet1!C:C,0)+1,3,4)),ROW(B14)-1+SUM($B$14:$B$14),0)) ->  | D28: =IF(ROW(B14)-1>=$D$14,"",OFFSET(INDIRECT(MID(CELL("filename",Sheet1!$A$15),FIND("]",CELL("filename",Sheet1!$A$15))+1,31)&"!"&ADDRESS(MATCH(Sheet2!$D$9,Sheet1!C:C,0)+1,3,4)),ROW(B14)-1+SUM($B$14:$C$14),0)) ->  | E28: =IF(ROW(B14)-1>=$E$14,"",OFFSET(INDIRECT(MID(CELL("filename",Sheet1!$A$15),FIND("]",CELL("filename",Sheet1!$A$15))+1,31)&"!"&ADDRESS(MATCH(Sheet2!$D$9,Sheet1!C:C,0)+1,3,4)),ROW(B14)-1+SUM($B$14:$D$14),0)) -> 
B29: =IF(ROW(B15)-1>=$B$14,"",OFFSET(INDIRECT(MID(CELL("filename",Sheet1!$A$15),FIND("]",CELL("filename",Sheet1!$A$15))+1,31)&"!"&ADDRESS(MATCH(Sheet2!$D$9,Sheet1!C:C,0)+1,3,4)),ROW(B15)-1,0)) ->  | C29: =IF(ROW(B15)-1>=$C$14,"",OFFSET(INDIRECT(MID(CELL("filename",Sheet1!$A$15),FIND("]",CELL("filename",Sheet1!$A$15))+1,31)&"!"&ADDRESS(MATCH(Sheet2!$D$9,Sheet1!C:C,0)+1,3,4)),ROW(B15)-1+SUM($B$14:$B$14),0)) ->  | D29: =IF(ROW(B15)-1>=$D$14,"",OFFSET(INDIRECT(MID(CELL("filename",Sheet1!$A$15),FIND("]",CELL("filename",Sheet1!$A$15))+1,31)&"!"&ADDRESS(MATCH(Sheet2!$D$9,Sheet1!C:C,0)+1,3,4)),ROW(B15)-1+SUM($B$14:$C$14),0)) ->  | E29: =IF(ROW(B15)-1>=$E$14,"",OFFSET(INDIRECT(MID(CELL("filename",Sheet1!$A$15),FIND("]",CELL("filename",Sheet1!$A$15))+1,31)&"!"&ADDRESS(MATCH(Sheet2!$D$9,Sheet1!C:C,0)+1,3,4)),ROW(B15)-1+SUM($B$14:$D$14),0)) -> 
B30: =IF(ROW(B16)-1>=$B$14,"",OFFSET(INDIRECT(MID(CELL("filename",Sheet1!$A$15),FIND("]",CELL("filename",Sheet1!$A$15))+1,31)&"!"&ADDRESS(MATCH(Sheet2!$D$9,Sheet1!C:C,0)+1,3,4)),ROW(B16)-1,0)) ->  | C30: =IF(ROW(B16)-1>=$C$14,"",OFFSET(INDIRECT(MID(CELL("filename",Sheet1!$A$15),FIND("]",CELL("filename",Sheet1!$A$15))+1,31)&"!"&ADDRESS(MATCH(Sheet2!$D$9,Sheet1!C:C,0)+1,3,4)),ROW(B16)-1+SUM($B$14:$B$14),0)) ->  | D30: =IF(ROW(B16)-1>=$D$14,"",OFFSET(INDIRECT(MID(CELL("filename",Sheet1!$A$15),FIND("]",CELL("filename",Sheet1!$A$15))+1,31)&"!"&ADDRESS(MATCH(Sheet2!$D$9,Sheet1!C:C,0)+1,3,4)),ROW(B16)-1+SUM($B$14:$C$14),0)) ->  | E30: =IF(ROW(B16)-1>=$E$14,"",OFFSET(INDIRECT(MID(CELL("filename",Sheet1!$A$15),FIND("]",CELL("filename",Sheet1!$A$15))+1,31)&"!"&ADDRESS(MATCH(Sheet2!$D$9,Sheet1!C:C,0)+1,3,4)),ROW(B16)-1+SUM($B$14:$D$14),0)) -> 
B31: =IF(ROW(B17)-1>=$B$14,"",OFFSET(INDIRECT(MID(CELL("filename",Sheet1!$A$15),FIND("]",CELL("filename",Sheet1!$A$15))+1,31)&"!"&ADDRESS(MATCH(Sheet2!$D$9,Sheet1!C:C,0)+1,3,4)),ROW(B17)-1,0)) ->  | C31: =IF(ROW(B17)-1>=$C$14,"",OFFSET(INDIRECT(MID(CELL("filename",Sheet1!$A$15),FIND("]",CELL("filename",Sheet1!$A$15))+1,31)&"!"&ADDRESS(MATCH(Sheet2!$D$9,Sheet1!C:C,0)+1,3,4)),ROW(B17)-1+SUM($B$14:$B$14),0)) ->  | D31: =IF(ROW(B17)-1>=$D$14,"",OFFSET(INDIRECT(MID(CELL("filename",Sheet1!$A$15),FIND("]",CELL("filename",Sheet1!$A$15))+1,31)&"!"&ADDRESS(MATCH(Sheet2!$D$9,Sheet1!C:C,0)+1,3,4)),ROW(B17)-1+SUM($B$14:$C$14),0)) ->  | E31: =IF(ROW(B17)-1>=$E$14,"",OFFSET(INDIRECT(MID(CELL("filename",Sheet1!$A$15),FIND("]",CELL("filename",Sheet1!$A$15))+1,31)&"!"&ADDRESS(MATCH(Sheet2!$D$9,Sheet1!C:C,0)+1,3,4)),ROW(B17)-1+SUM($B$14:$D$14),0)) -> 
B32: =IF(ROW(B18)-1>=$B$14,"",OFFSET(INDIRECT(MID(CELL("filename",Sheet1!$A$15),FIND("]",CELL("filename",Sheet1!$A$15))+1,31)&"!"&ADDRESS(MATCH(Sheet2!$D$9,Sheet1!C:C,0)+1,3,4)),ROW(B18)-1,0)) ->  | C32: =IF(ROW(B18)-1>=$C$14,"",OFFSET(INDIRECT(MID(CELL("filename",Sheet1!$A$15),FIND("]",CELL("filename",Sheet1!$A$15))+1,31)&"!"&ADDRESS(MATCH(Sheet2!$D$9,Sheet1!C:C,0)+1,3,4)),ROW(B18)-1+SUM($B$14:$B$14),0)) ->  | D32: =IF(ROW(B18)-1>=$D$14,"",OFFSET(INDIRECT(MID(CELL("filename",Sheet1!$A$15),FIND("]",CELL("filename",Sheet1!$A$15))+1,31)&"!"&ADDRESS(MATCH(Sheet2!$D$9,Sheet1!C:C,0)+1,3,4)),ROW(B18)-1+SUM($B$14:$C$14),0)) ->  | E32: =IF(ROW(B18)-1>=$E$14,"",OFFSET(INDIRECT(MID(CELL("filename",Sheet1!$A$15),FIND("]",CELL("filename",Sheet1!$A$15))+1,31)&"!"&ADDRESS(MATCH(Sheet2!$D$9,Sheet1!C:C,0)+1,3,4)),ROW(B18)-1+SUM($B$14:$D$14),0)) -> 
B33: =IF(ROW(B19)-1>=$B$14,"",OFFSET(INDIRECT(MID(CELL("filename",Sheet1!$A$15),FIND("]",CELL("filename",Sheet1!$A$15))+1,31)&"!"&ADDRESS(MATCH(Sheet2!$D$9,Sheet1!C:C,0)+1,3,4)),ROW(B19)-1,0)) ->  | C33: =IF(ROW(B19)-1>=$C$14,"",OFFSET(INDIRECT(MID(CELL("filename",Sheet1!$A$15),FIND("]",CELL("filename",Sheet1!$A$15))+1,31)&"!"&ADDRESS(MATCH(Sheet2!$D$9,Sheet1!C:C,0)+1,3,4)),ROW(B19)-1+SUM($B$14:$B$14),0)) ->  | D33: =IF(ROW(B19)-1>=$D$14,"",OFFSET(INDIRECT(MID(CELL("filename",Sheet1!$A$15),FIND("]",CELL("filename",Sheet1!$A$15))+1,31)&"!"&ADDRESS(MATCH(Sheet2!$D$9,Sheet1!C:C,0)+1,3,4)),ROW(B19)-1+SUM($B$14:$C$14),0)) ->  | E33: =IF(ROW(B19)-1>=$E$14,"",OFFSET(INDIRECT(MID(CELL("filename",Sheet1!$A$15),FIND("]",CELL("filename",Sheet1!$A$15))+1,31)&"!"&ADDRESS(MATCH(Sheet2!$D$9,Sheet1!C:C,0)+1,3,4)),ROW(B19)-1+SUM($B$14:$D$14),0)) -> 
B34: =IF(ROW(B20)-1>=$B$14,"",OFFSET(INDIRECT(MID(CELL("filename",Sheet1!$A$15),FIND("]",CELL("filename",Sheet1!$A$15))+1,31)&"!"&ADDRESS(MATCH(Sheet2!$D$9,Sheet1!C:C,0)+1,3,4)),ROW(B20)-1,0)) ->  | C34: =IF(ROW(B20)-1>=$C$14,"",OFFSET(INDIRECT(MID(CELL("filename",Sheet1!$A$15),FIND("]",CELL("filename",Sheet1!$A$15))+1,31)&"!"&ADDRESS(MATCH(Sheet2!$D$9,Sheet1!C:C,0)+1,3,4)),ROW(B20)-1+SUM($B$14:$B$14),0)) ->  | D34: =IF(ROW(B20)-1>=$D$14,"",OFFSET(INDIRECT(MID(CELL("filename",Sheet1!$A$15),FIND("]",CELL("filename",Sheet1!$A$15))+1,31)&"!"&ADDRESS(MATCH(Sheet2!$D$9,Sheet1!C:C,0)+1,3,4)),ROW(B20)-1+SUM($B$14:$C$14),0)) ->  | E34: =IF(ROW(B20)-1>=$E$14,"",OFFSET(INDIRECT(MID(CELL("filename",Sheet1!$A$15),FIND("]",CELL("filename",Sheet1!$A$15))+1,31)&"!"&ADDRESS(MATCH(Sheet2!$D$9,Sheet1!C:C,0)+1,3,4)),ROW(B20)-1+SUM($B$14:$D$14),0)) -> 
B36: परीक्षा प्रभारी | E36: केन्द्राधीक्षक
B37: =Sheet2!$B$37 -> XYZ (Lecturer) | E37: =Sheet2!$E$37 -> XYZ (Principal)

Sheet Sheet4
B1: =Sheet2!$B$1 -> Half Yearly Examination 2024
B2: परीक्षा केंद्र नाम एवं परीक्षा केंद्र क्रमांक
B3: =Sheet2!$B$3 -> Govt Sr Sc School Malutana (216405)
B4: परीक्षा कक्ष / हॉल क्रमांक
B5: =Sheet2!$K$3 -> 03
B6: परीक्षा दिनांक (दिवस) ... से ... तक
B7: =Sheet2!$B$7 -> 14-12-2024 | C7: =IF(B7="","",TEXT(B7,"DDDD")) -> Saturday | D7: =Sheet2!$D$7 -> 24-12-2024 | E7: =IF(D7="","",TEXT(D7,"DDDD")) -> Tuesday
B8: परीक्षार्थी रोल नंबर ... से ... तक
B9: =IF(B14>0,B15,IF(C14>0,C15,IF(D14>0,D15,IF(E14>0,E15,0)))) -> 117 | D9: =IF(E14>0,LOOKUP(2,1/(E15:E34<>""),E15:E34),IF(D14>0,LOOKUP(2,1/(D15:D34<>""),D15:D34),IF(C14>0,LOOKUP(2,1/(C15:C34<>""),C15:C34),IF(B14>0,LOOKUP(2,1/(B15:B34<>""),B15:B34),0)))) -> 1024
B10: कुल सम्मिलित परीक्षार्थी
B11: =COUNTIF($B$15:$E$34,">0") -> 23
B12: परीक्षार्थी बैठक व्यवस्था
B13: पंक्ति 1 | C13: पंक्ति 2 | D13: पंक्ति 3 | E13: पंक्ति 4
B14: =Sheet2!L3 -> 5 | C14: =Sheet2!M3 -> 5 | D14: =Sheet2!N3 -> 5 | E14: =Sheet2!O3 -> 8
B15: =IF(ROW(B1)-1>=$B$14,"",OFFSET(INDIRECT(MID(CELL("filename",Sheet1!$A$15),FIND("]",CELL("filename",Sheet1!$A$15))+1,31)&"!"&ADDRESS(MATCH(Sheet3!$D$9,Sheet1!C:C,0)+1,3,4)),ROW(B1)-1,0)) -> 117 | C15: =IF(ROW(B1)-1>=$C$14,"",OFFSET(INDIRECT(MID(CELL("filename",Sheet1!$A$15),FIND("]",CELL("filename",Sheet1!$A$15))+1,31)&"!"&ADDRESS(MATCH(Sheet3!$D$9,Sheet1!C:C,0)+1,3,4)),ROW(B1)-1+SUM($B$14:$B$14),0)) -> 2018 | D15: =IF(ROW(B1)-1>=$D$14,"",OFFSET(INDIRECT(MID(CELL("filename",Sheet1!$A$15),FIND("]",CELL("filename",Sheet1!$A$15))+1,31)&"!"&ADDRESS(MATCH(Sheet3!$D$9,Sheet1!C:C,0)+1,3,4)),ROW(B1)-1+SUM($B$14:$C$14),0)) -> 1020 | E15: =IF(ROW(B1)-1>=$E$14,"",OFFSET(INDIRECT(MID(CELL("filename",Sheet1!$A$15),FIND("]",CELL("filename",Sheet1!$A$15))+1,31)&"!"&ADDRESS(MATCH(Sheet3!$D$9,Sheet1!C:C,0)+1,3,4)),ROW(B1)-1+SUM($B$14:$D$14),0)) -> 122 | F15: =IF(SUM(B15:E15)>0,1,"") -> 1
B16: =IF(ROW(B2)-1>=$B$14,"",OFFSET(INDIRECT(MID(CELL("filename",Sheet1!$A$15),FIND("]",CELL("filename",Sheet1!$A$15))+1,31)&"!"&ADDRESS(MATCH(Sheet3!$D$9,Sheet1!C:C,0)+1,3,4)),ROW(B2)-1,0)) -> 1017 | C16: =IF(ROW(B2)-1>=$C$14,"",OFFSET(INDIRECT(MID(CELL("filename",Sheet1!$A$15),FIND("]",CELL("filename",Sheet1!$A$15))+1,31)&"!"&ADDRESS(MATCH(Sheet3!$D$9,Sheet1!C:C,0)+1,3,4)),ROW(B2)-1+SUM($B$14:$B$14),0)) -> 119 | D16: =IF(ROW(B2)-1>=$D$14,"",OFFSET(INDIRECT(MID(CELL("filename",Sheet1!$A$15),FIND("]",CELL("filename",Sheet1!$A$15))+1,31)&"!"&ADDRESS(MATCH(Sheet3!$D$9,Sheet1!C:C,0)+1,3,4)),ROW(B2)-1+SUM($B$14:$C$14),0)) -> 2020 | E16: =IF(ROW(B2)-1>=$E$14,"",OFFSET(INDIRECT(MID(CELL("filename",Sheet1!$A$15),FIND("]",CELL("filename",Sheet1!$A$15))+1,31)&"!"&ADDRESS(MATCH(Sheet3!$D$9,Sheet1!C:C,0)+1,3,4)),ROW(B2)-1+SUM($B$14:$D$14),0)) -> 1022 | F16: =IF(SUM(B16:E16)>0,1,"") -> 1
B17: =IF(ROW(B3)-1>=$B$14,"",OFFSET(INDIRECT(MID(CELL("filename",Sheet1!$A$15),FIND("]",CELL("filename",Sheet1!$A$15))+1,31)&"!"&ADDRESS(MATCH(Sheet3!$D$9,Sheet1!C:C,0)+1,3,4)),ROW(B3)-1,0)) -> 2017 | C17: =IF(ROW(B3)-1>=$C$14,"",OFFSET(INDIRECT(MID(CELL("filename",Sheet1!$A$15),FIND("]",CELL("filename",Sheet1!$A$15))+1,31)&"!"&ADDRESS(MATCH(Sheet3!$D$9,Sheet1!C:C,0)+1,3,4)),ROW(B3)-1+SUM($B$14:$B$14),0)) -> 1019 | D17: =IF(ROW(B3)-1>=$D$14,"",OFFSET(INDIRECT(MID(CELL("filename",Sheet1!$A$15),FIND("]",CELL("filename",Sheet1!$A$15))+1,31)&"!"&ADDRESS(MATCH(Sheet3!$D$9,Sheet1!C:C,0)+1,3,4)),ROW(B3)-1+SUM($B$14:$C$14),0)) -> 121 | E17: =IF(ROW(B3)-1>=$E$14,"",OFFSET(INDIRECT(MID(CELL("filename",Sheet1!$A$15),FIND("]",CELL("filename",Sheet1!$A$15))+1,31)&"!"&ADDRESS(MATCH(Sheet3!$D$9,Sheet1!C:C,0)+1,3,4)),ROW(B3)-1+SUM($B$14:$D$14),0)) -> 2022 | F17: 1
B18: =IF(ROW(B4)-1>=$B$14,"",OFFSET(INDIRECT(MID(CELL("filename",Sheet1!$A$15),FIND("]",CELL("filename",Sheet1!$A$15))+1,31)&"!"&ADDRESS(MATCH(Sheet3!$D$9,Sheet1!C:C,0)+1,3,4)),ROW(B4)-1,0)) -> 118 | C18: =IF(ROW(B4)-1>=$C$14,"",OFFSET(INDIRECT(MID(CELL("filename",Sheet1!$A$15),FIND("]",CELL("filename",Sheet1!$A$15))+1,31)&"!"&ADDRESS(MATCH(Sheet3!$D$9,Sheet1!C:C,0)+1,3,4)),ROW(B4)-1+SUM($B$14:$B$14),0)) -> 2019 | D18: =IF(ROW(B4)-1>=$D$14,"",OFFSET(INDIRECT(MID(CELL("filename",Sheet1!$A$15),FIND("]",CELL("filename",Sheet1!$A$15))+1,31)&"!"&ADDRESS(MATCH(Sheet3!$D$9,Sheet1!C:C,0)+1,3,4)),ROW(B4)-1+SUM($B$14:$C$14),0)) -> 1021 | E18: =IF(ROW(B4)-1>=$E$14,"",OFFSET(INDIRECT(MID(CELL("filename",Sheet1!$A$15),FIND("]",CELL("filename",Sheet1!$A$15))+1,31)&"!"&ADDRESS(MATCH(Sheet3!$D$9,Sheet1!C:C,0)+1,3,4)),ROW(B4)-1+SUM($B$14:$D$14),0)) -> 123 | F18: 1
B19: =IF(ROW(B5)-1>=$B$14,"",OFFSET(INDIRECT(MID(CELL("filename",Sheet1!$A$15),FIND("]",CELL("filename",Sheet1!$A$15))+1,31)&"!"&ADDRESS(MATCH(Sheet3!$D$9,Sheet1!C:C,0)+1,3,4)),ROW(B5)-1,0)) -> 1018 | C19: =IF(ROW(B5)-1>=$C$14,"",OFFSET(INDIRECT(MID(CELL("filename",Sheet1!$A$15),FIND("]",CELL("filename",Sheet1!$A$15))+1,31)&"!"&ADDRESS(MATCH(Sheet3!$D$9,Sheet1!C:C,0)+1,3,4)),ROW(B5)-1+SUM($B$14:$B$14),0)) -> 120 | D19: =IF(ROW(B5)-1>=$D$14,"",OFFSET(INDIRECT(MID(CELL("filename",Sheet1!$A$15),FIND("]",CELL("filename",Sheet1!$A$15))+1,31)&"!"&ADDRESS(MATCH(Sheet3!$D$9,Sheet1!C:C,0)+1,3,4)),ROW(B5)-1+SUM($B$14:$C$14),0)) -> 2021 | E19: =IF(ROW(B5)-1>=$E$14,"",OFFSET(INDIRECT(MID(CELL("filename",Sheet1!$A$15),FIND("]",CELL("filename",Sheet1!$A$15))+1,31)&"!"&ADDRESS(MATCH(Sheet3!$D$9,Sheet1!C:C,0)+1,3,4)),ROW(B5)-1+SUM($B$14:$D$14),0)) -> 1023 | F19: 1
B20: =IF(ROW(B6)-1>=$B$14,"",OFFSET(INDIRECT(MID(CELL("filename",Sheet1!$A$15),FIND("]",CELL("filename",Sheet1!$A$15))+1,31)&"!"&ADDRESS(MATCH(Sheet3!$D$9,Sheet1!C:C,0)+1,3,4)),ROW(B6)-1,0)) ->  | C20: =IF(ROW(B6)-1>=$C$14,"",OFFSET(INDIRECT(MID(CELL("filename",Sheet1!$A$15),FIND("]",CELL("filename",Sheet1!$A$15))+1,31)&"!"&ADDRESS(MATCH(Sheet3!$D$9,Sheet1!C:C,0)+1,3,4)),ROW(B6)-1+SUM($B$14:$B$14),0)) ->  | D20: =IF(ROW(B6)-1>=$D$14,"",OFFSET(INDIRECT(MID(CELL("filename",Sheet1!$A$15),FIND("]",CELL("filename",Sheet1!$A$15))+1,31)&"!"&ADDRESS(MATCH(Sheet3!$D$9,Sheet1!C:C,0)+1,3,4)),ROW(B6)-1+SUM($B$14:$C$14),0)) ->  | E20: =IF(ROW(B6)-1>=$E$14,"",OFFSET(INDIRECT(MID(CELL("filename",Sheet1!$A$15),FIND("]",CELL("filename",Sheet1!$A$15))+1,31)&"!"&ADDRESS(MATCH(Sheet3!$D$9,Sheet1!C:C,0)+1,3,4)),ROW(B6)-1+SUM($B$14:$D$14),0)) -> 2023 | F20: 1
B21: =IF(ROW(B7)-1>=$B$14,"",OFFSET(INDIRECT(MID(CELL("filename",Sheet1!$A$15),FIND("]",CELL("filename",Sheet1!$A$15))+1,31)&"!"&ADDRESS(MATCH(Sheet3!$D$9,Sheet1!C:C,0)+1,3,4)),ROW(B7)-1,0)) ->  | C21: =IF(ROW(B7)-1>=$C$14,"",OFFSET(INDIRECT(MID(CELL("filename",Sheet1!$A$15),FIND("]",CELL("filename",Sheet1!$A$15))+1,31)&"!"&ADDRESS(MATCH(Sheet3!$D$9,Sheet1!C:C,0)+1,3,4)),ROW(B7)-1+SUM($B$14:$B$14),0)) ->  | D21: =IF(ROW(B7)-1>=$D$14,"",OFFSET(INDIRECT(MID(CELL("filename",Sheet1!$A$15),FIND("]",CELL("filename",Sheet1!$A$15))+1,31)&"!"&ADDRESS(MATCH(Sheet3!$D$9,Sheet1!C:C,0)+1,3,4)),ROW(B7)-1+SUM($B$14:$C$14),0)) ->  | E21: =IF(ROW(B7)-1>=$E$14,"",OFFSET(INDIRECT(MID(CELL("filename",Sheet1!$A$15),FIND("]",CELL("filename",Sheet1!$A$15))+1,31)&"!"&ADDRESS(MATCH(Sheet3!$D$9,Sheet1!C:C,0)+1,3,4)),ROW(B7)-1+SUM($B$14:$D$14),0)) -> 124 | F21: 1
B22: =IF(ROW(B8)-1>=$B$14,"",OFFSET(INDIRECT(MID(CELL("filename",Sheet1!$A$15),FIND("]",CELL("filename",Sheet1!$A$15))+1,31)&"!"&ADDRESS(MATCH(Sheet3!$D$9,Sheet1!C:C,0)+1,3,4)),ROW(B8)-1,0)) ->  | C22: =IF(ROW(B8)-1>=$C$14,"",OFFSET(INDIRECT(MID(CELL("filename",Sheet1!$A$15),FIND("]",CELL("filename",Sheet1!$A$15))+1,31)&"!"&ADDRESS(MATCH(Sheet3!$D$9,Sheet1!C:C,0)+1,3,4)),ROW(B8)-1+SUM($B$14:$B$14),0)) ->  | D22: =IF(ROW(B8)-1>=$D$14,"",OFFSET(INDIRECT(MID(CELL("filename",Sheet1!$A$15),FIND("]",CELL("filename",Sheet1!$A$15))+1,31)&"!"&ADDRESS(MATCH(Sheet3!$D$9,Sheet1!C:C,0)+1,3,4)),ROW(B8)-1+SUM($B$14:$C$14),0)) ->  | E22: =IF(ROW(B8)-1>=$E$14,"",OFFSET(INDIRECT(MID(CELL("filename",Sheet1!$A$15),FIND("]",CELL("filename",Sheet1!$A$15))+1,31)&"!"&ADDRESS(MATCH(Sheet3!$D$9,Sheet1!C:C,0)+1,3,4)),ROW(B8)-1+SUM($B$14:$D$14),0)) -> 1024 | F22: 1
B23: =IF(ROW(B9)-1>=$B$14,"",OFFSET(INDIRECT(MID(CELL("filename",Sheet1!$A$15),FIND("]",CELL("filename",Sheet1!$A$15))+1,31)&"!"&ADDRESS(MATCH(Sheet3!$D$9,Sheet1!C:C,0)+1,3,4)),ROW(B9)-1,0)) ->  | C23: =IF(ROW(B9)-1>=$C$14,"",OFFSET(INDIRECT(MID(CELL("filename",Sheet1!$A$15),FIND("]",CELL("filename",Sheet1!$A$15))+1,31)&"!"&ADDRESS(MATCH(Sheet3!$D$9,Sheet1!C:C,0)+1,3,4)),ROW(B9)-1+SUM($B$14:$B$14),0)) ->  | D23: =IF(ROW(B9)-1>=$D$14,"",OFFSET(INDIRECT(MID(CELL("filename",Sheet1!$A$15),FIND("]",CELL("filename",Sheet1!$A$15))+1,31)&"!"&ADDRESS(MATCH(Sheet3!$D$9,Sheet1!C:C,0)+1,3,4)),ROW(B9)-1+SUM($B$14:$C$14),0)) ->  | E23: =IF(ROW(B9)-1>=$E$14,"",OFFSET(INDIRECT(MID(CELL("filename",Sheet1!$A$15),FIND("]",CELL("filename",Sheet1!$A$15))+1,31)&"!"&ADDRESS(MATCH(Sheet3!$D$9,Sheet1!C:C,0)+1,3,4)),ROW(B9)-1+SUM($B$14:$D$14),0)) -> 
B24: =IF(ROW(B10)-1>=$B$14,"",OFFSET(INDIRECT(MID(CELL("filename",Sheet1!$A$15),FIND("]",CELL("filename",Sheet1!$A$15))+1,31)&"!"&ADDRESS(MATCH(Sheet3!$D$9,Sheet1!C:C,0)+1,3,4)),ROW(B10)-1,0)) ->  | C24: =IF(ROW(B10)-1>=$C$14,"",OFFSET(INDIRECT(MID(CELL("filename",Sheet1!$A$15),FIND("]",CELL("filename",Sheet1!$A$15))+1,31)&"!"&ADDRESS(MATCH(Sheet3!$D$9,Sheet1!C:C,0)+1,3,4)),ROW(B10)-1+SUM($B$14:$B$14),0)) ->  | D24: =IF(ROW(B10)-1>=$D$14,"",OFFSET(INDIRECT(MID(CELL("filename",Sheet1!$A$15),FIND("]",CELL("filename",Sheet1!$A$15))+1,31)&"!"&ADDRESS(MATCH(Sheet3!$D$9,Sheet1!C:C,0)+1,3,4)),ROW(B10)-1+SUM($B$14:$C$14),0)) ->  | E24: =IF(ROW(B10)-1>=$E$14,"",OFFSET(INDIRECT(MID(CELL("filename",Sheet1!$A$15),FIND("]",CELL("filename",Sheet1!$A$15))+1,31)&"!"&ADDRESS(MATCH(Sheet3!$D$9,Sheet1!C:C,0)+1,3,4)),ROW(B10)-1+SUM($B$14:$D$14),0)) -> 
B25: =IF(ROW(B11)-1>=$B$14,"",OFFSET(INDIRECT(MID(CELL("filename",Sheet1!$A$15),FIND("]",CELL("filename",Sheet1!$A$15))+1,31)&"!"&ADDRESS(MATCH(Sheet3!$D$9,Sheet1!C:C,0)+1,3,4)),ROW(B11)-1,0)) ->  | C25: =IF(ROW(B11)-1>=$C$14,"",OFFSET(INDIRECT(MID(CELL("filename",Sheet1!$A$15),FIND("]",CELL("filename",Sheet1!$A$15))+1,31)&"!"&ADDRESS(MATCH(Sheet3!$D$9,Sheet1!C:C,0)+1,3,4)),ROW(B11)-1+SUM($B$14:$B$14),0)) ->  | D25: =IF(ROW(B11)-1>=$D$14,"",OFFSET(INDIRECT(MID(CELL("filename",Sheet1!$A$15),FIND("]",CELL("filename",Sheet1!$A$15))+1,31)&"!"&ADDRESS(MATCH(Sheet3!$D$9,Sheet1!C:C,0)+1,3,4)),ROW(B11)-1+SUM($B$14:$C$14),0)) ->  | E25: =IF(ROW(B11)-1>=$E$14,"",OFFSET(INDIRECT(MID(CELL("filename",Sheet1!$A$15),FIND("]",CELL("filename",Sheet1!$A$15))+1,31)&"!"&ADDRESS(MATCH(Sheet3!$D$9,Sheet1!C:C,0)+1,3,4)),ROW(B11)-1+SUM($B$14:$D$14),0)) -> 
B26: =IF(ROW(B12)-1>=$B$14,"",OFFSET(INDIRECT(MID(CELL("filename",Sheet1!$A$15),FIND("]",CELL("filename",Sheet1!$A$15))+1,31)&"!"&ADDRESS(MATCH(Sheet3!$D$9,Sheet1!C:C,0)+1,3,4)),ROW(B12)-1,0)) ->  | C26: =IF(ROW(B12)-1>=$C$14,"",OFFSET(INDIRECT(MID(CELL("filename",Sheet1!$A$15),FIND("]",CELL("filename",Sheet1!$A$15))+1,31)&"!"&ADDRESS(MATCH(Sheet3!$D$9,Sheet1!C:C,0)+1,3,4)),ROW(B12)-1+SUM($B$14:$B$14),0)) ->  | D26: =IF(ROW(B12)-1>=$D$14,"",OFFSET(INDIRECT(MID(CELL("filename",Sheet1!$A$15),FIND("]",CELL("filename",Sheet1!$A$15))+1,31)&"!"&ADDRESS(MATCH(Sheet3!$D$9,Sheet1!C:C,0)+1,3,4)),ROW(B12)-1+SUM($B$14:$C$14),0)) ->  | E26: =IF(ROW(B12)-1>=$E$14,"",OFFSET(INDIRECT(MID(CELL("filename",Sheet1!$A$15),FIND("]",CELL("filename",Sheet1!$A$15))+1,31)&"!"&ADDRESS(MATCH(Sheet3!$D$9,Sheet1!C:C,0)+1,3,4)),ROW(B12)-1+SUM($B$14:$D$14),0)) -> 
B27: =IF(ROW(B13)-1>=$B$14,"",OFFSET(INDIRECT(MID(CELL("filename",Sheet1!$A$15),FIND("]",CELL("filename",Sheet1!$A$15))+1,31)&"!"&ADDRESS(MATCH(Sheet3!$D$9,Sheet1!C:C,0)+1,3,4)),ROW(B13)-1,0)) ->  | C27: =IF(ROW(B13)-1>=$C$14,"",OFFSET(INDIRECT(MID(CELL("filename",Sheet1!$A$15),FIND("]",CELL("filename",Sheet1!$A$15))+1,31)&"!"&ADDRESS(MATCH(Sheet3!$D$9,Sheet1!C:C,0)+1,3,4)),ROW(B13)-1+SUM($B$14:$B$14),0)) ->  | D27: =IF(ROW(B13)-1>=$D$14,"",OFFSET(INDIRECT(MID(CELL("filename",Sheet1!$A$15),FIND("]",CELL("filename",Sheet1!$A$15))+1,31)&"!"&ADDRESS(MATCH(Sheet3!$D$9,Sheet1!C:C,0)+1,3,4)),ROW(B13)-1+SUM($B$14:$C$14),0)) ->  | E27: =IF(ROW(B13)-1>=$E$14,"",OFFSET(INDIRECT(MID(CELL("filename",Sheet1!$A$15),FIND("]",CELL("filename",Sheet1!$A$15))+1,31)&"!"&ADDRESS(MATCH(Sheet3!$D$9,Sheet1!C:C,0)+1,3,4)),ROW(B13)-1+SUM($B$14:$D$14),0)) -> 
B28: =IF(ROW(B14)-1>=$B$14,"",OFFSET(INDIRECT(MID(CELL("filename",Sheet1!$A$15),FIND("]",CELL("filename",Sheet1!$A$15))+1,31)&"!"&ADDRESS(MATCH(Sheet3!$D$9,Sheet1!C:C,0)+1,3,4)),ROW(B14)-1,0)) ->  | C28: =IF(ROW(B14)-1>=$C$14,"",OFFSET(INDIRECT(MID(CELL("filename",Sheet1!$A$15),FIND("]",CELL("filename",Sheet1!$A$15))+1,31)&"!"&ADDRESS(MATCH(Sheet3!$D$9,Sheet1!C:C,0)+1,3,4)),ROW(B14)-1+SUM($B$14:$B$14),0)) ->  | D28: =IF(ROW(B14)-1>=$D$14,"",OFFSET(INDIRECT(MID(CELL("filename",Sheet1!$A$15),FIND("]",CELL("filename",Sheet1!$A$15))+1,31)&"!"&ADDRESS(MATCH(Sheet3!$D$9,Sheet1!C:C,0)+1,3,4)),ROW(B14)-1+SUM($B$14:$C$14),0)) ->  | E28: =IF(ROW(B14)-1>=$E$14,"",OFFSET(INDIRECT(MID(CELL("filename",Sheet1!$A$15),FIND("]",CELL("filename",Sheet1!$A$15))+1,31)&"!"&ADDRESS(MATCH(Sheet3!$D$9,Sheet1!C:C,0)+1,3,4)),ROW(B14)-1+SUM($B$14:$D$14),0)) -> 
B29: =IF(ROW(B15)-1>=$B$14,"",OFFSET(INDIRECT(MID(CELL("filename",Sheet1!$A$15),FIND("]",CELL("filename",Sheet1!$A$15))+1,31)&"!"&ADDRESS(MATCH(Sheet3!$D$9,Sheet1!C:C,0)+1,3,4)),ROW(B15)-1,0)) ->  | C29: =IF(ROW(B15)-1>=$C$14,"",OFFSET(INDIRECT(MID(CELL("filename",Sheet1!$A$15),FIND("]",CELL("filename",Sheet1!$A$15))+1,31)&"!"&ADDRESS(MATCH(Sheet3!$D$9,Sheet1!C:C,0)+1,3,4)),ROW(B15)-1+SUM($B$14:$B$14),0)) ->  | D29: =IF(ROW(B15)-1>=$D$14,"",OFFSET(INDIRECT(MID(CELL("filename",Sheet1!$A$15),FIND("]",CELL("filename",Sheet1!$A$15))+1,31)&"!"&ADDRESS(MATCH(Sheet3!$D$9,Sheet1!C:C,0)+1,3,4)),ROW(B15)-1+SUM($B$14:$C$14),0)) ->  | E29: =IF(ROW(B15)-1>=$E$14,"",OFFSET(INDIRECT(MID(CELL("filename",Sheet1!$A$15),FIND("]",CELL("filename",Sheet1!$A$15))+1,31)&"!"&ADDRESS(MATCH(Sheet3!$D$9,Sheet1!C:C,0)+1,3,4)),ROW(B15)-1+SUM($B$14:$D$14),0)) -> 
B30: =IF(ROW(B16)-1>=$B$14,"",OFFSET(INDIRECT(MID(CELL("filename",Sheet1!$A$15),FIND("]",CELL("filename",Sheet1!$A$15))+1,31)&"!"&ADDRESS(MATCH(Sheet3!$D$9,Sheet1!C:C,0)+1,3,4)),ROW(B16)-1,0)) ->  | C30: =IF(ROW(B16)-1>=$C$14,"",OFFSET(INDIRECT(MID(CELL("filename",Sheet1!$A$15),FIND("]",CELL("filename",Sheet1!$A$15))+1,31)&"!"&ADDRESS(MATCH(Sheet3!$D$9,Sheet1!C:C,0)+1,3,4)),ROW(B16)-1+SUM($B$14:$B$14),0)) ->  | D30: =IF(ROW(B16)-1>=$D$14,"",OFFSET(INDIRECT(MID(CELL("filename",Sheet1!$A$15),FIND("]",CELL("filename",Sheet1!$A$15))+1,31)&"!"&ADDRESS(MATCH(Sheet3!$D$9,Sheet1!C:C,0)+1,3,4)),ROW(B16)-1+SUM($B$14:$C$14),0)) ->  | E30: =IF(ROW(B16)-1>=$E$14,"",OFFSET(INDIRECT(MID(CELL("filename",Sheet1!$A$15),FIND("]",CELL("filename",Sheet1!$A$15))+1,31)&"!"&ADDRESS(MATCH(Sheet3!$D$9,Sheet1!C:C,0)+1,3,4)),ROW(B16)-1+SUM($B$14:$D$14),0)) -> 
B31: =IF(ROW(B17)-1>=$B$14,"",OFFSET(INDIRECT(MID(CELL("filename",Sheet1!$A$15),FIND("]",CELL("filename",Sheet1!$A$15))+1,31)&"!"&ADDRESS(MATCH(Sheet3!$D$9,Sheet1!C:C,0)+1,3,4)),ROW(B17)-1,0)) ->  | C31: =IF(ROW(B17)-1>=$C$14,"",OFFSET(INDIRECT(MID(CELL("filename",Sheet1!$A$15),FIND("]",CELL("filename",Sheet1!$A$15))+1,31)&"!"&ADDRESS(MATCH(Sheet3!$D$9,Sheet1!C:C,0)+1,3,4)),ROW(B17)-1+SUM($B$14:$B$14),0)) ->  | D31: =IF(ROW(B17)-1>=$D$14,"",OFFSET(INDIRECT(MID(CELL("filename",Sheet1!$A$15),FIND("]",CELL("filename",Sheet1!$A$15))+1,31)&"!"&ADDRESS(MATCH(Sheet3!$D$9,Sheet1!C:C,0)+1,3,4)),ROW(B17)-1+SUM($B$14:$C$14),0)) ->  | E31: =IF(ROW(B17)-1>=$E$14,"",OFFSET(INDIRECT(MID(CELL("filename",Sheet1!$A$15),FIND("]",CELL("filename",Sheet1!$A$15))+1,31)&"!"&ADDRESS(MATCH(Sheet3!$D$9,Sheet1!C:C,0)+1,3,4)),ROW(B17)-1+SUM($B$14:$D$14),0)) -> 
B32: =IF(ROW(B18)-1>=$B$14,"",OFFSET(INDIRECT(MID(CELL("filename",Sheet1!$A$15),FIND("]",CELL("filename",Sheet1!$A$15))+1,31)&"!"&ADDRESS(MATCH(Sheet3!$D$9,Sheet1!C:C,0)+1,3,4)),ROW(B18)-1,0)) ->  | C32: =IF(ROW(B18)-1>=$C$14,"",OFFSET(INDIRECT(MID(CELL("filename",Sheet1!$A$15),FIND("]",CELL("filename",Sheet1!$A$15))+1,31)&"!"&ADDRESS(MATCH(Sheet3!$D$9,Sheet1!C:C,0)+1,3,4)),ROW(B18)-1+SUM($B$14:$B$14),0)) ->  | D32: =IF(ROW(B18)-1>=$D$14,"",OFFSET(INDIRECT(MID(CELL("filename",Sheet1!$A$15),FIND("]",CELL("filename",Sheet1!$A$15))+1,31)&"!"&ADDRESS(MATCH(Sheet3!$D$9,Sheet1!C:C,0)+1,3,4)),ROW(B18)-1+SUM($B$14:$C$14),0)) ->  | E32: =IF(ROW(B18)-1>=$E$14,"",OFFSET(INDIRECT(MID(CELL("filename",Sheet1!$A$15),FIND("]",CELL("filename",Sheet1!$A$15))+1,31)&"!"&ADDRESS(MATCH(Sheet3!$D$9,Sheet1!C:C,0)+1,3,4)),ROW(B18)-1+SUM($B$14:$D$14),0)) -> 
B33: =IF(ROW(B19)-1>=$B$14,"",OFFSET(INDIRECT(MID(CELL("filename",Sheet1!$A$15),FIND("]",CELL("filename",Sheet1!$A$15))+1,31)&"!"&ADDRESS(MATCH(Sheet3!$D$9,Sheet1!C:C,0)+1,3,4)),ROW(B19)-1,0)) ->  | C33: =IF(ROW(B19)-1>=$C$14,"",OFFSET(INDIRECT(MID(CELL("filename",Sheet1!$A$15),FIND("]",CELL("filename",Sheet1!$A$15))+1,31)&"!"&ADDRESS(MATCH(Sheet3!$D$9,Sheet1!C:C,0)+1,3,4)),ROW(B19)-1+SUM($B$14:$B$14),0)) ->  | D33: =IF(ROW(B19)-1>=$D$14,"",OFFSET(INDIRECT(MID(CELL("filename",Sheet1!$A$15),FIND("]",CELL("filename",Sheet1!$A$15))+1,31)&"!"&ADDRESS(MATCH(Sheet3!$D$9,Sheet1!C:C,0)+1,3,4)),ROW(B19)-1+SUM($B$14:$C$14),0)) ->  | E33: =IF(ROW(B19)-1>=$E$14,"",OFFSET(INDIRECT(MID(CELL("filename",Sheet1!$A$15),FIND("]",CELL("filename",Sheet1!$A$15))+1,31)&"!"&ADDRESS(MATCH(Sheet3!$D$9,Sheet1!C:C,0)+1,3,4)),ROW(B19)-1+SUM($B$14:$D$14),0)) -> 
B34: =IF(ROW(B20)-1>=$B$14,"",OFFSET(INDIRECT(MID(CELL("filename",Sheet1!$A$15),FIND("]",CELL("filename",Sheet1!$A$15))+1,31)&"!"&ADDRESS(MATCH(Sheet3!$D$9,Sheet1!C:C,0)+1,3,4)),ROW(B20)-1,0)) ->  | C34: =IF(ROW(B20)-1>=$C$14,"",OFFSET(INDIRECT(MID(CELL("filename",Sheet1!$A$15),FIND("]",CELL("filename",Sheet1!$A$15))+1,31)&"!"&ADDRESS(MATCH(Sheet3!$D$9,Sheet1!C:C,0)+1,3,4)),ROW(B20)-1+SUM($B$14:$B$14),0)) ->  | D34: =IF(ROW(B20)-1>=$D$14,"",OFFSET(INDIRECT(MID(CELL("filename",Sheet1!$A$15),FIND("]",CELL("filename",Sheet1!$A$15))+1,31)&"!"&ADDRESS(MATCH(Sheet3!$D$9,Sheet1!C:C,0)+1,3,4)),ROW(B20)-1+SUM($B$14:$C$14),0)) ->  | E34: =IF(ROW(B20)-1>=$E$14,"",OFFSET(INDIRECT(MID(CELL("filename",Sheet1!$A$15),FIND("]",CELL("filename",Sheet1!$A$15))+1,31)&"!"&ADDRESS(MATCH(Sheet3!$D$9,Sheet1!C:C,0)+1,3,4)),ROW(B20)-1+SUM($B$14:$D$14),0)) -> 
B36: परीक्षा प्रभारी | E36: केन्द्राधीक्षक
B37: =Sheet2!$B$37 -> XYZ (Lecturer) | E37: =Sheet2!$E$37 -> XYZ (Principal)

Sheet Sheet5
B1: =Sheet2!$B$1 -> Half Yearly Examination 2024
B2: परीक्षा केंद्र नाम एवं परीक्षा केंद्र क्रमांक
B3: =Sheet2!$B$3 -> Govt Sr Sc School Malutana (216405)
B4: परीक्षा कक्ष / हॉल क्रमांक
B5: =Sheet2!$K$4 -> 04
B6: परीक्षा दिनांक (दिवस) ... से ... तक
B7: =Sheet2!$B$7 -> 14-12-2024 | C7: =IF(B7="","",TEXT(B7,"DDDD")) -> Saturday | D7: =Sheet2!$D$7 -> 24-12-2024 | E7: =IF(D7="","",TEXT(D7,"DDDD")) -> Tuesday
B8: परीक्षार्थी रोल नंबर ... से ... तक
B9: =IF(B14>0,B15,IF(C14>0,C15,IF(D14>0,D15,IF(E14>0,E15,0)))) -> 2024 | D9: =IF(E14>0,LOOKUP(2,1/(E15:E34<>""),E15:E34),IF(D14>0,LOOKUP(2,1/(D15:D34<>""),D15:D34),IF(C14>0,LOOKUP(2,1/(C15:C34<>""),C15:C34),IF(B14>0,LOOKUP(2,1/(B15:B34<>""),B15:B34),0)))) -> 1038
B10: कुल सम्मिलित परीक्षार्थी
B11: =COUNTIF($B$15:$E$34,">0") -> 42
B12: परीक्षार्थी बैठक व्यवस्था
B13: पंक्ति 1 | C13: पंक्ति 2 | D13: पंक्ति 3 | E13: पंक्ति 4
B14: =Sheet2!L4 -> 10 | C14: =Sheet2!M4 -> 11 | D14: =Sheet2!N4 -> 12 | E14: =Sheet2!O4 -> 9
B15: =IF(ROW(B1)-1>=$B$14,"",OFFSET(INDIRECT(MID(CELL("filename",Sheet1!$A$15),FIND("]",CELL("filename",Sheet1!$A$15))+1,31)&"!"&ADDRESS(MATCH(Sheet4!$D$9,Sheet1!C:C,0)+1,3,4)),ROW(B1)-1,0)) -> 2024 | C15: =IF(ROW(B1)-1>=$C$14,"",OFFSET(INDIRECT(MID(CELL("filename",Sheet1!$A$15),FIND("]",CELL("filename",Sheet1!$A$15))+1,31)&"!"&ADDRESS(MATCH(Sheet4!$D$9,Sheet1!C:C,0)+1,3,4)),ROW(B1)-1+SUM($B$14:$B$14),0)) -> 128 | D15: =IF(ROW(B1)-1>=$D$14,"",OFFSET(INDIRECT(MID(CELL("filename",Sheet1!$A$15),FIND("]",CELL("filename",Sheet1!$A$15))+1,31)&"!"&ADDRESS(MATCH(Sheet4!$D$9,Sheet1!C:C,0)+1,3,4)),ROW(B1)-1+SUM($B$14:$C$14),0)) -> 2031 | E15: =IF(ROW(B1)-1>=$E$14,"",OFFSET(INDIRECT(MID(CELL("filename",Sheet1!$A$15),FIND("]",CELL("filename",Sheet1!$A$15))+1,31)&"!"&ADDRESS(MATCH(Sheet4!$D$9,Sheet1!C:C,0)+1,3,4)),ROW(B1)-1+SUM($B$14:$D$14),0)) -> 2035 | F15: =IF(SUM(B15:E15)>0,1,"") -> 1
B16: =IF(ROW(B2)-1>=$B$14,"",OFFSET(INDIRECT(MID(CELL("filename",Sheet1!$A$15),FIND("]",CELL("filename",Sheet1!$A$15))+1,31)&"!"&ADDRESS(MATCH(Sheet4!$D$9,Sheet1!C:C,0)+1,3,4)),ROW(B2)-1,0)) -> 125 | C16: =IF(ROW(B2)-1>=$C$14,"",OFFSET(INDIRECT(MID(CELL("filename",Sheet1!$A$15),FIND("]",CELL("filename",Sheet1!$A$15))+1,31)&"!"&ADDRESS(MATCH(Sheet4!$D$9,Sheet1!C:C,0)+1,3,4)),ROW(B2)-1+SUM($B$14:$B$14),0)) -> 1028 | D16: =IF(ROW(B2)-1>=$D$14,"",OFFSET(INDIRECT(MID(CELL("filename",Sheet1!$A$15),FIND("]",CELL("filename",Sheet1!$A$15))+1,31)&"!"&ADDRESS(MATCH(Sheet4!$D$9,Sheet1!C:C,0)+1,3,4)),ROW(B2)-1+SUM($B$14:$C$14),0)) -> 132 | E16: =IF(ROW(B2)-1>=$E$14,"",OFFSET(INDIRECT(MID(CELL("filename",Sheet1!$A$15),FIND("]",CELL("filename",Sheet1!$A$15))+1,31)&"!"&ADDRESS(MATCH(Sheet4!$D$9,Sheet1!C:C,0)+1,3,4)),ROW(B2)-1+SUM($B$14:$D$14),0)) -> 136 | F16: =IF(SUM(B16:E16)>0,1,"") -> 1
B17: =IF(ROW(B3)-1>=$B$14,"",OFFSET(INDIRECT(MID(CELL("filename",Sheet1!$A$15),FIND("]",CELL("filename",Sheet1!$A$15))+1,31)&"!"&ADDRESS(MATCH(Sheet4!$D$9,Sheet1!C:C,0)+1,3,4)),ROW(B3)-1,0)) -> 1025 | C17: =IF(ROW(B3)-1>=$C$14,"",OFFSET(INDIRECT(MID(CELL("filename",Sheet1!$A$15),FIND("]",CELL("filename",Sheet1!$A$15))+1,31)&"!"&ADDRESS(MATCH(Sheet4!$D$9,Sheet1!C:C,0)+1,3,4)),ROW(B3)-1+SUM($B$14:$B$14),0)) -> 2028 | D17: =IF(ROW(B3)-1>=$D$14,"",OFFSET(INDIRECT(MID(CELL("filename",Sheet1!$A$15),FIND("]",CELL("filename",Sheet1!$A$15))+1,31)&"!"&ADDRESS(MATCH(Sheet4!$D$9,Sheet1!C:C,0)+1,3,4)),ROW(B3)-1+SUM($B$14:$C$14),0)) -> 1032 | E17: =IF(ROW(B3)-1>=$E$14,"",OFFSET(INDIRECT(MID(CELL("filename",Sheet1!$A$15),FIND("]",CELL("filename",Sheet1!$A$15))+1,31)&"!"&ADDRESS(MATCH(Sheet4!$D$9,Sheet1!C:C,0)+1,3,4)),ROW(B3)-1+SUM($B$14:$D$14),0)) -> 1036 | F17: 1
B18: =IF(ROW(B4)-1>=$B$14,"",OFFSET(INDIRECT(MID(CELL("filename",Sheet1!$A$15),FIND("]",CELL("filename",Sheet1!$A$15))+1,31)&"!"&ADDRESS(MATCH(Sheet4!$D$9,Sheet1!C:C,0)+1,3,4)),ROW(B4)-1,0)) -> 2025 | C18: =IF(ROW(B4)-1>=$C$14,"",OFFSET(INDIRECT(MID(CELL("filename",Sheet1!$A$15),FIND("]",CELL("filename",Sheet1!$A$15))+1,31)&"!"&ADDRESS(MATCH(Sheet4!$D$9,Sheet1!C:C,0)+1,3,4)),ROW(B4)-1+SUM($B$14:$B$14),0)) -> 129 | D18: =IF(ROW(B4)-1>=$D$14,"",OFFSET(INDIRECT(MID(CELL("filename",Sheet1!$A$15),FIND("]",CELL("filename",Sheet1!$A$15))+1,31)&"!"&ADDRESS(MATCH(Sheet4!$D$9,Sheet1!C:C,0)+1,3,4)),ROW(B4)-1+SUM($B$14:$C$14),0)) -> 2032 | E18: =IF(ROW(B4)-1>=$E$14,"",OFFSET(INDIRECT(MID(CELL("filename",Sheet1!$A$15),FIND("]",CELL("filename",Sheet1!$A$15))+1,31)&"!"&ADDRESS(MATCH(Sheet4!$D$9,Sheet1!C:C,0)+1,3,4)),ROW(B4)-1+SUM($B$14:$D$14),0)) -> 2036 | F18: 1
B19: =IF(ROW(B5)-1>=$B$14,"",OFFSET(INDIRECT(MID(CELL("filename",Sheet1!$A$15),FIND("]",CELL("filename",Sheet1!$A$15))+1,31)&"!"&ADDRESS(MATCH(Sheet4!$D$9,Sheet1!C:C,0)+1,3,4)),ROW(B5)-1,0)) -> 126 | C19: =IF(ROW(B5)-1>=$C$14,"",OFFSET(INDIRECT(MID(CELL("filename",Sheet1!$A$15),FIND("]",CELL("filename",Sheet1!$A$15))+1,31)&"!"&ADDRESS(MATCH(Sheet4!$D$9,Sheet1!C:C,0)+1,3,4)),ROW(B5)-1+SUM($B$14:$B$14),0)) -> 1029 | D19: =IF(ROW(B5)-1>=$D$14,"",OFFSET(INDIRECT(MID(CELL("filename",Sheet1!$A$15),FIND("]",CELL("filename",Sheet1!$A$15))+1,31)&"!"&ADDRESS(MATCH(Sheet4!$D$9,Sheet1!C:C,0)+1,3,4)),ROW(B5)-1+SUM($B$14:$C$14),0)) -> 133 | E19: =IF(ROW(B5)-1>=$E$14,"",OFFSET(INDIRECT(MID(CELL("filename",Sheet1!$A$15),FIND("]",CELL("filename",Sheet1!$A$15))+1,31)&"!"&ADDRESS(MATCH(Sheet4!$D$9,Sheet1!C:C,0)+1,3,4)),ROW(B5)-1+SUM($B$14:$D$14),0)) -> 137 | F19: 1
B20: =IF(ROW(B6)-1>=$B$14,"",OFFSET(INDIRECT(MID(CELL("filename",Sheet1!$A$15),FIND("]",CELL("filename",Sheet1!$A$15))+1,31)&"!"&ADDRESS(MATCH(Sheet4!$D$9,Sheet1!C:C,0)+1,3,4)),ROW(B6)-1,0)) -> 1026 | C20: =IF(ROW(B6)-1>=$C$14,"",OFFSET(INDIRECT(MID(CELL("filename",Sheet1!$A$15),FIND("]",CELL("filename",Sheet1!$A$15))+1,31)&"!"&ADDRESS(MATCH(Sheet4!$D$9,Sheet1!C:C,0)+1,3,4)),ROW(B6)-1+SUM($B$14:$B$14),0)) -> 2029 | D20: =IF(ROW(B6)-1>=$D$14,"",OFFSET(INDIRECT(MID(CELL("filename",Sheet1!$A$15),FIND("]",CELL("filename",Sheet1!$A$15))+1,31)&"!"&ADDRESS(MATCH(Sheet4!$D$9,Sheet1!C:C,0)+1,3,4)),ROW(B6)-1+SUM($B$14:$C$14),0)) -> 1033 | E20: =IF(ROW(B6)-1>=$E$14,"",OFFSET(INDIRECT(MID(CELL("filename",Sheet1!$A$15),FIND("]",CELL("filename",Sheet1!$A$15))+1,31)&"!"&ADDRESS(MATCH(Sheet4!$D$9,Sheet1!C:C,0)+1,3,4)),ROW(B6)-1+SUM($B$14:$D$14),0)) -> 1037 | F20: 1
B21: =IF(ROW(B7)-1>=$B$14,"",OFFSET(INDIRECT(MID(CELL("filename",Sheet1!$A$15),FIND("]",CELL("filename",Sheet1!$A$15))+1,31)&"!"&ADDRESS(MATCH(Sheet4!$D$9,Sheet1!C:C,0)+1,3,4)),ROW(B7)-1,0)) -> 2026 | C21: =IF(ROW(B7)-1>=$C$14,"",OFFSET(INDIRECT(MID(CELL("filename",Sheet1!$A$15),FIND("]",CELL("filename",Sheet1!$A$15))+1,31)&"!"&ADDRESS(MATCH(Sheet4!$D$9,Sheet1!C:C,0)+1,3,4)),ROW(B7)-1+SUM($B$14:$B$14),0)) -> 130 | D21: =IF(ROW(B7)-1>=$D$14,"",OFFSET(INDIRECT(MID(CELL("filename",Sheet1!$A$15),FIND("]",CELL("filename",Sheet1!$A$15))+1,31)&"!"&ADDRESS(MATCH(Sheet4!$D$9,Sheet1!C:C,0)+1,3,4)),ROW(B7)-1+SUM($B$14:$C$14),0)) -> 2033 | E21: =IF(ROW(B7)-1>=$E$14,"",OFFSET(INDIRECT(MID(CELL("filename",Sheet1!$A$15),FIND("]",CELL("filename",Sheet1!$A$15))+1,31)&"!"&ADDRESS(MATCH(Sheet4!$D$9,Sheet1!C:C,0)+1,3,4)),ROW(B7)-1+SUM($B$14:$D$14),0)) -> 2037 | F21: 1
B22: =IF(ROW(B8)-1>=$B$14,"",OFFSET(INDIRECT(MID(CELL("filename",Sheet1!$A$15),FIND("]",CELL("filename",Sheet1!$A$15))+1,31)&"!"&ADDRESS(MATCH(Sheet4!$D$9,Sheet1!C:C,0)+1,3,4)),ROW(B8)-1,0)) -> 127 | C22: =IF(ROW(B8)-1>=$C$14,"",OFFSET(INDIRECT(MID(CELL("filename",Sheet1!$A$15),FIND("]",CELL("filename",Sheet1!$A$15))+1,31)&"!"&ADDRESS(MATCH(Sheet4!$D$9,Sheet1!C:C,0)+1,3,4)),ROW(B8)-1+SUM($B$14:$B$14),0)) -> 1030 | D22: =IF(ROW(B8)-1>=$D$14,"",OFFSET(INDIRECT(MID(CELL("filename",Sheet1!$A$15),FIND("]",CELL("filename",Sheet1!$A$15))+1,31)&"!"&ADDRESS(MATCH(Sheet4!$D$9,Sheet1!C:C,0)+1,3,4)),ROW(B8)-1+SUM($B$14:$C$14),0)) -> 134 | E22: =IF(ROW(B8)-1>=$E$14,"",OFFSET(INDIRECT(MID(CELL("filename",Sheet1!$A$15),FIND("]",CELL("filename",Sheet1!$A$15))+1,31)&"!"&ADDRESS(MATCH(Sheet4!$D$9,Sheet1!C:C,0)+1,3,4)),ROW(B8)-1+SUM($B$14:$D$14),0)) -> 138 | F22: 1
B23: =IF(ROW(B9)-1>=$B$14,"",OFFSET(INDIRECT(MID(CELL("filename",Sheet1!$A$15),FIND("]",CELL("filename",Sheet1!$A$15))+1,31)&"!"&ADDRESS(MATCH(Sheet4!$D$9,Sheet1!C:C,0)+1,3,4)),ROW(B9)-1,0)) -> 1027 | C23: =IF(ROW(B9)-1>=$C$14,"",OFFSET(INDIRECT(MID(CELL("filename",Sheet1!$A$15),FIND("]",CELL("filename",Sheet1!$A$15))+1,31)&"!"&ADDRESS(MATCH(Sheet4!$D$9,Sheet1!C:C,0)+1,3,4)),ROW(B9)-1+SUM($B$14:$B$14),0)) -> 2030 | D23: =IF(ROW(B9)-1>=$D$14,"",OFFSET(INDIRECT(MID(CELL("filename",Sheet1!$A$15),FIND("]",CELL("filename",Sheet1!$A$15))+1,31)&"!"&ADDRESS(MATCH(Sheet4!$D$9,Sheet1!C:C,0)+1,3,4)),ROW(B9)-1+SUM($B$14:$C$14),0)) -> 1034 | E23: =IF(ROW(B9)-1>=$E$14,"",OFFSET(INDIRECT(MID(CELL("filename",Sheet1!$A$15),FIND("]",CELL("filename",Sheet1!$A$15))+1,31)&"!"&ADDRESS(MATCH(Sheet4!$D$9,Sheet1!C:C,0)+1,3,4)),ROW(B9)-1+SUM($B$14:$D$14),0)) -> 1038 | F23: 1
B24: =IF(ROW(B10)-1>=$B$14,"",OFFSET(INDIRECT(MID(CELL("filename",Sheet1!$A$15),FIND("]",CELL("filename",Sheet1!$A$15))+1,31)&"!"&ADDRESS(MATCH(Sheet4!$D$9,Sheet1!C:C,0)+1,3,4)),ROW(B10)-1,0)) -> 2027 | C24: =IF(ROW(B10)-1>=$C$14,"",OFFSET(INDIRECT(MID(CELL("filename",Sheet1!$A$15),FIND("]",CELL("filename",Sheet1!$A$15))+1,31)&"!"&ADDRESS(MATCH(Sheet4!$D$9,Sheet1!C:C,0)+1,3,4)),ROW(B10)-1+SUM($B$14:$B$14),0)) -> 131 | D24: =IF(ROW(B10)-1>=$D$14,"",OFFSET(INDIRECT(MID(CELL("filename",Sheet1!$A$15),FIND("]",CELL("filename",Sheet1!$A$15))+1,31)&"!"&ADDRESS(MATCH(Sheet4!$D$9,Sheet1!C:C,0)+1,3,4)),ROW(B10)-1+SUM($B$14:$C$14),0)) -> 2034 | E24: =IF(ROW(B10)-1>=$E$14,"",OFFSET(INDIRECT(MID(CELL("filename",Sheet1!$A$15),FIND("]",CELL("filename",Sheet1!$A$15))+1,31)&"!"&ADDRESS(MATCH(Sheet4!$D$9,Sheet1!C:C,0)+1,3,4)),ROW(B10)-1+SUM($B$14:$D$14),0)) ->  | F24: 1
B25: =IF(ROW(B11)-1>=$B$14,"",OFFSET(INDIRECT(MID(CELL("filename",Sheet1!$A$15),FIND("]",CELL("filename",Sheet1!$A$15))+1,31)&"!"&ADDRESS(MATCH(Sheet4!$D$9,Sheet1!C:C,0)+1,3,4)),ROW(B11)-1,0)) ->  | C25: =IF(ROW(B11)-1>=$C$14,"",OFFSET(INDIRECT(MID(CELL("filename",Sheet1!$A$15),FIND("]",CELL("filename",Sheet1!$A$15))+1,31)&"!"&ADDRESS(MATCH(Sheet4!$D$9,Sheet1!C:C,0)+1,3,4)),ROW(B11)-1+SUM($B$14:$B$14),0)) -> 1031 | D25: =IF(ROW(B11)-1>=$D$14,"",OFFSET(INDIRECT(MID(CELL("filename",Sheet1!$A$15),FIND("]",CELL("filename",Sheet1!$A$15))+1,31)&"!"&ADDRESS(MATCH(Sheet4!$D$9,Sheet1!C:C,0)+1,3,4)),ROW(B11)-1+SUM($B$14:$C$14),0)) -> 135 | E25: =IF(ROW(B11)-1>=$E$14,"",OFFSET(INDIRECT(MID(CELL("filename",Sheet1!$A$15),FIND("]",CELL("filename",Sheet1!$A$15))+1,31)&"!"&ADDRESS(MATCH(Sheet4!$D$9,Sheet1!C:C,0)+1,3,4)),ROW(B11)-1+SUM($B$14:$D$14),0)) ->  | F25: 1
B26: =IF(ROW(B12)-1>=$B$14,"",OFFSET(INDIRECT(MID(CELL("filename",Sheet1!$A$15),FIND("]",CELL("filename",Sheet1!$A$15))+1,31)&"!"&ADDRESS(MATCH(Sheet4!$D$9,Sheet1!C:C,0)+1,3,4)),ROW(B12)-1,0)) ->  | C26: =IF(ROW(B12)-1>=$C$14,"",OFFSET(INDIRECT(MID(CELL("filename",Sheet1!$A$15),FIND("]",CELL("filename",Sheet1!$A$15))+1,31)&"!"&ADDRESS(MATCH(Sheet4!$D$9,Sheet1!C:C,0)+1,3,4)),ROW(B12)-1+SUM($B$14:$B$14),0)) ->  | D26: =IF(ROW(B12)-1>=$D$14,"",OFFSET(INDIRECT(MID(CELL("filename",Sheet1!$A$15),FIND("]",CELL("filename",Sheet1!$A$15))+1,31)&"!"&ADDRESS(MATCH(Sheet4!$D$9,Sheet1!C:C,0)+1,3,4)),ROW(B12)-1+SUM($B$14:$C$14),0)) -> 1035 | E26: =IF(ROW(B12)-1>=$E$14,"",OFFSET(INDIRECT(MID(CELL("filename",Sheet1!$A$15),FIND("]",CELL("filename",Sheet1!$A$15))+1,31)&"!"&ADDRESS(MATCH(Sheet4!$D$9,Sheet1!C:C,0)+1,3,4)),ROW(B12)-1+SUM($B$14:$D$14),0)) ->  | F26: 1
B27: =IF(ROW(B13)-1>=$B$14,"",OFFSET(INDIRECT(MID(CELL("filename",Sheet1!$A$15),FIND("]",CELL("filename",Sheet1!$A$15))+1,31)&"!"&ADDRESS(MATCH(Sheet4!$D$9,Sheet1!C:C,0)+1,3,4)),ROW(B13)-1,0)) ->  | C27: =IF(ROW(B13)-1>=$C$14,"",OFFSET(INDIRECT(MID(CELL("filename",Sheet1!$A$15),FIND("]",CELL("filename",Sheet1!$A$15))+1,31)&"!"&ADDRESS(MATCH(Sheet4!$D$9,Sheet1!C:C,0)+1,3,4)),ROW(B13)-1+SUM($B$14:$B$14),0)) ->  | D27: =IF(ROW(B13)-1>=$D$14,"",OFFSET(INDIRECT(MID(CELL("filename",Sheet1!$A$15),FIND("]",CELL("filename",Sheet1!$A$15))+1,31)&"!"&ADDRESS(MATCH(Sheet4!$D$9,Sheet1!C:C,0)+1,3,4)),ROW(B13)-1+SUM($B$14:$C$14),0)) ->  | E27: =IF(ROW(B13)-1>=$E$14,"",OFFSET(INDIRECT(MID(CELL("filename",Sheet1!$A$15),FIND("]",CELL("filename",Sheet1!$A$15))+1,31)&"!"&ADDRESS(MATCH(Sheet4!$D$9,Sheet1!C:C,0)+1,3,4)),ROW(B13)-1+SUM($B$14:$D$14),0)) -> 
B28: =IF(ROW(B14)-1>=$B$14,"",OFFSET(INDIRECT(MID(CELL("filename",Sheet1!$A$15),FIND("]",CELL("filename",Sheet1!$A$15))+1,31)&"!"&ADDRESS(MATCH(Sheet4!$D$9,Sheet1!C:C,0)+1,3,4)),ROW(B14)-1,0)) ->  | C28: =IF(ROW(B14)-1>=$C$14,"",OFFSET(INDIRECT(MID(CELL("filename",Sheet1!$A$15),FIND("]",CELL("filename",Sheet1!$A$15))+1,31)&"!"&ADDRESS(MATCH(Sheet4!$D$9,Sheet1!C:C,0)+1,3,4)),ROW(B14)-1+SUM($B$14:$B$14),0)) ->  | D28: =IF(ROW(B14)-1>=$D$14,"",OFFSET(INDIRECT(MID(CELL("filename",Sheet1!$A$15),FIND("]",CELL("filename",Sheet1!$A$15))+1,31)&"!"&ADDRESS(MATCH(Sheet4!$D$9,Sheet1!C:C,0)+1,3,4)),ROW(B14)-1+SUM($B$14:$C$14),0)) ->  | E28: =IF(ROW(B14)-1>=$E$14,"",OFFSET(INDIRECT(MID(CELL("filename",Sheet1!$A$15),FIND("]",CELL("filename",Sheet1!$A$15))+1,31)&"!"&ADDRESS(MATCH(Sheet4!$D$9,Sheet1!C:C,0)+1,3,4)),ROW(B14)-1+SUM($B$14:$D$14),0)) -> 
B29: =IF(ROW(B15)-1>=$B$14,"",OFFSET(INDIRECT(MID(CELL("filename",Sheet1!$A$15),FIND("]",CELL("filename",Sheet1!$A$15))+1,31)&"!"&ADDRESS(MATCH(Sheet4!$D$9,Sheet1!C:C,0)+1,3,4)),ROW(B15)-1,0)) ->  | C29: =IF(ROW(B15)-1>=$C$14,"",OFFSET(INDIRECT(MID(CELL("filename",Sheet1!$A$15),FIND("]",CELL("filename",Sheet1!$A$15))+1,31)&"!"&ADDRESS(MATCH(Sheet4!$D$9,Sheet1!C:C,0)+1,3,4)),ROW(B15)-1+SUM($B$14:$B$14),0)) ->  | D29: =IF(ROW(B15)-1>=$D$14,"",OFFSET(INDIRECT(MID(CELL("filename",Sheet1!$A$15),FIND("]",CELL("filename",Sheet1!$A$15))+1,31)&"!"&ADDRESS(MATCH(Sheet4!$D$9,Sheet1!C:C,0)+1,3,4)),ROW(B15)-1+SUM($B$14:$C$14),0)) ->  | E29: =IF(ROW(B15)-1>=$E$14,"",OFFSET(INDIRECT(MID(CELL("filename",Sheet1!$A$15),FIND("]",CELL("filename",Sheet1!$A$15))+1,31)&"!"&ADDRESS(MATCH(Sheet4!$D$9,Sheet1!C:C,0)+1,3,4)),ROW(B15)-1+SUM($B$14:$D$14),0)) -> 
B30: =IF(ROW(B16)-1>=$B$14,"",OFFSET(INDIRECT(MID(CELL("filename",Sheet1!$A$15),FIND("]",CELL("filename",Sheet1!$A$15))+1,31)&"!"&ADDRESS(MATCH(Sheet4!$D$9,Sheet1!C:C,0)+1,3,4)),ROW(B16)-1,0)) ->  | C30: =IF(ROW(B16)-1>=$C$14,"",OFFSET(INDIRECT(MID(CELL("filename",Sheet1!$A$15),FIND("]",CELL("filename",Sheet1!$A$15))+1,31)&"!"&ADDRESS(MATCH(Sheet4!$D$9,Sheet1!C:C,0)+1,3,4)),ROW(B16)-1+SUM($B$14:$B$14),0)) ->  | D30: =IF(ROW(B16)-1>=$D$14,"",OFFSET(INDIRECT(MID(CELL("filename",Sheet1!$A$15),FIND("]",CELL("filename",Sheet1!$A$15))+1,31)&"!"&ADDRESS(MATCH(Sheet4!$D$9,Sheet1!C:C,0)+1,3,4)),ROW(B16)-1+SUM($B$14:$C$14),0)) ->  | E30: =IF(ROW(B16)-1>=$E$14,"",OFFSET(INDIRECT(MID(CELL("filename",Sheet1!$A$15),FIND("]",CELL("filename",Sheet1!$A$15))+1,31)&"!"&ADDRESS(MATCH(Sheet4!$D$9,Sheet1!C:C,0)+1,3,4)),ROW(B16)-1+SUM($B$14:$D$14),0)) -> 
B31: =IF(ROW(B17)-1>=$B$14,"",OFFSET(INDIRECT(MID(CELL("filename",Sheet1!$A$15),FIND("]",CELL("filename",Sheet1!$A$15))+1,31)&"!"&ADDRESS(MATCH(Sheet4!$D$9,Sheet1!C:C,0)+1,3,4)),ROW(B17)-1,0)) ->  | C31: =IF(ROW(B17)-1>=$C$14,"",OFFSET(INDIRECT(MID(CELL("filename",Sheet1!$A$15),FIND("]",CELL("filename",Sheet1!$A$15))+1,31)&"!"&ADDRESS(MATCH(Sheet4!$D$9,Sheet1!C:C,0)+1,3,4)),ROW(B17)-1+SUM($B$14:$B$14),0)) ->  | D31: =IF(ROW(B17)-1>=$D$14,"",OFFSET(INDIRECT(MID(CELL("filename",Sheet1!$A$15),FIND("]",CELL("filename",Sheet1!$A$15))+1,31)&"!"&ADDRESS(MATCH(Sheet4!$D$9,Sheet1!C:C,0)+1,3,4)),ROW(B17)-1+SUM($B$14:$C$14),0)) ->  | E31: =IF(ROW(B17)-1>=$E$14,"",OFFSET(INDIRECT(MID(CELL("filename",Sheet1!$A$15),FIND("]",CELL("filename",Sheet1!$A$15))+1,31)&"!"&ADDRESS(MATCH(Sheet4!$D$9,Sheet1!C:C,0)+1,3,4)),ROW(B17)-1+SUM($B$14:$D$14),0)) -> 
B32: =IF(ROW(B18)-1>=$B$14,"",OFFSET(INDIRECT(MID(CELL("filename",Sheet1!$A$15),FIND("]",CELL("filename",Sheet1!$A$15))+1,31)&"!"&ADDRESS(MATCH(Sheet4!$D$9,Sheet1!C:C,0)+1,3,4)),ROW(B18)-1,0)) ->  | C32: =IF(ROW(B18)-1>=$C$14,"",OFFSET(INDIRECT(MID(CELL("filename",Sheet1!$A$15),FIND("]",CELL("filename",Sheet1!$A$15))+1,31)&"!"&ADDRESS(MATCH(Sheet4!$D$9,Sheet1!C:C,0)+1,3,4)),ROW(B18)-1+SUM($B$14:$B$14),0)) ->  | D32: =IF(ROW(B18)-1>=$D$14,"",OFFSET(INDIRECT(MID(CELL("filename",Sheet1!$A$15),FIND("]",CELL("filename",Sheet1!$A$15))+1,31)&"!"&ADDRESS(MATCH(Sheet4!$D$9,Sheet1!C:C,0)+1,3,4)),ROW(B18)-1+SUM($B$14:$C$14),0)) ->  | E32: =IF(ROW(B18)-1>=$E$14,"",OFFSET(INDIRECT(MID(CELL("filename",Sheet1!$A$15),FIND("]",CELL("filename",Sheet1!$A$15))+1,31)&"!"&ADDRESS(MATCH(Sheet4!$D$9,Sheet1!C:C,0)+1,3,4)),ROW(B18)-1+SUM($B$14:$D$14),0)) -> 
B33: =IF(ROW(B19)-1>=$B$14,"",OFFSET(INDIRECT(MID(CELL("filename",Sheet1!$A$15),FIND("]",CELL("filename",Sheet1!$A$15))+1,31)&"!"&ADDRESS(MATCH(Sheet4!$D$9,Sheet1!C:C,0)+1,3,4)),ROW(B19)-1,0)) ->  | C33: =IF(ROW(B19)-1>=$C$14,"",OFFSET(INDIRECT(MID(CELL("filename",Sheet1!$A$15),FIND("]",CELL("filename",Sheet1!$A$15))+1,31)&"!"&ADDRESS(MATCH(Sheet4!$D$9,Sheet1!C:C,0)+1,3,4)),ROW(B19)-1+SUM($B$14:$B$14),0)) ->  | D33: =IF(ROW(B19)-1>=$D$14,"",OFFSET(INDIRECT(MID(CELL("filename",Sheet1!$A$15),FIND("]",CELL("filename",Sheet1!$A$15))+1,31)&"!"&ADDRESS(MATCH(Sheet4!$D$9,Sheet1!C:C,0)+1,3,4)),ROW(B19)-1+SUM($B$14:$C$14),0)) ->  | E33: =IF(ROW(B19)-1>=$E$14,"",OFFSET(INDIRECT(MID(CELL("filename",Sheet1!$A$15),FIND("]",CELL("filename",Sheet1!$A$15))+1,31)&"!"&ADDRESS(MATCH(Sheet4!$D$9,Sheet1!C:C,0)+1,3,4)),ROW(B19)-1+SUM($B$14:$D$14),0)) -> 
B34: =IF(ROW(B20)-1>=$B$14,"",OFFSET(INDIRECT(MID(CELL("filename",Sheet1!$A$15),FIND("]",CELL("filename",Sheet1!$A$15))+1,31)&"!"&ADDRESS(MATCH(Sheet4!$D$9,Sheet1!C:C,0)+1,3,4)),ROW(B20)-1,0)) ->  | C34: =IF(ROW(B20)-1>=$C$14,"",OFFSET(INDIRECT(MID(CELL("filename",Sheet1!$A$15),FIND("]",CELL("filename",Sheet1!$A$15))+1,31)&"!"&ADDRESS(MATCH(Sheet4!$D$9,Sheet1!C:C,0)+1,3,4)),ROW(B20)-1+SUM($B$14:$B$14),0)) ->  | D34: =IF(ROW(B20)-1>=$D$14,"",OFFSET(INDIRECT(MID(CELL("filename",Sheet1!$A$15),FIND("]",CELL("filename",Sheet1!$A$15))+1,31)&"!"&ADDRESS(MATCH(Sheet4!$D$9,Sheet1!C:C,0)+1,3,4)),ROW(B20)-1+SUM($B$14:$C$14),0)) ->  | E34: =IF(ROW(B20)-1>=$E$14,"",OFFSET(INDIRECT(MID(CELL("filename",Sheet1!$A$15),FIND("]",CELL("filename",Sheet1!$A$15))+1,31)&"!"&ADDRESS(MATCH(Sheet4!$D$9,Sheet1!C:C,0)+1,3,4)),ROW(B20)-1+SUM($B$14:$D$14),0)) -> 
B36: परीक्षा प्रभारी | E36: केन्द्राधीक्षक
B37: =Sheet2!$B$37 -> XYZ (Lecturer) | E37: =Sheet2!$E$37 -> XYZ (Principal)

Sheet Sheet6
B1: =Sheet2!$B$1 -> Half Yearly Examination 2024
B2: परीक्षा केंद्र नाम एवं परीक्षा केंद्र क्रमांक
B3: =Sheet2!$B$3 -> Govt Sr Sc School Malutana (216405)
B4: परीक्षा कक्ष / हॉल क्रमांक
B5: =Sheet2!$K$5 -> 05
B6: परीक्षा दिनांक (दिवस) ... से ... तक
B7: =Sheet2!$B$7 -> 14-12-2024 | C7: =IF(B7="","",TEXT(B7,"DDDD")) -> Saturday | D7: =Sheet2!$D$7 -> 24-12-2024 | E7: =IF(D7="","",TEXT(D7,"DDDD")) -> Tuesday
B8: परीक्षार्थी रोल नंबर ... से ... तक
B9: =IF(B14>0,B15,IF(C14>0,C15,IF(D14>0,D15,IF(E14>0,E15,0)))) -> 2038 | D9: =IF(E14>0,LOOKUP(2,1/(E15:E34<>""),E15:E34),IF(D14>0,LOOKUP(2,1/(D15:D34<>""),D15:D34),IF(C14>0,LOOKUP(2,1/(C15:C34<>""),C15:C34),IF(B14>0,LOOKUP(2,1/(B15:B34<>""),B15:B34),0)))) -> 159
B10: कुल सम्मिलित परीक्षार्थी
B11: =COUNTIF($B$15:$E$34,">0") -> 62
B12: परीक्षार्थी बैठक व्यवस्था
B13: पंक्ति 1 | C13: पंक्ति 2 | D13: पंक्ति 3 | E13: पंक्ति 4
B14: =Sheet2!L5 -> 14 | C14: =Sheet2!M5 -> 15 | D14: =Sheet2!N5 -> 20 | E14: =Sheet2!O5 -> 13
B15: =IF(ROW(B1)-1>=$B$14,"",OFFSET(INDIRECT(MID(CELL("filename",Sheet1!$A$15),FIND("]",CELL("filename",Sheet1!$A$15))+1,31)&"!"&ADDRESS(MATCH(Sheet5!$D$9,Sheet1!C:C,0)+1,3,4)),ROW(B1)-1,0)) -> 2038 | C15: =IF(ROW(B1)-1>=$C$14,"",OFFSET(INDIRECT(MID(CELL("filename",Sheet1!$A$15),FIND("]",CELL("filename",Sheet1!$A$15))+1,31)&"!"&ADDRESS(MATCH(Sheet5!$D$9,Sheet1!C:C,0)+1,3,4)),ROW(B1)-1+SUM($B$14:$B$14),0)) -> 1043 | D15: =IF(ROW(B1)-1>=$D$14,"",OFFSET(INDIRECT(MID(CELL("filename",Sheet1!$A$15),FIND("]",CELL("filename",Sheet1!$A$15))+1,31)&"!"&ADDRESS(MATCH(Sheet5!$D$9,Sheet1!C:C,0)+1,3,4)),ROW(B1)-1+SUM($B$14:$C$14),0)) -> 1048 | E15: =IF(ROW(B1)-1>=$E$14,"",OFFSET(INDIRECT(MID(CELL("filename",Sheet1!$A$15),FIND("]",CELL("filename",Sheet1!$A$15))+1,31)&"!"&ADDRESS(MATCH(Sheet5!$D$9,Sheet1!C:C,0)+1,3,4)),ROW(B1)-1+SUM($B$14:$D$14),0)) -> 155 | F15: =IF(SUM(B15:E15)>0,1,"") -> 1
B16: =IF(ROW(B2)-1>=$B$14,"",OFFSET(INDIRECT(MID(CELL("filename",Sheet1!$A$15),FIND("]",CELL("filename",Sheet1!$A$15))+1,31)&"!"&ADDRESS(MATCH(Sheet5!$D$9,Sheet1!C:C,0)+1,3,4)),ROW(B2)-1,0)) -> 139 | C16: =IF(ROW(B2)-1>=$C$14,"",OFFSET(INDIRECT(MID(CELL("filename",Sheet1!$A$15),FIND("]",CELL("filename",Sheet1!$A$15))+1,31)&"!"&ADDRESS(MATCH(Sheet5!$D$9,Sheet1!C:C,0)+1,3,4)),ROW(B2)-1+SUM($B$14:$B$14),0)) -> 2043 | D16: =IF(ROW(B2)-1>=$D$14,"",OFFSET(INDIRECT(MID(CELL("filename",Sheet1!$A$15),FIND("]",CELL("filename",Sheet1!$A$15))+1,31)&"!"&ADDRESS(MATCH(Sheet5!$D$9,Sheet1!C:C,0)+1,3,4)),ROW(B2)-1+SUM($B$14:$C$14),0)) -> 2048 | E16: =IF(ROW(B2)-1>=$E$14,"",OFFSET(INDIRECT(MID(CELL("filename",Sheet1!$A$15),FIND("]",CELL("filename",Sheet1!$A$15))+1,31)&"!"&ADDRESS(MATCH(Sheet5!$D$9,Sheet1!C:C,0)+1,3,4)),ROW(B2)-1+SUM($B$14:$D$14),0)) -> 1055 | F16: =IF(SUM(B16:E16)>0,1,"") -> 1
B17: =IF(ROW(B3)-1>=$B$14,"",OFFSET(INDIRECT(MID(CELL("filename",Sheet1!$A$15),FIND("]",CELL("filename",Sheet1!$A$15))+1,31)&"!"&ADDRESS(MATCH(Sheet5!$D$9,Sheet1!C:C,0)+1,3,4)),ROW(B3)-1,0)) -> 1039 | C17: =IF(ROW(B3)-1>=$C$14,"",OFFSET(INDIRECT(MID(CELL("filename",Sheet1!$A$15),FIND("]",CELL("filename",Sheet1!$A$15))+1,31)&"!"&ADDRESS(MATCH(Sheet5!$D$9,Sheet1!C:C,0)+1,3,4)),ROW(B3)-1+SUM($B$14:$B$14),0)) -> 144 | D17: =IF(ROW(B3)-1>=$D$14,"",OFFSET(INDIRECT(MID(CELL("filename",Sheet1!$A$15),FIND("]",CELL("filename",Sheet1!$A$15))+1,31)&"!"&ADDRESS(MATCH(Sheet5!$D$9,Sheet1!C:C,0)+1,3,4)),ROW(B3)-1+SUM($B$14:$C$14),0)) -> 149 | E17: =IF(ROW(B3)-1>=$E$14,"",OFFSET(INDIRECT(MID(CELL("filename",Sheet1!$A$15),FIND("]",CELL("filename",Sheet1!$A$15))+1,31)&"!"&ADDRESS(MATCH(Sheet5!$D$9,Sheet1!C:C,0)+1,3,4)),ROW(B3)-1+SUM($B$14:$D$14),0)) -> 2055 | F17: 1
B18: =IF(ROW(B4)-1>=$B$14,"",OFFSET(INDIRECT(MID(CELL("filename",Sheet1!$A$15),FIND("]",CELL("filename",Sheet1!$A$15))+1,31)&"!"&ADDRESS(MATCH(Sheet5!$D$9,Sheet1!C:C,0)+1,3,4)),ROW(B4)-1,0)) -> 2039 | C18: =IF(ROW(B4)-1>=$C$14,"",OFFSET(INDIRECT(MID(CELL("filename",Sheet1!$A$15),FIND("]",CELL("filename",Sheet1!$A$15))+1,31)&"!"&ADDRESS(MATCH(Sheet5!$D$9,Sheet1!C:C,0)+1,3,4)),ROW(B4)-1+SUM($B$14:$B$14),0)) -> 1044 | D18: =IF(ROW(B4)-1>=$D$14,"",OFFSET(INDIRECT(MID(CELL("filename",Sheet1!$A$15),FIND("]",CELL("filename",Sheet1!$A$15))+1,31)&"!"&ADDRESS(MATCH(Sheet5!$D$9,Sheet1!C:C,0)+1,3,4)),ROW(B4)-1+SUM($B$14:$C$14),0)) -> 1049 | E18: =IF(ROW(B4)-1>=$E$14,"",OFFSET(INDIRECT(MID(CELL("filename",Sheet1!$A$15),FIND("]",CELL("filename",Sheet1!$A$15))+1,31)&"!"&ADDRESS(MATCH(Sheet5!$D$9,Sheet1!C:C,0)+1,3,4)),ROW(B4)-1+SUM($B$14:$D$14),0)) -> 156 | F18: 1
B19: =IF(ROW(B5)-1>=$B$14,"",OFFSET(INDIRECT(MID(CELL("filename",Sheet1!$A$15),FIND("]",CELL("filename",Sheet1!$A$15))+1,31)&"!"&ADDRESS(MATCH(Sheet5!$D$9,Sheet1!C:C,0)+1,3,4)),ROW(B5)-1,0)) -> 140 | C19: =IF(ROW(B5)-1>=$C$14,"",OFFSET(INDIRECT(MID(CELL("filename",Sheet1!$A$15),FIND("]",CELL("filename",Sheet1!$A$15))+1,31)&"!"&ADDRESS(MATCH(Sheet5!$D$9,Sheet1!C:C,0)+1,3,4)),ROW(B5)-1+SUM($B$14:$B$14),0)) -> 2044 | D19: =IF(ROW(B5)-1>=$D$14,"",OFFSET(INDIRECT(MID(CELL("filename",Sheet1!$A$15),FIND("]",CELL("filename",Sheet1!$A$15))+1,31)&"!"&ADDRESS(MATCH(Sheet5!$D$9,Sheet1!C:C,0)+1,3,4)),ROW(B5)-1+SUM($B$14:$C$14),0)) -> 2049 | E19: =IF(ROW(B5)-1>=$E$14,"",OFFSET(INDIRECT(MID(CELL("filename",Sheet1!$A$15),FIND("]",CELL("filename",Sheet1!$A$15))+1,31)&"!"&ADDRESS(MATCH(Sheet5!$D$9,Sheet1!C:C,0)+1,3,4)),ROW(B5)-1+SUM($B$14:$D$14),0)) -> 1056 | F19: 1
B20: =IF(ROW(B6)-1>=$B$14,"",OFFSET(INDIRECT(MID(CELL("filename",Sheet1!$A$15),FIND("]",CELL("filename",Sheet1!$A$15))+1,31)&"!"&ADDRESS(MATCH(Sheet5!$D$9,Sheet1!C:C,0)+1,3,4)),ROW(B6)-1,0)) -> 1040 | C20: =IF(ROW(B6)-1>=$C$14,"",OFFSET(INDIRECT(MID(CELL("filename",Sheet1!$A$15),FIND("]",CELL("filename",Sheet1!$A$15))+1,31)&"!"&ADDRESS(MATCH(Sheet5!$D$9,Sheet1!C:C,0)+1,3,4)),ROW(B6)-1+SUM($B$14:$B$14),0)) -> 145 | D20: =IF(ROW(B6)-1>=$D$14,"",OFFSET(INDIRECT(MID(CELL("filename",Sheet1!$A$15),FIND("]",CELL("filename",Sheet1!$A$15))+1,31)&"!"&ADDRESS(MATCH(Sheet5!$D$9,Sheet1!C:C,0)+1,3,4)),ROW(B6)-1+SUM($B$14:$C$14),0)) -> 150 | E20: =IF(ROW(B6)-1>=$E$14,"",OFFSET(INDIRECT(MID(CELL("filename",Sheet1!$A$15),FIND("]",CELL("filename",Sheet1!$A$15))+1,31)&"!"&ADDRESS(MATCH(Sheet5!$D$9,Sheet1!C:C,0)+1,3,4)),ROW(B6)-1+SUM($B$14:$D$14),0)) -> 2056 | F20: 1
B21: =IF(ROW(B7)-1>=$B$14,"",OFFSET(INDIRECT(MID(CELL("filename",Sheet1!$A$15),FIND("]",CELL("filename",Sheet1!$A$15))+1,31)&"!"&ADDRESS(MATCH(Sheet5!$D$9,Sheet1!C:C,0)+1,3,4)),ROW(B7)-1,0)) -> 2040 | C21: =IF(ROW(B7)-1>=$C$14,"",OFFSET(INDIRECT(MID(CELL("filename",Sheet1!$A$15),FIND("]",CELL("filename",Sheet1!$A$15))+1,31)&"!"&ADDRESS(MATCH(Sheet5!$D$9,Sheet1!C:C,0)+1,3,4)),ROW(B7)-1+SUM($B$14:$B$14),0)) -> 1045 | D21: =IF(ROW(B7)-1>=$D$14,"",OFFSET(INDIRECT(MID(CELL("filename",Sheet1!$A$15),FIND("]",CELL("filename",Sheet1!$A$15))+1,31)&"!"&ADDRESS(MATCH(Sheet5!$D$9,Sheet1!C:C,0)+1,3,4)),ROW(B7)-1+SUM($B$14:$C$14),0)) -> 1050 | E21: =IF(ROW(B7)-1>=$E$14,"",OFFSET(INDIRECT(MID(CELL("filename",Sheet1!$A$15),FIND("]",CELL("filename",Sheet1!$A$15))+1,31)&"!"&ADDRESS(MATCH(Sheet5!$D$9,Sheet1!C:C,0)+1,3,4)),ROW(B7)-1+SUM($B$14:$D$14),0)) -> 157 | F21: 1
B22: =IF(ROW(B8)-1>=$B$14,"",OFFSET(INDIRECT(MID(CELL("filename",Sheet1!$A$15),FIND("]",CELL("filename",Sheet1!$A$15))+1,31)&"!"&ADDRESS(MATCH(Sheet5!$D$9,Sheet1!C:C,0)+1,3,4)),ROW(B8)-1,0)) -> 141 | C22: =IF(ROW(B8)-1>=$C$14,"",OFFSET(INDIRECT(MID(CELL("filename",Sheet1!$A$15),FIND("]",CELL("filename",Sheet1!$A$15))+1,31)&"!"&ADDRESS(MATCH(Sheet5!$D$9,Sheet1!C:C,0)+1,3,4)),ROW(B8)-1+SUM($B$14:$B$14),0)) -> 2045 | D22: =IF(ROW(B8)-1>=$D$14,"",OFFSET(INDIRECT(MID(CELL("filename",Sheet1!$A$15),FIND("]",CELL("filename",Sheet1!$A$15))+1,31)&"!"&ADDRESS(MATCH(Sheet5!$D$9,Sheet1!C:C,0)+1,3,4)),ROW(B8)-1+SUM($B$14:$C$14),0)) -> 2050 | E22: =IF(ROW(B8)-1>=$E$14,"",OFFSET(INDIRECT(MID(CELL("filename",Sheet1!$A$15),FIND("]",CELL("filename",Sheet1!$A$15))+1,31)&"!"&ADDRESS(MATCH(Sheet5!$D$9,Sheet1!C:C,0)+1,3,4)),ROW(B8)-1+SUM($B$14:$D$14),0)) -> 1057 | F22: 1
B23: =IF(ROW(B9)-1>=$B$14,"",OFFSET(INDIRECT(MID(CELL("filename",Sheet1!$A$15),FIND("]",CELL("filename",Sheet1!$A$15))+1,31)&"!"&ADDRESS(MATCH(Sheet5!$D$9,Sheet1!C:C,0)+1,3,4)),ROW(B9)-1,0)) -> 1041 | C23: =IF(ROW(B9)-1>=$C$14,"",OFFSET(INDIRECT(MID(CELL("filename",Sheet1!$A$15),FIND("]",CELL("filename",Sheet1!$A$15))+1,31)&"!"&ADDRESS(MATCH(Sheet5!$D$9,Sheet1!C:C,0)+1,3,4)),ROW(B9)-1+SUM($B$14:$B$14),0)) -> 146 | D23: =IF(ROW(B9)-1>=$D$14,"",OFFSET(INDIRECT(MID(CELL("filename",Sheet1!$A$15),FIND("]",CELL("filename",Sheet1!$A$15))+1,31)&"!"&ADDRESS(MATCH(Sheet5!$D$9,Sheet1!C:C,0)+1,3,4)),ROW(B9)-1+SUM($B$14:$C$14),0)) -> 151 | E23: =IF(ROW(B9)-1>=$E$14,"",OFFSET(INDIRECT(MID(CELL("filename",Sheet1!$A$15),FIND("]",CELL("filename",Sheet1!$A$15))+1,31)&"!"&ADDRESS(MATCH(Sheet5!$D$9,Sheet1!C:C,0)+1,3,4)),ROW(B9)-1+SUM($B$14:$D$14),0)) -> 2057 | F23: 1
B24: =IF(ROW(B10)-1>=$B$14,"",OFFSET(INDIRECT(MID(CELL("filename",Sheet1!$A$15),FIND("]",CELL("filename",Sheet1!$A$15))+1,31)&"!"&ADDRESS(MATCH(Sheet5!$D$9,Sheet1!C:C,0)+1,3,4)),ROW(B10)-1,0)) -> 2041 | C24: =IF(ROW(B10)-1>=$C$14,"",OFFSET(INDIRECT(MID(CELL("filename",Sheet1!$A$15),FIND("]",CELL("filename",Sheet1!$A$15))+1,31)&"!"&ADDRESS(MATCH(Sheet5!$D$9,Sheet1!C:C,0)+1,3,4)),ROW(B10)-1+SUM($B$14:$B$14),0)) -> 1046 | D24: =IF(ROW(B10)-1>=$D$14,"",OFFSET(INDIRECT(MID(CELL("filename",Sheet1!$A$15),FIND("]",CELL("filename",Sheet1!$A$15))+1,31)&"!"&ADDRESS(MATCH(Sheet5!$D$9,Sheet1!C:C,0)+1,3,4)),ROW(B10)-1+SUM($B$14:$C$14),0)) -> 1051 | E24: =IF(ROW(B10)-1>=$E$14,"",OFFSET(INDIRECT(MID(CELL("filename",Sheet1!$A$15),FIND("]",CELL("filename",Sheet1!$A$15))+1,31)&"!"&ADDRESS(MATCH(Sheet5!$D$9,Sheet1!C:C,0)+1,3,4)),ROW(B10)-1+SUM($B$14:$D$14),0)) -> 158 | F24: 1
B25: =IF(ROW(B11)-1>=$B$14,"",OFFSET(INDIRECT(MID(CELL("filename",Sheet1!$A$15),FIND("]",CELL("filename",Sheet1!$A$15))+1,31)&"!"&ADDRESS(MATCH(Sheet5!$D$9,Sheet1!C:C,0)+1,3,4)),ROW(B11)-1,0)) -> 142 | C25: =IF(ROW(B11)-1>=$C$14,"",OFFSET(INDIRECT(MID(CELL("filename",Sheet1!$A$15),FIND("]",CELL("filename",Sheet1!$A$15))+1,31)&"!"&ADDRESS(MATCH(Sheet5!$D$9,Sheet1!C:C,0)+1,3,4)),ROW(B11)-1+SUM($B$14:$B$14),0)) -> 2046 | D25: =IF(ROW(B11)-1>=$D$14,"",OFFSET(INDIRECT(MID(CELL("filename",Sheet1!$A$15),FIND("]",CELL("filename",Sheet1!$A$15))+1,31)&"!"&ADDRESS(MATCH(Sheet5!$D$9,Sheet1!C:C,0)+1,3,4)),ROW(B11)-1+SUM($B$14:$C$14),0)) -> 2051 | E25: =IF(ROW(B11)-1>=$E$14,"",OFFSET(INDIRECT(MID(CELL("filename",Sheet1!$A$15),FIND("]",CELL("filename",Sheet1!$A$15))+1,31)&"!"&ADDRESS(MATCH(Sheet5!$D$9,Sheet1!C:C,0)+1,3,4)),ROW(B11)-1+SUM($B$14:$D$14),0)) -> 1058 | F25: 1
B26: =IF(ROW(B12)-1>=$B$14,"",OFFSET(INDIRECT(MID(CELL("filename",Sheet1!$A$15),FIND("]",CELL("filename",Sheet1!$A$15))+1,31)&"!"&ADDRESS(MATCH(Sheet5!$D$9,Sheet1!C:C,0)+1,3,4)),ROW(B12)-1,0)) -> 1042 | C26: =IF(ROW(B12)-1>=$C$14,"",OFFSET(INDIRECT(MID(CELL("filename",Sheet1!$A$15),FIND("]",CELL("filename",Sheet1!$A$15))+1,31)&"!"&ADDRESS(MATCH(Sheet5!$D$9,Sheet1!C:C,0)+1,3,4)),ROW(B12)-1+SUM($B$14:$B$14),0)) -> 147 | D26: =IF(ROW(B12)-1>=$D$14,"",OFFSET(INDIRECT(MID(CELL("filename",Sheet1!$A$15),FIND("]",CELL("filename",Sheet1!$A$15))+1,31)&"!"&ADDRESS(MATCH(Sheet5!$D$9,Sheet1!C:C,0)+1,3,4)),ROW(B12)-1+SUM($B$14:$C$14),0)) -> 152 | E26: =IF(ROW(B12)-1>=$E$14,"",OFFSET(INDIRECT(MID(CELL("filename",Sheet1!$A$15),FIND("]",CELL("filename",Sheet1!$A$15))+1,31)&"!"&ADDRESS(MATCH(Sheet5!$D$9,Sheet1!C:C,0)+1,3,4)),ROW(B12)-1+SUM($B$14:$D$14),0)) -> 2058 | F26: 1
B27: =IF(ROW(B13)-1>=$B$14,"",OFFSET(INDIRECT(MID(CELL("filename",Sheet1!$A$15),FIND("]",CELL("filename",Sheet1!$A$15))+1,31)&"!"&ADDRESS(MATCH(Sheet5!$D$9,Sheet1!C:C,0)+1,3,4)),ROW(B13)-1,0)) -> 2042 | C27: =IF(ROW(B13)-1>=$C$14,"",OFFSET(INDIRECT(MID(CELL("filename",Sheet1!$A$15),FIND("]",CELL("filename",Sheet1!$A$15))+1,31)&"!"&ADDRESS(MATCH(Sheet5!$D$9,Sheet1!C:C,0)+1,3,4)),ROW(B13)-1+SUM($B$14:$B$14),0)) -> 1047 | D27: =IF(ROW(B13)-1>=$D$14,"",OFFSET(INDIRECT(MID(CELL("filename",Sheet1!$A$15),FIND("]",CELL("filename",Sheet1!$A$15))+1,31)&"!"&ADDRESS(MATCH(Sheet5!$D$9,Sheet1!C:C,0)+1,3,4)),ROW(B13)-1+SUM($B$14:$C$14),0)) -> 1052 | E27: =IF(ROW(B13)-1>=$E$14,"",OFFSET(INDIRECT(MID(CELL("filename",Sheet1!$A$15),FIND("]",CELL("filename",Sheet1!$A$15))+1,31)&"!"&ADDRESS(MATCH(Sheet5!$D$9,Sheet1!C:C,0)+1,3,4)),ROW(B13)-1+SUM($B$14:$D$14),0)) -> 159 | F27: 1
B28: =IF(ROW(B14)-1>=$B$14,"",OFFSET(INDIRECT(MID(CELL("filename",Sheet1!$A$15),FIND("]",CELL("filename",Sheet1!$A$15))+1,31)&"!"&ADDRESS(MATCH(Sheet5!$D$9,Sheet1!C:C,0)+1,3,4)),ROW(B14)-1,0)) -> 143 | C28: =IF(ROW(B14)-1>=$C$14,"",OFFSET(INDIRECT(MID(CELL("filename",Sheet1!$A$15),FIND("]",CELL("filename",Sheet1!$A$15))+1,31)&"!"&ADDRESS(MATCH(Sheet5!$D$9,Sheet1!C:C,0)+1,3,4)),ROW(B14)-1+SUM($B$14:$B$14),0)) -> 2047 | D28: =IF(ROW(B14)-1>=$D$14,"",OFFSET(INDIRECT(MID(CELL("filename",Sheet1!$A$15),FIND("]",CELL("filename",Sheet1!$A$15))+1,31)&"!"&ADDRESS(MATCH(Sheet5!$D$9,Sheet1!C:C,0)+1,3,4)),ROW(B14)-1+SUM($B$14:$C$14),0)) -> 2052 | E28: =IF(ROW(B14)-1>=$E$14,"",OFFSET(INDIRECT(MID(CELL("filename",Sheet1!$A$15),FIND("]",CELL("filename",Sheet1!$A$15))+1,31)&"!"&ADDRESS(MATCH(Sheet5!$D$9,Sheet1!C:C,0)+1,3,4)),ROW(B14)-1+SUM($B$14:$D$14),0)) ->  | F28: 1
B29: =IF(ROW(B15)-1>=$B$14,"",OFFSET(INDIRECT(MID(CELL("filename",Sheet1!$A$15),FIND("]",CELL("filename",Sheet1!$A$15))+1,31)&"!"&ADDRESS(MATCH(Sheet5!$D$9,Sheet1!C:C,0)+1,3,4)),ROW(B15)-1,0)) ->  | C29: =IF(ROW(B15)-1>=$C$14,"",OFFSET(INDIRECT(MID(CELL("filename",Sheet1!$A$15),FIND("]",CELL("filename",Sheet1!$A$15))+1,31)&"!"&ADDRESS(MATCH(Sheet5!$D$9,Sheet1!C:C,0)+1,3,4)),ROW(B15)-1+SUM($B$14:$B$14),0)) -> 148 | D29: =IF(ROW(B15)-1>=$D$14,"",OFFSET(INDIRECT(MID(CELL("filename",Sheet1!$A$15),FIND("]",CELL("filename",Sheet1!$A$15))+1,31)&"!"&ADDRESS(MATCH(Sheet5!$D$9,Sheet1!C:C,0)+1,3,4)),ROW(B15)-1+SUM($B$14:$C$14),0)) -> 153 | E29: =IF(ROW(B15)-1>=$E$14,"",OFFSET(INDIRECT(MID(CELL("filename",Sheet1!$A$15),FIND("]",CELL("filename",Sheet1!$A$15))+1,31)&"!"&ADDRESS(MATCH(Sheet5!$D$9,Sheet1!C:C,0)+1,3,4)),ROW(B15)-1+SUM($B$14:$D$14),0)) ->  | F29: 1
B30: =IF(ROW(B16)-1>=$B$14,"",OFFSET(INDIRECT(MID(CELL("filename",Sheet1!$A$15),FIND("]",CELL("filename",Sheet1!$A$15))+1,31)&"!"&ADDRESS(MATCH(Sheet5!$D$9,Sheet1!C:C,0)+1,3,4)),ROW(B16)-1,0)) ->  | C30: =IF(ROW(B16)-1>=$C$14,"",OFFSET(INDIRECT(MID(CELL("filename",Sheet1!$A$15),FIND("]",CELL("filename",Sheet1!$A$15))+1,31)&"!"&ADDRESS(MATCH(Sheet5!$D$9,Sheet1!C:C,0)+1,3,4)),ROW(B16)-1+SUM($B$14:$B$14),0)) ->  | D30: =IF(ROW(B16)-1>=$D$14,"",OFFSET(INDIRECT(MID(CELL("filename",Sheet1!$A$15),FIND("]",CELL("filename",Sheet1!$A$15))+1,31)&"!"&ADDRESS(MATCH(Sheet5!$D$9,Sheet1!C:C,0)+1,3,4)),ROW(B16)-1+SUM($B$14:$C$14),0)) -> 1053 | E30: =IF(ROW(B16)-1>=$E$14,"",OFFSET(INDIRECT(MID(CELL("filename",Sheet1!$A$15),FIND("]",CELL("filename",Sheet1!$A$15))+1,31)&"!"&ADDRESS(MATCH(Sheet5!$D$9,Sheet1!C:C,0)+1,3,4)),ROW(B16)-1+SUM($B$14:$D$14),0)) ->  | F30: 1
B31: =IF(ROW(B17)-1>=$B$14,"",OFFSET(INDIRECT(MID(CELL("filename",Sheet1!$A$15),FIND("]",CELL("filename",Sheet1!$A$15))+1,31)&"!"&ADDRESS(MATCH(Sheet5!$D$9,Sheet1!C:C,0)+1,3,4)),ROW(B17)-1,0)) ->  | C31: =IF(ROW(B17)-1>=$C$14,"",OFFSET(INDIRECT(MID(CELL("filename",Sheet1!$A$15),FIND("]",CELL("filename",Sheet1!$A$15))+1,31)&"!"&ADDRESS(MATCH(Sheet5!$D$9,Sheet1!C:C,0)+1,3,4)),ROW(B17)-1+SUM($B$14:$B$14),0)) ->  | D31: =IF(ROW(B17)-1>=$D$14,"",OFFSET(INDIRECT(MID(CELL("filename",Sheet1!$A$15),FIND("]",CELL("filename",Sheet1!$A$15))+1,31)&"!"&ADDRESS(MATCH(Sheet5!$D$9,Sheet1!C:C,0)+1,3,4)),ROW(B17)-1+SUM($B$14:$C$14),0)) -> 2053 | E31: =IF(ROW(B17)-1>=$E$14,"",OFFSET(INDIRECT(MID(CELL("filename",Sheet1!$A$15),FIND("]",CELL("filename",Sheet1!$A$15))+1,31)&"!"&ADDRESS(MATCH(Sheet5!$D$9,Sheet1!C:C,0)+1,3,4)),ROW(B17)-1+SUM($B$14:$D$14),0)) ->  | F31: 1
B32: =IF(ROW(B18)-1>=$B$14,"",OFFSET(INDIRECT(MID(CELL("filename",Sheet1!$A$15),FIND("]",CELL("filename",Sheet1!$A$15))+1,31)&"!"&ADDRESS(MATCH(Sheet5!$D$9,Sheet1!C:C,0)+1,3,4)),ROW(B18)-1,0)) ->  | C32: =IF(ROW(B18)-1>=$C$14,"",OFFSET(INDIRECT(MID(CELL("filename",Sheet1!$A$15),FIND("]",CELL("filename",Sheet1!$A$15))+1,31)&"!"&ADDRESS(MATCH(Sheet5!$D$9,Sheet1!C:C,0)+1,3,4)),ROW(B18)-1+SUM($B$14:$B$14),0)) ->  | D32: =IF(ROW(B18)-1>=$D$14,"",OFFSET(INDIRECT(MID(CELL("filename",Sheet1!$A$15),FIND("]",CELL("filename",Sheet1!$A$15))+1,31)&"!"&ADDRESS(MATCH(Sheet5!$D$9,Sheet1!C:C,0)+1,3,4)),ROW(B18)-1+SUM($B$14:$C$14),0)) -> 154 | E32: =IF(ROW(B18)-1>=$E$14,"",OFFSET(INDIRECT(MID(CELL("filename",Sheet1!$A$15),FIND("]",CELL("filename",Sheet1!$A$15))+1,31)&"!"&ADDRESS(MATCH(Sheet5!$D$9,Sheet1!C:C,0)+1,3,4)),ROW(B18)-1+SUM($B$14:$D$14),0)) ->  | F32: 1
B33: =IF(ROW(B19)-1>=$B$14,"",OFFSET(INDIRECT(MID(CELL("filename",Sheet1!$A$15),FIND("]",CELL("filename",Sheet1!$A$15))+1,31)&"!"&ADDRESS(MATCH(Sheet5!$D$9,Sheet1!C:C,0)+1,3,4)),ROW(B19)-1,0)) ->  | C33: =IF(ROW(B19)-1>=$C$14,"",OFFSET(INDIRECT(MID(CELL("filename",Sheet1!$A$15),FIND("]",CELL("filename",Sheet1!$A$15))+1,31)&"!"&ADDRESS(MATCH(Sheet5!$D$9,Sheet1!C:C,0)+1,3,4)),ROW(B19)-1+SUM($B$14:$B$14),0)) ->  | D33: =IF(ROW(B19)-1>=$D$14,"",OFFSET(INDIRECT(MID(CELL("filename",Sheet1!$A$15),FIND("]",CELL("filename",Sheet1!$A$15))+1,31)&"!"&ADDRESS(MATCH(Sheet5!$D$9,Sheet1!C:C,0)+1,3,4)),ROW(B19)-1+SUM($B$14:$C$14),0)) -> 1054 | E33: =IF(ROW(B19)-1>=$E$14,"",OFFSET(INDIRECT(MID(CELL("filename",Sheet1!$A$15),FIND("]",CELL("filename",Sheet1!$A$15))+1,31)&"!"&ADDRESS(MATCH(Sheet5!$D$9,Sheet1!C:C,0)+1,3,4)),ROW(B19)-1+SUM($B$14:$D$14),0)) ->  | F33: 1
B34: =IF(ROW(B20)-1>=$B$14,"",OFFSET(INDIRECT(MID(CELL("filename",Sheet1!$A$15),FIND("]",CELL("filename",Sheet1!$A$15))+1,31)&"!"&ADDRESS(MATCH(Sheet5!$D$9,Sheet1!C:C,0)+1,3,4)),ROW(B20)-1,0)) ->  | C34: =IF(ROW(B20)-1>=$C$14,"",OFFSET(INDIRECT(MID(CELL("filename",Sheet1!$A$15),FIND("]",CELL("filename",Sheet1!$A$15))+1,31)&"!"&ADDRESS(MATCH(Sheet5!$D$9,Sheet1!C:C,0)+1,3,4)),ROW(B20)-1+SUM($B$14:$B$14),0)) ->  | D34: =IF(ROW(B20)-1>=$D$14,"",OFFSET(INDIRECT(MID(CELL("filename",Sheet1!$A$15),FIND("]",CELL("filename",Sheet1!$A$15))+1,31)&"!"&ADDRESS(MATCH(Sheet5!$D$9,Sheet1!C:C,0)+1,3,4)),ROW(B20)-1+SUM($B$14:$C$14),0)) -> 2054 | E34: =IF(ROW(B20)-1>=$E$14,"",OFFSET(INDIRECT(MID(CELL("filename",Sheet1!$A$15),FIND("]",CELL("filename",Sheet1!$A$15))+1,31)&"!"&ADDRESS(MATCH(Sheet5!$D$9,Sheet1!C:C,0)+1,3,4)),ROW(B20)-1+SUM($B$14:$D$14),0)) ->  | F34: 1
B36: परीक्षा प्रभारी | E36: केन्द्राधीक्षक
B37: =Sheet2!$B$37 -> XYZ (Lecturer) | E37: =Sheet2!$E$37 -> XYZ (Principal)

Sheet Sheet7
B1: =Sheet2!$B$1 -> Half Yearly Examination 2024
B2: परीक्षा केंद्र नाम एवं परीक्षा केंद्र क्रमांक
B3: =Sheet2!$B$3 -> Govt Sr Sc School Malutana (216405)
B4: परीक्षा कक्ष / हॉल क्रमांक
B5: =Sheet2!$K$6 -> 06
B6: परीक्षा दिनांक (दिवस) ... से ... तक
B7: =Sheet2!$B$7 -> 14-12-2024 | C7: =IF(B7="","",TEXT(B7,"DDDD")) -> Saturday | D7: =Sheet2!$D$7 -> 24-12-2024 | E7: =IF(D7="","",TEXT(D7,"DDDD")) -> Tuesday
B8: परीक्षार्थी रोल नंबर ... से ... तक
B9: =IF(B14>0,B15,IF(C14>0,C15,IF(D14>0,D15,IF(E14>0,E15,0)))) -> 1059 | D9: =IF(E14>0,LOOKUP(2,1/(E15:E34<>""),E15:E34),IF(D14>0,LOOKUP(2,1/(D15:D34<>""),D15:D34),IF(C14>0,LOOKUP(2,1/(C15:C34<>""),C15:C34),IF(B14>0,LOOKUP(2,1/(B15:B34<>""),B15:B34),0)))) -> 2082
B10: कुल सम्मिलित परीक्षार्थी
B11: =COUNTIF($B$15:$E$34,">0") -> 70
B12: परीक्षार्थी बैठक व्यवस्था
B13: पंक्ति 1 | C13: पंक्ति 2 | D13: पंक्ति 3 | E13: पंक्ति 4
B14: =Sheet2!L6 -> 21 | C14: =Sheet2!M6 -> 20 | D14: =Sheet2!N6 -> 10 | E14: =Sheet2!O6 -> 20
B15: =IF(ROW(B1)-1>=$B$14,"",OFFSET(INDIRECT(MID(CELL("filename",Sheet1!$A$15),FIND("]",CELL("filename",Sheet1!$A$15))+1,31)&"!"&ADDRESS(MATCH(Sheet6!$D$9,Sheet1!C:C,0)+1,3,4)),ROW(B1)-1,0)) -> 1059 | C15: =IF(ROW(B1)-1>=$C$14,"",OFFSET(INDIRECT(MID(CELL("filename",Sheet1!$A$15),FIND("]",CELL("filename",Sheet1!$A$15))+1,31)&"!"&ADDRESS(MATCH(Sheet6!$D$9,Sheet1!C:C,0)+1,3,4)),ROW(B1)-1+SUM($B$14:$B$14),0)) -> 1066 | D15: =IF(ROW(B1)-1>=$D$14,"",OFFSET(INDIRECT(MID(CELL("filename",Sheet1!$A$15),FIND("]",CELL("filename",Sheet1!$A$15))+1,31)&"!"&ADDRESS(MATCH(Sheet6!$D$9,Sheet1!C:C,0)+1,3,4)),ROW(B1)-1+SUM($B$14:$C$14),0)) -> 173 | E15: =IF(ROW(B1)-1>=$E$14,"",OFFSET(INDIRECT(MID(CELL("filename",Sheet1!$A$15),FIND("]",CELL("filename",Sheet1!$A$15))+1,31)&"!"&ADDRESS(MATCH(Sheet6!$D$9,Sheet1!C:C,0)+1,3,4)),ROW(B1)-1+SUM($B$14:$D$14),0)) -> 1076 | F15: =IF(SUM(B15:E15)>0,1,"") -> 1
B16: =IF(ROW(B2)-1>=$B$14,"",OFFSET(INDIRECT(MID(CELL("filename",Sheet1!$A$15),FIND("]",CELL("filename",Sheet1!$A$15))+1,31)&"!"&ADDRESS(MATCH(Sheet6!$D$9,Sheet1!C:C,0)+1,3,4)),ROW(B2)-1,0)) -> 2059 | C16: =IF(ROW(B2)-1>=$C$14,"",OFFSET(INDIRECT(MID(CELL("filename",Sheet1!$A$15),FIND("]",CELL("filename",Sheet1!$A$15))+1,31)&"!"&ADDRESS(MATCH(Sheet6!$D$9,Sheet1!C:C,0)+1,3,4)),ROW(B2)-1+SUM($B$14:$B$14),0)) -> 2066 | D16: =IF(ROW(B2)-1>=$D$14,"",OFFSET(INDIRECT(MID(CELL("filename",Sheet1!$A$15),FIND("]",CELL("filename",Sheet1!$A$15))+1,31)&"!"&ADDRESS(MATCH(Sheet6!$D$9,Sheet1!C:C,0)+1,3,4)),ROW(B2)-1+SUM($B$14:$C$14),0)) -> 1073 | E16: =IF(ROW(B2)-1>=$E$14,"",OFFSET(INDIRECT(MID(CELL("filename",Sheet1!$A$15),FIND("]",CELL("filename",Sheet1!$A$15))+1,31)&"!"&ADDRESS(MATCH(Sheet6!$D$9,Sheet1!C:C,0)+1,3,4)),ROW(B2)-1+SUM($B$14:$D$14),0)) -> 2076 | F16: =IF(SUM(B16:E16)>0,1,"") -> 1
B17: =IF(ROW(B3)-1>=$B$14,"",OFFSET(INDIRECT(MID(CELL("filename",Sheet1!$A$15),FIND("]",CELL("filename",Sheet1!$A$15))+1,31)&"!"&ADDRESS(MATCH(Sheet6!$D$9,Sheet1!C:C,0)+1,3,4)),ROW(B3)-1,0)) -> 160 | C17: =IF(ROW(B3)-1>=$C$14,"",OFFSET(INDIRECT(MID(CELL("filename",Sheet1!$A$15),FIND("]",CELL("filename",Sheet1!$A$15))+1,31)&"!"&ADDRESS(MATCH(Sheet6!$D$9,Sheet1!C:C,0)+1,3,4)),ROW(B3)-1+SUM($B$14:$B$14),0)) -> 167 | D17: =IF(ROW(B3)-1>=$D$14,"",OFFSET(INDIRECT(MID(CELL("filename",Sheet1!$A$15),FIND("]",CELL("filename",Sheet1!$A$15))+1,31)&"!"&ADDRESS(MATCH(Sheet6!$D$9,Sheet1!C:C,0)+1,3,4)),ROW(B3)-1+SUM($B$14:$C$14),0)) -> 2073 | E17: =IF(ROW(B3)-1>=$E$14,"",OFFSET(INDIRECT(MID(CELL("filename",Sheet1!$A$15),FIND("]",CELL("filename",Sheet1!$A$15))+1,31)&"!"&ADDRESS(MATCH(Sheet6!$D$9,Sheet1!C:C,0)+1,3,4)),ROW(B3)-1+SUM($B$14:$D$14),0)) -> 177 | F17: 1
B18: =IF(ROW(B4)-1>=$B$14,"",OFFSET(INDIRECT(MID(CELL("filename",Sheet1!$A$15),FIND("]",CELL("filename",Sheet1!$A$15))+1,31)&"!"&ADDRESS(MATCH(Sheet6!$D$9,Sheet1!C:C,0)+1,3,4)),ROW(B4)-1,0)) -> 1060 | C18: =IF(ROW(B4)-1>=$C$14,"",OFFSET(INDIRECT(MID(CELL("filename",Sheet1!$A$15),FIND("]",CELL("filename",Sheet1!$A$15))+1,31)&"!"&ADDRESS(MATCH(Sheet6!$D$9,Sheet1!C:C,0)+1,3,4)),ROW(B4)-1+SUM($B$14:$B$14),0)) -> 1067 | D18: =IF(ROW(B4)-1>=$D$14,"",OFFSET(INDIRECT(MID(CELL("filename",Sheet1!$A$15),FIND("]",CELL("filename",Sheet1!$A$15))+1,31)&"!"&ADDRESS(MATCH(Sheet6!$D$9,Sheet1!C:C,0)+1,3,4)),ROW(B4)-1+SUM($B$14:$C$14),0)) -> 174 | E18: =IF(ROW(B4)-1>=$E$14,"",OFFSET(INDIRECT(MID(CELL("filename",Sheet1!$A$15),FIND("]",CELL("filename",Sheet1!$A$15))+1,31)&"!"&ADDRESS(MATCH(Sheet6!$D$9,Sheet1!C:C,0)+1,3,4)),ROW(B4)-1+SUM($B$14:$D$14),0)) -> 1077 | F18: 1
B19: =IF(ROW(B5)-1>=$B$14,"",OFFSET(INDIRECT(MID(CELL("filename",Sheet1!$A$15),FIND("]",CELL("filename",Sheet1!$A$15))+1,31)&"!"&ADDRESS(MATCH(Sheet6!$D$9,Sheet1!C:C,0)+1,3,4)),ROW(B5)-1,0)) -> 2060 | C19: =IF(ROW(B5)-1>=$C$14,"",OFFSET(INDIRECT(MID(CELL("filename",Sheet1!$A$15),FIND("]",CELL("filename",Sheet1!$A$15))+1,31)&"!"&ADDRESS(MATCH(Sheet6!$D$9,Sheet1!C:C,0)+1,3,4)),ROW(B5)-1+SUM($B$14:$B$14),0)) -> 2067 | D19: =IF(ROW(B5)-1>=$D$14,"",OFFSET(INDIRECT(MID(CELL("filename",Sheet1!$A$15),FIND("]",CELL("filename",Sheet1!$A$15))+1,31)&"!"&ADDRESS(MATCH(Sheet6!$D$9,Sheet1!C:C,0)+1,3,4)),ROW(B5)-1+SUM($B$14:$C$14),0)) -> 1074 | E19: =IF(ROW(B5)-1>=$E$14,"",OFFSET(INDIRECT(MID(CELL("filename",Sheet1!$A$15),FIND("]",CELL("filename",Sheet1!$A$15))+1,31)&"!"&ADDRESS(MATCH(Sheet6!$D$9,Sheet1!C:C,0)+1,3,4)),ROW(B5)-1+SUM($B$14:$D$14),0)) -> 2077 | F19: 1
B20: =IF(ROW(B6)-1>=$B$14,"",OFFSET(INDIRECT(MID(CELL("filename",Sheet1!$A$15),FIND("]",CELL("filename",Sheet1!$A$15))+1,31)&"!"&ADDRESS(MATCH(Sheet6!$D$9,Sheet1!C:C,0)+1,3,4)),ROW(B6)-1,0)) -> 161 | C20: =IF(ROW(B6)-1>=$C$14,"",OFFSET(INDIRECT(MID(CELL("filename",Sheet1!$A$15),FIND("]",CELL("filename",Sheet1!$A$15))+1,31)&"!"&ADDRESS(MATCH(Sheet6!$D$9,Sheet1!C:C,0)+1,3,4)),ROW(B6)-1+SUM($B$14:$B$14),0)) -> 168 | D20: =IF(ROW(B6)-1>=$D$14,"",OFFSET(INDIRECT(MID(CELL("filename",Sheet1!$A$15),FIND("]",CELL("filename",Sheet1!$A$15))+1,31)&"!"&ADDRESS(MATCH(Sheet6!$D$9,Sheet1!C:C,0)+1,3,4)),ROW(B6)-1+SUM($B$14:$C$14),0)) -> 2074 | E20: =IF(ROW(B6)-1>=$E$14,"",OFFSET(INDIRECT(MID(CELL("filename",Sheet1!$A$15),FIND("]",CELL("filename",Sheet1!$A$15))+1,31)&"!"&ADDRESS(MATCH(Sheet6!$D$9,Sheet1!C:C,0)+1,3,4)),ROW(B6)-1+SUM($B$14:$D$14),0)) -> 178 | F20: 1
B21: =IF(ROW(B7)-1>=$B$14,"",OFFSET(INDIRECT(MID(CELL("filename",Sheet1!$A$15),FIND("]",CELL("filename",Sheet1!$A$15))+1,31)&"!"&ADDRESS(MATCH(Sheet6!$D$9,Sheet1!C:C,0)+1,3,4)),ROW(B7)-1,0)) -> 1061 | C21: =IF(ROW(B7)-1>=$C$14,"",OFFSET(INDIRECT(MID(CELL("filename",Sheet1!$A$15),FIND("]",CELL("filename",Sheet1!$A$15))+1,31)&"!"&ADDRESS(MATCH(Sheet6!$D$9,Sheet1!C:C,0)+1,3,4)),ROW(B7)-1+SUM($B$14:$B$14),0)) -> 1068 | D21: =IF(ROW(B7)-1>=$D$14,"",OFFSET(INDIRECT(MID(CELL("filename",Sheet1!$A$15),FIND("]",CELL("filename",Sheet1!$A$15))+1,31)&"!"&ADDRESS(MATCH(Sheet6!$D$9,Sheet1!C:C,0)+1,3,4)),ROW(B7)-1+SUM($B$14:$C$14),0)) -> 175 | E21: =IF(ROW(B7)-1>=$E$14,"",OFFSET(INDIRECT(MID(CELL("filename",Sheet1!$A$15),FIND("]",CELL("filename",Sheet1!$A$15))+1,31)&"!"&ADDRESS(MATCH(Sheet6!$D$9,Sheet1!C:C,0)+1,3,4)),ROW(B7)-1+SUM($B$14:$D$14),0)) -> 1078 | F21: 1
B22: =IF(ROW(B8)-1>=$B$14,"",OFFSET(INDIRECT(MID(CELL("filename",Sheet1!$A$15),FIND("]",CELL("filename",Sheet1!$A$15))+1,31)&"!"&ADDRESS(MATCH(Sheet6!$D$9,Sheet1!C:C,0)+1,3,4)),ROW(B8)-1,0)) -> 2061 | C22: =IF(ROW(B8)-1>=$C$14,"",OFFSET(INDIRECT(MID(CELL("filename",Sheet1!$A$15),FIND("]",CELL("filename",Sheet1!$A$15))+1,31)&"!"&ADDRESS(MATCH(Sheet6!$D$9,Sheet1!C:C,0)+1,3,4)),ROW(B8)-1+SUM($B$14:$B$14),0)) -> 2068 | D22: =IF(ROW(B8)-1>=$D$14,"",OFFSET(INDIRECT(MID(CELL("filename",Sheet1!$A$15),FIND("]",CELL("filename",Sheet1!$A$15))+1,31)&"!"&ADDRESS(MATCH(Sheet6!$D$9,Sheet1!C:C,0)+1,3,4)),ROW(B8)-1+SUM($B$14:$C$14),0)) -> 1075 | E22: =IF(ROW(B8)-1>=$E$14,"",OFFSET(INDIRECT(MID(CELL("filename",Sheet1!$A$15),FIND("]",CELL("filename",Sheet1!$A$15))+1,31)&"!"&ADDRESS(MATCH(Sheet6!$D$9,Sheet1!C:C,0)+1,3,4)),ROW(B8)-1+SUM($B$14:$D$14),0)) -> 2078 | F22: 1
B23: =IF(ROW(B9)-1>=$B$14,"",OFFSET(INDIRECT(MID(CELL("filename",Sheet1!$A$15),FIND("]",CELL("filename",Sheet1!$A$15))+1,31)&"!"&ADDRESS(MATCH(Sheet6!$D$9,Sheet1!C:C,0)+1,3,4)),ROW(B9)-1,0)) -> 162 | C23: =IF(ROW(B9)-1>=$C$14,"",OFFSET(INDIRECT(MID(CELL("filename",Sheet1!$A$15),FIND("]",CELL("filename",Sheet1!$A$15))+1,31)&"!"&ADDRESS(MATCH(Sheet6!$D$9,Sheet1!C:C,0)+1,3,4)),ROW(B9)-1+SUM($B$14:$B$14),0)) -> 169 | D23: =IF(ROW(B9)-1>=$D$14,"",OFFSET(INDIRECT(MID(CELL("filename",Sheet1!$A$15),FIND("]",CELL("filename",Sheet1!$A$15))+1,31)&"!"&ADDRESS(MATCH(Sheet6!$D$9,Sheet1!C:C,0)+1,3,4)),ROW(B9)-1+SUM($B$14:$C$14),0)) -> 2075 | E23: =IF(ROW(B9)-1>=$E$14,"",OFFSET(INDIRECT(MID(CELL("filename",Sheet1!$A$15),FIND("]",CELL("filename",Sheet1!$A$15))+1,31)&"!"&ADDRESS(MATCH(Sheet6!$D$9,Sheet1!C:C,0)+1,3,4)),ROW(B9)-1+SUM($B$14:$D$14),0)) -> 179 | F23: 1
B24: =IF(ROW(B10)-1>=$B$14,"",OFFSET(INDIRECT(MID(CELL("filename",Sheet1!$A$15),FIND("]",CELL("filename",Sheet1!$A$15))+1,31)&"!"&ADDRESS(MATCH(Sheet6!$D$9,Sheet1!C:C,0)+1,3,4)),ROW(B10)-1,0)) -> 1062 | C24: =IF(ROW(B10)-1>=$C$14,"",OFFSET(INDIRECT(MID(CELL("filename",Sheet1!$A$15),FIND("]",CELL("filename",Sheet1!$A$15))+1,31)&"!"&ADDRESS(MATCH(Sheet6!$D$9,Sheet1!C:C,0)+1,3,4)),ROW(B10)-1+SUM($B$14:$B$14),0)) -> 1069 | D24: =IF(ROW(B10)-1>=$D$14,"",OFFSET(INDIRECT(MID(CELL("filename",Sheet1!$A$15),FIND("]",CELL("filename",Sheet1!$A$15))+1,31)&"!"&ADDRESS(MATCH(Sheet6!$D$9,Sheet1!C:C,0)+1,3,4)),ROW(B10)-1+SUM($B$14:$C$14),0)) -> 176 | E24: =IF(ROW(B10)-1>=$E$14,"",OFFSET(INDIRECT(MID(CELL("filename",Sheet1!$A$15),FIND("]",CELL("filename",Sheet1!$A$15))+1,31)&"!"&ADDRESS(MATCH(Sheet6!$D$9,Sheet1!C:C,0)+1,3,4)),ROW(B10)-1+SUM($B$14:$D$14),0)) -> 1079 | F24: 1
B25: =IF(ROW(B11)-1>=$B$14,"",OFFSET(INDIRECT(MID(CELL("filename",Sheet1!$A$15),FIND("]",CELL("filename",Sheet1!$A$15))+1,31)&"!"&ADDRESS(MATCH(Sheet6!$D$9,Sheet1!C:C,0)+1,3,4)),ROW(B11)-1,0)) -> 2062 | C25: =IF(ROW(B11)-1>=$C$14,"",OFFSET(INDIRECT(MID(CELL("filename",Sheet1!$A$15),FIND("]",CELL("filename",Sheet1!$A$15))+1,31)&"!"&ADDRESS(MATCH(Sheet6!$D$9,Sheet1!C:C,0)+1,3,4)),ROW(B11)-1+SUM($B$14:$B$14),0)) -> 2069 | D25: =IF(ROW(B11)-1>=$D$14,"",OFFSET(INDIRECT(MID(CELL("filename",Sheet1!$A$15),FIND("]",CELL("filename",Sheet1!$A$15))+1,31)&"!"&ADDRESS(MATCH(Sheet6!$D$9,Sheet1!C:C,0)+1,3,4)),ROW(B11)-1+SUM($B$14:$C$14),0)) ->  | E25: =IF(ROW(B11)-1>=$E$14,"",OFFSET(INDIRECT(MID(CELL("filename",Sheet1!$A$15),FIND("]",CELL("filename",Sheet1!$A$15))+1,31)&"!"&ADDRESS(MATCH(Sheet6!$D$9,Sheet1!C:C,0)+1,3,4)),ROW(B11)-1+SUM($B$14:$D$14),0)) -> 2079 | F25: 1
B26: =IF(ROW(B12)-1>=$B$14,"",OFFSET(INDIRECT(MID(CELL("filename",Sheet1!$A$15),FIND("]",CELL("filename",Sheet1!$A$15))+1,31)&"!"&ADDRESS(MATCH(Sheet6!$D$9,Sheet1!C:C,0)+1,3,4)),ROW(B12)-1,0)) -> 163 | C26: =IF(ROW(B12)-1>=$C$14,"",OFFSET(INDIRECT(MID(CELL("filename",Sheet1!$A$15),FIND("]",CELL("filename",Sheet1!$A$15))+1,31)&"!"&ADDRESS(MATCH(Sheet6!$D$9,Sheet1!C:C,0)+1,3,4)),ROW(B12)-1+SUM($B$14:$B$14),0)) -> 170 | D26: =IF(ROW(B12)-1>=$D$14,"",OFFSET(INDIRECT(MID(CELL("filename",Sheet1!$A$15),FIND("]",CELL("filename",Sheet1!$A$15))+1,31)&"!"&ADDRESS(MATCH(Sheet6!$D$9,Sheet1!C:C,0)+1,3,4)),ROW(B12)-1+SUM($B$14:$C$14),0)) ->  | E26: =IF(ROW(B12)-1>=$E$14,"",OFFSET(INDIRECT(MID(CELL("filename",Sheet1!$A$15),FIND("]",CELL("filename",Sheet1!$A$15))+1,31)&"!"&ADDRESS(MATCH(Sheet6!$D$9,Sheet1!C:C,0)+1,3,4)),ROW(B12)-1+SUM($B$14:$D$14),0)) -> 180 | F26: 1
B27: =IF(ROW(B13)-1>=$B$14,"",OFFSET(INDIRECT(MID(CELL("filename",Sheet1!$A$15),FIND("]",CELL("filename",Sheet1!$A$15))+1,31)&"!"&ADDRESS(MATCH(Sheet6!$D$9,Sheet1!C:C,0)+1,3,4)),ROW(B13)-1,0)) -> 1063 | C27: =IF(ROW(B13)-1>=$C$14,"",OFFSET(INDIRECT(MID(CELL("filename",Sheet1!$A$15),FIND("]",CELL("filename",Sheet1!$A$15))+1,31)&"!"&ADDRESS(MATCH(Sheet6!$D$9,Sheet1!C:C,0)+1,3,4)),ROW(B13)-1+SUM($B$14:$B$14),0)) -> 1070 | D27: =IF(ROW(B13)-1>=$D$14,"",OFFSET(INDIRECT(MID(CELL("filename",Sheet1!$A$15),FIND("]",CELL("filename",Sheet1!$A$15))+1,31)&"!"&ADDRESS(MATCH(Sheet6!$D$9,Sheet1!C:C,0)+1,3,4)),ROW(B13)-1+SUM($B$14:$C$14),0)) ->  | E27: =IF(ROW(B13)-1>=$E$14,"",OFFSET(INDIRECT(MID(CELL("filename",Sheet1!$A$15),FIND("]",CELL("filename",Sheet1!$A$15))+1,31)&"!"&ADDRESS(MATCH(Sheet6!$D$9,Sheet1!C:C,0)+1,3,4)),ROW(B13)-1+SUM($B$14:$D$14),0)) -> 1080 | F27: 1
B28: =IF(ROW(B14)-1>=$B$14,"",OFFSET(INDIRECT(MID(CELL("filename",Sheet1!$A$15),FIND("]",CELL("filename",Sheet1!$A$15))+1,31)&"!"&ADDRESS(MATCH(Sheet6!$D$9,Sheet1!C:C,0)+1,3,4)),ROW(B14)-1,0)) -> 2063 | C28: =IF(ROW(B14)-1>=$C$14,"",OFFSET(INDIRECT(MID(CELL("filename",Sheet1!$A$15),FIND("]",CELL("filename",Sheet1!$A$15))+1,31)&"!"&ADDRESS(MATCH(Sheet6!$D$9,Sheet1!C:C,0)+1,3,4)),ROW(B14)-1+SUM($B$14:$B$14),0)) -> 2070 | D28: =IF(ROW(B14)-1>=$D$14,"",OFFSET(INDIRECT(MID(CELL("filename",Sheet1!$A$15),FIND("]",CELL("filename",Sheet1!$A$15))+1,31)&"!"&ADDRESS(MATCH(Sheet6!$D$9,Sheet1!C:C,0)+1,3,4)),ROW(B14)-1+SUM($B$14:$C$14),0)) ->  | E28: =IF(ROW(B14)-1>=$E$14,"",OFFSET(INDIRECT(MID(CELL("filename",Sheet1!$A$15),FIND("]",CELL("filename",Sheet1!$A$15))+1,31)&"!"&ADDRESS(MATCH(Sheet6!$D$9,Sheet1!C:C,0)+1,3,4)),ROW(B14)-1+SUM($B$14:$D$14),0)) -> 2080 | F28: 1
B29: =IF(ROW(B15)-1>=$B$14,"",OFFSET(INDIRECT(MID(CELL("filename",Sheet1!$A$15),FIND("]",CELL("filename",Sheet1!$A$15))+1,31)&"!"&ADDRESS(MATCH(Sheet6!$D$9,Sheet1!C:C,0)+1,3,4)),ROW(B15)-1,0)) -> 164 | C29: =IF(ROW(B15)-1>=$C$14,"",OFFSET(INDIRECT(MID(CELL("filename",Sheet1!$A$15),FIND("]",CELL("filename",Sheet1!$A$15))+1,31)&"!"&ADDRESS(MATCH(Sheet6!$D$9,Sheet1!C:C,0)+1,3,4)),ROW(B15)-1+SUM($B$14:$B$14),0)) -> 171 | D29: =IF(ROW(B15)-1>=$D$14,"",OFFSET(INDIRECT(MID(CELL("filename",Sheet1!$A$15),FIND("]",CELL("filename",Sheet1!$A$15))+1,31)&"!"&ADDRESS(MATCH(Sheet6!$D$9,Sheet1!C:C,0)+1,3,4)),ROW(B15)-1+SUM($B$14:$C$14),0)) ->  | E29: =IF(ROW(B15)-1>=$E$14,"",OFFSET(INDIRECT(MID(CELL("filename",Sheet1!$A$15),FIND("]",CELL("filename",Sheet1!$A$15))+1,31)&"!"&ADDRESS(MATCH(Sheet6!$D$9,Sheet1!C:C,0)+1,3,4)),ROW(B15)-1+SUM($B$14:$D$14),0)) -> 181 | F29: 1
B30: =IF(ROW(B16)-1>=$B$14,"",OFFSET(INDIRECT(MID(CELL("filename",Sheet1!$A$15),FIND("]",CELL("filename",Sheet1!$A$15))+1,31)&"!"&ADDRESS(MATCH(Sheet6!$D$9,Sheet1!C:C,0)+1,3,4)),ROW(B16)-1,0)) -> 1064 | C30: =IF(ROW(B16)-1>=$C$14,"",OFFSET(INDIRECT(MID(CELL("filename",Sheet1!$A$15),FIND("]",CELL("filename",Sheet1!$A$15))+1,31)&"!"&ADDRESS(MATCH(Sheet6!$D$9,Sheet1!C:C,0)+1,3,4)),ROW(B16)-1+SUM($B$14:$B$14),0)) -> 1071 | D30: =IF(ROW(B16)-1>=$D$14,"",OFFSET(INDIRECT(MID(CELL("filename",Sheet1!$A$15),FIND("]",CELL("filename",Sheet1!$A$15))+1,31)&"!"&ADDRESS(MATCH(Sheet6!$D$9,Sheet1!C:C,0)+1,3,4)),ROW(B16)-1+SUM($B$14:$C$14),0)) ->  | E30: =IF(ROW(B16)-1>=$E$14,"",OFFSET(INDIRECT(MID(CELL("filename",Sheet1!$A$15),FIND("]",CELL("filename",Sheet1!$A$15))+1,31)&"!"&ADDRESS(MATCH(Sheet6!$D$9,Sheet1!C:C,0)+1,3,4)),ROW(B16)-1+SUM($B$14:$D$14),0)) -> 1081 | F30: 1
B31: =IF(ROW(B17)-1>=$B$14,"",OFFSET(INDIRECT(MID(CELL("filename",Sheet1!$A$15),FIND("]",CELL("filename",Sheet1!$A$15))+1,31)&"!"&ADDRESS(MATCH(Sheet6!$D$9,Sheet1!C:C,0)+1,3,4)),ROW(B17)-1,0)) -> 2064 | C31: =IF(ROW(B17)-1>=$C$14,"",OFFSET(INDIRECT(MID(CELL("filename",Sheet1!$A$15),FIND("]",CELL("filename",Sheet1!$A$15))+1,31)&"!"&ADDRESS(MATCH(Sheet6!$D$9,Sheet1!C:C,0)+1,3,4)),ROW(B17)-1+SUM($B$14:$B$14),0)) -> 2071 | D31: =IF(ROW(B17)-1>=$D$14,"",OFFSET(INDIRECT(MID(CELL("filename",Sheet1!$A$15),FIND("]",CELL("filename",Sheet1!$A$15))+1,31)&"!"&ADDRESS(MATCH(Sheet6!$D$9,Sheet1!C:C,0)+1,3,4)),ROW(B17)-1+SUM($B$14:$C$14),0)) ->  | E31: =IF(ROW(B17)-1>=$E$14,"",OFFSET(INDIRECT(MID(CELL("filename",Sheet1!$A$15),FIND("]",CELL("filename",Sheet1!$A$15))+1,31)&"!"&ADDRESS(MATCH(Sheet6!$D$9,Sheet1!C:C,0)+1,3,4)),ROW(B17)-1+SUM($B$14:$D$14),0)) -> 2081 | F31: 1
B32: =IF(ROW(B18)-1>=$B$14,"",OFFSET(INDIRECT(MID(CELL("filename",Sheet1!$A$15),FIND("]",CELL("filename",Sheet1!$A$15))+1,31)&"!"&ADDRESS(MATCH(Sheet6!$D$9,Sheet1!C:C,0)+1,3,4)),ROW(B18)-1,0)) -> 165 | C32: =IF(ROW(B18)-1>=$C$14,"",OFFSET(INDIRECT(MID(CELL("filename",Sheet1!$A$15),FIND("]",CELL("filename",Sheet1!$A$15))+1,31)&"!"&ADDRESS(MATCH(Sheet6!$D$9,Sheet1!C:C,0)+1,3,4)),ROW(B18)-1+SUM($B$14:$B$14),0)) -> 172 | D32: =IF(ROW(B18)-1>=$D$14,"",OFFSET(INDIRECT(MID(CELL("filename",Sheet1!$A$15),FIND("]",CELL("filename",Sheet1!$A$15))+1,31)&"!"&ADDRESS(MATCH(Sheet6!$D$9,Sheet1!C:C,0)+1,3,4)),ROW(B18)-1+SUM($B$14:$C$14),0)) ->  | E32: =IF(ROW(B18)-1>=$E$14,"",OFFSET(INDIRECT(MID(CELL("filename",Sheet1!$A$15),FIND("]",CELL("filename",Sheet1!$A$15))+1,31)&"!"&ADDRESS(MATCH(Sheet6!$D$9,Sheet1!C:C,0)+1,3,4)),ROW(B18)-1+SUM($B$14:$D$14),0)) -> 182 | F32: 1
B33: =IF(ROW(B19)-1>=$B$14,"",OFFSET(INDIRECT(MID(CELL("filename",Sheet1!$A$15),FIND("]",CELL("filename",Sheet1!$A$15))+1,31)&"!"&ADDRESS(MATCH(Sheet6!$D$9,Sheet1!C:C,0)+1,3,4)),ROW(B19)-1,0)) -> 1065 | C33: =IF(ROW(B19)-1>=$C$14,"",OFFSET(INDIRECT(MID(CELL("filename",Sheet1!$A$15),FIND("]",CELL("filename",Sheet1!$A$15))+1,31)&"!"&ADDRESS(MATCH(Sheet6!$D$9,Sheet1!C:C,0)+1,3,4)),ROW(B19)-1+SUM($B$14:$B$14),0)) -> 1072 | D33: =IF(ROW(B19)-1>=$D$14,"",OFFSET(INDIRECT(MID(CELL("filename",Sheet1!$A$15),FIND("]",CELL("filename",Sheet1!$A$15))+1,31)&"!"&ADDRESS(MATCH(Sheet6!$D$9,Sheet1!C:C,0)+1,3,4)),ROW(B19)-1+SUM($B$14:$C$14),0)) ->  | E33: =IF(ROW(B19)-1>=$E$14,"",OFFSET(INDIRECT(MID(CELL("filename",Sheet1!$A$15),FIND("]",CELL("filename",Sheet1!$A$15))+1,31)&"!"&ADDRESS(MATCH(Sheet6!$D$9,Sheet1!C:C,0)+1,3,4)),ROW(B19)-1+SUM($B$14:$D$14),0)) -> 1082 | F33: 1
B34: =IF(ROW(B20)-1>=$B$14,"",OFFSET(INDIRECT(MID(CELL("filename",Sheet1!$A$15),FIND("]",CELL("filename",Sheet1!$A$15))+1,31)&"!"&ADDRESS(MATCH(Sheet6!$D$9,Sheet1!C:C,0)+1,3,4)),ROW(B20)-1,0)) -> 2065 | C34: =IF(ROW(B20)-1>=$C$14,"",OFFSET(INDIRECT(MID(CELL("filename",Sheet1!$A$15),FIND("]",CELL("filename",Sheet1!$A$15))+1,31)&"!"&ADDRESS(MATCH(Sheet6!$D$9,Sheet1!C:C,0)+1,3,4)),ROW(B20)-1+SUM($B$14:$B$14),0)) -> 2072 | D34: =IF(ROW(B20)-1>=$D$14,"",OFFSET(INDIRECT(MID(CELL("filename",Sheet1!$A$15),FIND("]",CELL("filename",Sheet1!$A$15))+1,31)&"!"&ADDRESS(MATCH(Sheet6!$D$9,Sheet1!C:C,0)+1,3,4)),ROW(B20)-1+SUM($B$14:$C$14),0)) ->  | E34: =IF(ROW(B20)-1>=$E$14,"",OFFSET(INDIRECT(MID(CELL("filename",Sheet1!$A$15),FIND("]",CELL("filename",Sheet1!$A$15))+1,31)&"!"&ADDRESS(MATCH(Sheet6!$D$9,Sheet1!C:C,0)+1,3,4)),ROW(B20)-1+SUM($B$14:$D$14),0)) -> 2082 | F34: 1
B36: परीक्षा प्रभारी | E36: केन्द्राधीक्षक
B37: =Sheet2!$B$37 -> XYZ (Lecturer) | E37: =Sheet2!$E$37 -> XYZ (Principal)

Sheet Sheet8
B1: =Sheet2!$B$1 -> Half Yearly Examination 2024
B2: परीक्षा केंद्र नाम एवं परीक्षा केंद्र क्रमांक
B3: =Sheet2!$B$3 -> Govt Sr Sc School Malutana (216405)
B4: परीक्षा कक्ष / हॉल क्रमांक
B5: =Sheet2!$K$7 -> 07
B6: परीक्षा दिनांक (दिवस) ... से ... तक
B7: =Sheet2!$B$7 -> 14-12-2024 | C7: =IF(B7="","",TEXT(B7,"DDDD")) -> Saturday | D7: =Sheet2!$D$7 -> 24-12-2024 | E7: =IF(D7="","",TEXT(D7,"DDDD")) -> Tuesday
B8: परीक्षार्थी रोल नंबर ... से ... तक
B9: =IF(B14>0,B15,IF(C14>0,C15,IF(D14>0,D15,IF(E14>0,E15,0)))) -> 183 | D9: =IF(E14>0,LOOKUP(2,1/(E15:E34<>""),E15:E34),IF(D14>0,LOOKUP(2,1/(D15:D34<>""),D15:D34),IF(C14>0,LOOKUP(2,1/(C15:C34<>""),C15:C34),IF(B14>0,LOOKUP(2,1/(B15:B34<>""),B15:B34),0)))) -> 196
B10: कुल सम्मिलित परीक्षार्थी
B11: =COUNTIF($B$15:$E$34,">0") -> 40
B12: परीक्षार्थी बैठक व्यवस्था
B13: पंक्ति 1 | C13: पंक्ति 2 | D13: पंक्ति 3 | E13: पंक्ति 4
B14: =Sheet2!L7 -> 10 | C14: =Sheet2!M7 -> 10 | D14: =Sheet2!N7 -> 10 | E14: =Sheet2!O7 -> 10
B15: =IF(ROW(B1)-1>=$B$14,"",OFFSET(INDIRECT(MID(CELL("filename",Sheet1!$A$15),FIND("]",CELL("filename",Sheet1!$A$15))+1,31)&"!"&ADDRESS(MATCH(Sheet7!$D$9,Sheet1!C:C,0)+1,3,4)),ROW(B1)-1,0)) -> 183 | C15: =IF(ROW(B1)-1>=$C$14,"",OFFSET(INDIRECT(MID(CELL("filename",Sheet1!$A$15),FIND("]",CELL("filename",Sheet1!$A$15))+1,31)&"!"&ADDRESS(MATCH(Sheet7!$D$9,Sheet1!C:C,0)+1,3,4)),ROW(B1)-1+SUM($B$14:$B$14),0)) -> 1086 | D15: =IF(ROW(B1)-1>=$D$14,"",OFFSET(INDIRECT(MID(CELL("filename",Sheet1!$A$15),FIND("]",CELL("filename",Sheet1!$A$15))+1,31)&"!"&ADDRESS(MATCH(Sheet7!$D$9,Sheet1!C:C,0)+1,3,4)),ROW(B1)-1+SUM($B$14:$C$14),0)) -> 2089 | E15: =IF(ROW(B1)-1>=$E$14,"",OFFSET(INDIRECT(MID(CELL("filename",Sheet1!$A$15),FIND("]",CELL("filename",Sheet1!$A$15))+1,31)&"!"&ADDRESS(MATCH(Sheet7!$D$9,Sheet1!C:C,0)+1,3,4)),ROW(B1)-1+SUM($B$14:$D$14),0)) -> 193 | F15: =IF(SUM(B15:E15)>0,1,"") -> 1
B16: =IF(ROW(B2)-1>=$B$14,"",OFFSET(INDIRECT(MID(CELL("filename",Sheet1!$A$15),FIND("]",CELL("filename",Sheet1!$A$15))+1,31)&"!"&ADDRESS(MATCH(Sheet7!$D$9,Sheet1!C:C,0)+1,3,4)),ROW(B2)-1,0)) -> 1083 | C16: =IF(ROW(B2)-1>=$C$14,"",OFFSET(INDIRECT(MID(CELL("filename",Sheet1!$A$15),FIND("]",CELL("filename",Sheet1!$A$15))+1,31)&"!"&ADDRESS(MATCH(Sheet7!$D$9,Sheet1!C:C,0)+1,3,4)),ROW(B2)-1+SUM($B$14:$B$14),0)) -> 2086 | D16: =IF(ROW(B2)-1>=$D$14,"",OFFSET(INDIRECT(MID(CELL("filename",Sheet1!$A$15),FIND("]",CELL("filename",Sheet1!$A$15))+1,31)&"!"&ADDRESS(MATCH(Sheet7!$D$9,Sheet1!C:C,0)+1,3,4)),ROW(B2)-1+SUM($B$14:$C$14),0)) -> 190 | E16: =IF(ROW(B2)-1>=$E$14,"",OFFSET(INDIRECT(MID(CELL("filename",Sheet1!$A$15),FIND("]",CELL("filename",Sheet1!$A$15))+1,31)&"!"&ADDRESS(MATCH(Sheet7!$D$9,Sheet1!C:C,0)+1,3,4)),ROW(B2)-1+SUM($B$14:$D$14),0)) -> 1093 | F16: =IF(SUM(B16:E16)>0,1,"") -> 1
B17: =IF(ROW(B3)-1>=$B$14,"",OFFSET(INDIRECT(MID(CELL("filename",Sheet1!$A$15),FIND("]",CELL("filename",Sheet1!$A$15))+1,31)&"!"&ADDRESS(MATCH(Sheet7!$D$9,Sheet1!C:C,0)+1,3,4)),ROW(B3)-1,0)) -> 2083 | C17: =IF(ROW(B3)-1>=$C$14,"",OFFSET(INDIRECT(MID(CELL("filename",Sheet1!$A$15),FIND("]",CELL("filename",Sheet1!$A$15))+1,31)&"!"&ADDRESS(MATCH(Sheet7!$D$9,Sheet1!C:C,0)+1,3,4)),ROW(B3)-1+SUM($B$14:$B$14),0)) -> 187 | D17: =IF(ROW(B3)-1>=$D$14,"",OFFSET(INDIRECT(MID(CELL("filename",Sheet1!$A$15),FIND("]",CELL("filename",Sheet1!$A$15))+1,31)&"!"&ADDRESS(MATCH(Sheet7!$D$9,Sheet1!C:C,0)+1,3,4)),ROW(B3)-1+SUM($B$14:$C$14),0)) -> 1090 | E17: =IF(ROW(B3)-1>=$E$14,"",OFFSET(INDIRECT(MID(CELL("filename",Sheet1!$A$15),FIND("]",CELL("filename",Sheet1!$A$15))+1,31)&"!"&ADDRESS(MATCH(Sheet7!$D$9,Sheet1!C:C,0)+1,3,4)),ROW(B3)-1+SUM($B$14:$D$14),0)) -> 2093 | F17: 1
B18: =IF(ROW(B4)-1>=$B$14,"",OFFSET(INDIRECT(MID(CELL("filename",Sheet1!$A$15),FIND("]",CELL("filename",Sheet1!$A$15))+1,31)&"!"&ADDRESS(MATCH(Sheet7!$D$9,Sheet1!C:C,0)+1,3,4)),ROW(B4)-1,0)) -> 184 | C18: =IF(ROW(B4)-1>=$C$14,"",OFFSET(INDIRECT(MID(CELL("filename",Sheet1!$A$15),FIND("]",CELL("filename",Sheet1!$A$15))+1,31)&"!"&ADDRESS(MATCH(Sheet7!$D$9,Sheet1!C:C,0)+1,3,4)),ROW(B4)-1+SUM($B$14:$B$14),0)) -> 1087 | D18: =IF(ROW(B4)-1>=$D$14,"",OFFSET(INDIRECT(MID(CELL("filename",Sheet1!$A$15),FIND("]",CELL("filename",Sheet1!$A$15))+1,31)&"!"&ADDRESS(MATCH(Sheet7!$D$9,Sheet1!C:C,0)+1,3,4)),ROW(B4)-1+SUM($B$14:$C$14),0)) -> 2090 | E18: =IF(ROW(B4)-1>=$E$14,"",OFFSET(INDIRECT(MID(CELL("filename",Sheet1!$A$15),FIND("]",CELL("filename",Sheet1!$A$15))+1,31)&"!"&ADDRESS(MATCH(Sheet7!$D$9,Sheet1!C:C,0)+1,3,4)),ROW(B4)-1+SUM($B$14:$D$14),0)) -> 194 | F18: 1
B19: =IF(ROW(B5)-1>=$B$14,"",OFFSET(INDIRECT(MID(CELL("filename",Sheet1!$A$15),FIND("]",CELL("filename",Sheet1!$A$15))+1,31)&"!"&ADDRESS(MATCH(Sheet7!$D$9,Sheet1!C:C,0)+1,3,4)),ROW(B5)-1,0)) -> 1084 | C19: =IF(ROW(B5)-1>=$C$14,"",OFFSET(INDIRECT(MID(CELL("filename",Sheet1!$A$15),FIND("]",CELL("filename",Sheet1!$A$15))+1,31)&"!"&ADDRESS(MATCH(Sheet7!$D$9,Sheet1!C:C,0)+1,3,4)),ROW(B5)-1+SUM($B$14:$B$14),0)) -> 2087 | D19: =IF(ROW(B5)-1>=$D$14,"",OFFSET(INDIRECT(MID(CELL("filename",Sheet1!$A$15),FIND("]",CELL("filename",Sheet1!$A$15))+1,31)&"!"&ADDRESS(MATCH(Sheet7!$D$9,Sheet1!C:C,0)+1,3,4)),ROW(B5)-1+SUM($B$14:$C$14),0)) -> 191 | E19: =IF(ROW(B5)-1>=$E$14,"",OFFSET(INDIRECT(MID(CELL("filename",Sheet1!$A$15),FIND("]",CELL("filename",Sheet1!$A$15))+1,31)&"!"&ADDRESS(MATCH(Sheet7!$D$9,Sheet1!C:C,0)+1,3,4)),ROW(B5)-1+SUM($B$14:$D$14),0)) -> 1094 | F19: 1
B20: =IF(ROW(B6)-1>=$B$14,"",OFFSET(INDIRECT(MID(CELL("filename",Sheet1!$A$15),FIND("]",CELL("filename",Sheet1!$A$15))+1,31)&"!"&ADDRESS(MATCH(Sheet7!$D$9,Sheet1!C:C,0)+1,3,4)),ROW(B6)-1,0)) -> 2084 | C20: =IF(ROW(B6)-1>=$C$14,"",OFFSET(INDIRECT(MID(CELL("filename",Sheet1!$A$15),FIND("]",CELL("filename",Sheet1!$A$15))+1,31)&"!"&ADDRESS(MATCH(Sheet7!$D$9,Sheet1!C:C,0)+1,3,4)),ROW(B6)-1+SUM($B$14:$B$14),0)) -> 188 | D20: =IF(ROW(B6)-1>=$D$14,"",OFFSET(INDIRECT(MID(CELL("filename",Sheet1!$A$15),FIND("]",CELL("filename",Sheet1!$A$15))+1,31)&"!"&ADDRESS(MATCH(Sheet7!$D$9,Sheet1!C:C,0)+1,3,4)),ROW(B6)-1+SUM($B$14:$C$14),0)) -> 1091 | E20: =IF(ROW(B6)-1>=$E$14,"",OFFSET(INDIRECT(MID(CELL("filename",Sheet1!$A$15),FIND("]",CELL("filename",Sheet1!$A$15))+1,31)&"!"&ADDRESS(MATCH(Sheet7!$D$9,Sheet1!C:C,0)+1,3,4)),ROW(B6)-1+SUM($B$14:$D$14),0)) -> 2094 | F20: 1
B21: =IF(ROW(B7)-1>=$B$14,"",OFFSET(INDIRECT(MID(CELL("filename",Sheet1!$A$15),FIND("]",CELL("filename",Sheet1!$A$15))+1,31)&"!"&ADDRESS(MATCH(Sheet7!$D$9,Sheet1!C:C,0)+1,3,4)),ROW(B7)-1,0)) -> 185 | C21: =IF(ROW(B7)-1>=$C$14,"",OFFSET(INDIRECT(MID(CELL("filename",Sheet1!$A$15),FIND("]",CELL("filename",Sheet1!$A$15))+1,31)&"!"&ADDRESS(MATCH(Sheet7!$D$9,Sheet1!C:C,0)+1,3,4)),ROW(B7)-1+SUM($B$14:$B$14),0)) -> 1088 | D21: =IF(ROW(B7)-1>=$D$14,"",OFFSET(INDIRECT(MID(CELL("filename",Sheet1!$A$15),FIND("]",CELL("filename",Sheet1!$A$15))+1,31)&"!"&ADDRESS(MATCH(Sheet7!$D$9,Sheet1!C:C,0)+1,3,4)),ROW(B7)-1+SUM($B$14:$C$14),0)) -> 2091 | E21: =IF(ROW(B7)-1>=$E$14,"",OFFSET(INDIRECT(MID(CELL("filename",Sheet1!$A$15),FIND("]",CELL("filename",Sheet1!$A$15))+1,31)&"!"&ADDRESS(MATCH(Sheet7!$D$9,Sheet1!C:C,0)+1,3,4)),ROW(B7)-1+SUM($B$14:$D$14),0)) -> 195 | F21: 1
B22: =IF(ROW(B8)-1>=$B$14,"",OFFSET(INDIRECT(MID(CELL("filename",Sheet1!$A$15),FIND("]",CELL("filename",Sheet1!$A$15))+1,31)&"!"&ADDRESS(MATCH(Sheet7!$D$9,Sheet1!C:C,0)+1,3,4)),ROW(B8)-1,0)) -> 1085 | C22: =IF(ROW(B8)-1>=$C$14,"",OFFSET(INDIRECT(MID(CELL("filename",Sheet1!$A$15),FIND("]",CELL("filename",Sheet1!$A$15))+1,31)&"!"&ADDRESS(MATCH(Sheet7!$D$9,Sheet1!C:C,0)+1,3,4)),ROW(B8)-1+SUM($B$14:$B$14),0)) -> 2088 | D22: =IF(ROW(B8)-1>=$D$14,"",OFFSET(INDIRECT(MID(CELL("filename",Sheet1!$A$15),FIND("]",CELL("filename",Sheet1!$A$15))+1,31)&"!"&ADDRESS(MATCH(Sheet7!$D$9,Sheet1!C:C,0)+1,3,4)),ROW(B8)-1+SUM($B$14:$C$14),0)) -> 192 | E22: =IF(ROW(B8)-1>=$E$14,"",OFFSET(INDIRECT(MID(CELL("filename",Sheet1!$A$15),FIND("]",CELL("filename",Sheet1!$A$15))+1,31)&"!"&ADDRESS(MATCH(Sheet7!$D$9,Sheet1!C:C,0)+1,3,4)),ROW(B8)-1+SUM($B$14:$D$14),0)) -> 1095 | F22: 1
B23: =IF(ROW(B9)-1>=$B$14,"",OFFSET(INDIRECT(MID(CELL("filename",Sheet1!$A$15),FIND("]",CELL("filename",Sheet1!$A$15))+1,31)&"!"&ADDRESS(MATCH(Sheet7!$D$9,Sheet1!C:C,0)+1,3,4)),ROW(B9)-1,0)) -> 2085 | C23: =IF(ROW(B9)-1>=$C$14,"",OFFSET(INDIRECT(MID(CELL("filename",Sheet1!$A$15),FIND("]",CELL("filename",Sheet1!$A$15))+1,31)&"!"&ADDRESS(MATCH(Sheet7!$D$9,Sheet1!C:C,0)+1,3,4)),ROW(B9)-1+SUM($B$14:$B$14),0)) -> 189 | D23: =IF(ROW(B9)-1>=$D$14,"",OFFSET(INDIRECT(MID(CELL("filename",Sheet1!$A$15),FIND("]",CELL("filename",Sheet1!$A$15))+1,31)&"!"&ADDRESS(MATCH(Sheet7!$D$9,Sheet1!C:C,0)+1,3,4)),ROW(B9)-1+SUM($B$14:$C$14),0)) -> 1092 | E23: =IF(ROW(B9)-1>=$E$14,"",OFFSET(INDIRECT(MID(CELL("filename",Sheet1!$A$15),FIND("]",CELL("filename",Sheet1!$A$15))+1,31)&"!"&ADDRESS(MATCH(Sheet7!$D$9,Sheet1!C:C,0)+1,3,4)),ROW(B9)-1+SUM($B$14:$D$14),0)) -> 2095 | F23: 1
B24: =IF(ROW(B10)-1>=$B$14,"",OFFSET(INDIRECT(MID(CELL("filename",Sheet1!$A$15),FIND("]",CELL("filename",Sheet1!$A$15))+1,31)&"!"&ADDRESS(MATCH(Sheet7!$D$9,Sheet1!C:C,0)+1,3,4)),ROW(B10)-1,0)) -> 186 | C24: =IF(ROW(B10)-1>=$C$14,"",OFFSET(INDIRECT(MID(CELL("filename",Sheet1!$A$15),FIND("]",CELL("filename",Sheet1!$A$15))+1,31)&"!"&ADDRESS(MATCH(Sheet7!$D$9,Sheet1!C:C,0)+1,3,4)),ROW(B10)-1+SUM($B$14:$B$14),0)) -> 1089 | D24: =IF(ROW(B10)-1>=$D$14,"",OFFSET(INDIRECT(MID(CELL("filename",Sheet1!$A$15),FIND("]",CELL("filename",Sheet1!$A$15))+1,31)&"!"&ADDRESS(MATCH(Sheet7!$D$9,Sheet1!C:C,0)+1,3,4)),ROW(B10)-1+SUM($B$14:$C$14),0)) -> 2092 | E24: =IF(ROW(B10)-1>=$E$14,"",OFFSET(INDIRECT(MID(CELL("filename",Sheet1!$A$15),FIND("]",CELL("filename",Sheet1!$A$15))+1,31)&"!"&ADDRESS(MATCH(Sheet7!$D$9,Sheet1!C:C,0)+1,3,4)),ROW(B10)-1+SUM($B$14:$D$14),0)) -> 196 | F24: 1
B25: =IF(ROW(B11)-1>=$B$14,"",OFFSET(INDIRECT(MID(CELL("filename",Sheet1!$A$15),FIND("]",CELL("filename",Sheet1!$A$15))+1,31)&"!"&ADDRESS(MATCH(Sheet7!$D$9,Sheet1!C:C,0)+1,3,4)),ROW(B11)-1,0)) ->  | C25: =IF(ROW(B11)-1>=$C$14,"",OFFSET(INDIRECT(MID(CELL("filename",Sheet1!$A$15),FIND("]",CELL("filename",Sheet1!$A$15))+1,31)&"!"&ADDRESS(MATCH(Sheet7!$D$9,Sheet1!C:C,0)+1,3,4)),ROW(B11)-1+SUM($B$14:$B$14),0)) ->  | D25: =IF(ROW(B11)-1>=$D$14,"",OFFSET(INDIRECT(MID(CELL("filename",Sheet1!$A$15),FIND("]",CELL("filename",Sheet1!$A$15))+1,31)&"!"&ADDRESS(MATCH(Sheet7!$D$9,Sheet1!C:C,0)+1,3,4)),ROW(B11)-1+SUM($B$14:$C$14),0)) ->  | E25: =IF(ROW(B11)-1>=$E$14,"",OFFSET(INDIRECT(MID(CELL("filename",Sheet1!$A$15),FIND("]",CELL("filename",Sheet1!$A$15))+1,31)&"!"&ADDRESS(MATCH(Sheet7!$D$9,Sheet1!C:C,0)+1,3,4)),ROW(B11)-1+SUM($B$14:$D$14),0)) -> 
B26: =IF(ROW(B12)-1>=$B$14,"",OFFSET(INDIRECT(MID(CELL("filename",Sheet1!$A$15),FIND("]",CELL("filename",Sheet1!$A$15))+1,31)&"!"&ADDRESS(MATCH(Sheet7!$D$9,Sheet1!C:C,0)+1,3,4)),ROW(B12)-1,0)) ->  | C26: =IF(ROW(B12)-1>=$C$14,"",OFFSET(INDIRECT(MID(CELL("filename",Sheet1!$A$15),FIND("]",CELL("filename",Sheet1!$A$15))+1,31)&"!"&ADDRESS(MATCH(Sheet7!$D$9,Sheet1!C:C,0)+1,3,4)),ROW(B12)-1+SUM($B$14:$B$14),0)) ->  | D26: =IF(ROW(B12)-1>=$D$14,"",OFFSET(INDIRECT(MID(CELL("filename",Sheet1!$A$15),FIND("]",CELL("filename",Sheet1!$A$15))+1,31)&"!"&ADDRESS(MATCH(Sheet7!$D$9,Sheet1!C:C,0)+1,3,4)),ROW(B12)-1+SUM($B$14:$C$14),0)) ->  | E26: =IF(ROW(B12)-1>=$E$14,"",OFFSET(INDIRECT(MID(CELL("filename",Sheet1!$A$15),FIND("]",CELL("filename",Sheet1!$A$15))+1,31)&"!"&ADDRESS(MATCH(Sheet7!$D$9,Sheet1!C:C,0)+1,3,4)),ROW(B12)-1+SUM($B$14:$D$14),0)) -> 
B27: =IF(ROW(B13)-1>=$B$14,"",OFFSET(INDIRECT(MID(CELL("filename",Sheet1!$A$15),FIND("]",CELL("filename",Sheet1!$A$15))+1,31)&"!"&ADDRESS(MATCH(Sheet7!$D$9,Sheet1!C:C,0)+1,3,4)),ROW(B13)-1,0)) ->  | C27: =IF(ROW(B13)-1>=$C$14,"",OFFSET(INDIRECT(MID(CELL("filename",Sheet1!$A$15),FIND("]",CELL("filename",Sheet1!$A$15))+1,31)&"!"&ADDRESS(MATCH(Sheet7!$D$9,Sheet1!C:C,0)+1,3,4)),ROW(B13)-1+SUM($B$14:$B$14),0)) ->  | D27: =IF(ROW(B13)-1>=$D$14,"",OFFSET(INDIRECT(MID(CELL("filename",Sheet1!$A$15),FIND("]",CELL("filename",Sheet1!$A$15))+1,31)&"!"&ADDRESS(MATCH(Sheet7!$D$9,Sheet1!C:C,0)+1,3,4)),ROW(B13)-1+SUM($B$14:$C$14),0)) ->  | E27: =IF(ROW(B13)-1>=$E$14,"",OFFSET(INDIRECT(MID(CELL("filename",Sheet1!$A$15),FIND("]",CELL("filename",Sheet1!$A$15))+1,31)&"!"&ADDRESS(MATCH(Sheet7!$D$9,Sheet1!C:C,0)+1,3,4)),ROW(B13)-1+SUM($B$14:$D$14),0)) -> 
B28: =IF(ROW(B14)-1>=$B$14,"",OFFSET(INDIRECT(MID(CELL("filename",Sheet1!$A$15),FIND("]",CELL("filename",Sheet1!$A$15))+1,31)&"!"&ADDRESS(MATCH(Sheet7!$D$9,Sheet1!C:C,0)+1,3,4)),ROW(B14)-1,0)) ->  | C28: =IF(ROW(B14)-1>=$C$14,"",OFFSET(INDIRECT(MID(CELL("filename",Sheet1!$A$15),FIND("]",CELL("filename",Sheet1!$A$15))+1,31)&"!"&ADDRESS(MATCH(Sheet7!$D$9,Sheet1!C:C,0)+1,3,4)),ROW(B14)-1+SUM($B$14:$B$14),0)) ->  | D28: =IF(ROW(B14)-1>=$D$14,"",OFFSET(INDIRECT(MID(CELL("filename",Sheet1!$A$15),FIND("]",CELL("filename",Sheet1!$A$15))+1,31)&"!"&ADDRESS(MATCH(Sheet7!$D$9,Sheet1!C:C,0)+1,3,4)),ROW(B14)-1+SUM($B$14:$C$14),0)) ->  | E28: =IF(ROW(B14)-1>=$E$14,"",OFFSET(INDIRECT(MID(CELL("filename",Sheet1!$A$15),FIND("]",CELL("filename",Sheet1!$A$15))+1,31)&"!"&ADDRESS(MATCH(Sheet7!$D$9,Sheet1!C:C,0)+1,3,4)),ROW(B14)-1+SUM($B$14:$D$14),0)) -> 
B29: =IF(ROW(B15)-1>=$B$14,"",OFFSET(INDIRECT(MID(CELL("filename",Sheet1!$A$15),FIND("]",CELL("filename",Sheet1!$A$15))+1,31)&"!"&ADDRESS(MATCH(Sheet7!$D$9,Sheet1!C:C,0)+1,3,4)),ROW(B15)-1,0)) ->  | C29: =IF(ROW(B15)-1>=$C$14,"",OFFSET(INDIRECT(MID(CELL("filename",Sheet1!$A$15),FIND("]",CELL("filename",Sheet1!$A$15))+1,31)&"!"&ADDRESS(MATCH(Sheet7!$D$9,Sheet1!C:C,0)+1,3,4)),ROW(B15)-1+SUM($B$14:$B$14),0)) ->  | D29: =IF(ROW(B15)-1>=$D$14,"",OFFSET(INDIRECT(MID(CELL("filename",Sheet1!$A$15),FIND("]",CELL("filename",Sheet1!$A$15))+1,31)&"!"&ADDRESS(MATCH(Sheet7!$D$9,Sheet1!C:C,0)+1,3,4)),ROW(B15)-1+SUM($B$14:$C$14),0)) ->  | E29: =IF(ROW(B15)-1>=$E$14,"",OFFSET(INDIRECT(MID(CELL("filename",Sheet1!$A$15),FIND("]",CELL("filename",Sheet1!$A$15))+1,31)&"!"&ADDRESS(MATCH(Sheet7!$D$9,Sheet1!C:C,0)+1,3,4)),ROW(B15)-1+SUM($B$14:$D$14),0)) -> 
B30: =IF(ROW(B16)-1>=$B$14,"",OFFSET(INDIRECT(MID(CELL("filename",Sheet1!$A$15),FIND("]",CELL("filename",Sheet1!$A$15))+1,31)&"!"&ADDRESS(MATCH(Sheet7!$D$9,Sheet1!C:C,0)+1,3,4)),ROW(B16)-1,0)) ->  | C30: =IF(ROW(B16)-1>=$C$14,"",OFFSET(INDIRECT(MID(CELL("filename",Sheet1!$A$15),FIND("]",CELL("filename",Sheet1!$A$15))+1,31)&"!"&ADDRESS(MATCH(Sheet7!$D$9,Sheet1!C:C,0)+1,3,4)),ROW(B16)-1+SUM($B$14:$B$14),0)) ->  | D30: =IF(ROW(B16)-1>=$D$14,"",OFFSET(INDIRECT(MID(CELL("filename",Sheet1!$A$15),FIND("]",CELL("filename",Sheet1!$A$15))+1,31)&"!"&ADDRESS(MATCH(Sheet7!$D$9,Sheet1!C:C,0)+1,3,4)),ROW(B16)-1+SUM($B$14:$C$14),0)) ->  | E30: =IF(ROW(B16)-1>=$E$14,"",OFFSET(INDIRECT(MID(CELL("filename",Sheet1!$A$15),FIND("]",CELL("filename",Sheet1!$A$15))+1,31)&"!"&ADDRESS(MATCH(Sheet7!$D$9,Sheet1!C:C,0)+1,3,4)),ROW(B16)-1+SUM($B$14:$D$14),0)) -> 
B31: =IF(ROW(B17)-1>=$B$14,"",OFFSET(INDIRECT(MID(CELL("filename",Sheet1!$A$15),FIND("]",CELL("filename",Sheet1!$A$15))+1,31)&"!"&ADDRESS(MATCH(Sheet7!$D$9,Sheet1!C:C,0)+1,3,4)),ROW(B17)-1,0)) ->  | C31: =IF(ROW(B17)-1>=$C$14,"",OFFSET(INDIRECT(MID(CELL("filename",Sheet1!$A$15),FIND("]",CELL("filename",Sheet1!$A$15))+1,31)&"!"&ADDRESS(MATCH(Sheet7!$D$9,Sheet1!C:C,0)+1,3,4)),ROW(B17)-1+SUM($B$14:$B$14),0)) ->  | D31: =IF(ROW(B17)-1>=$D$14,"",OFFSET(INDIRECT(MID(CELL("filename",Sheet1!$A$15),FIND("]",CELL("filename",Sheet1!$A$15))+1,31)&"!"&ADDRESS(MATCH(Sheet7!$D$9,Sheet1!C:C,0)+1,3,4)),ROW(B17)-1+SUM($B$14:$C$14),0)) ->  | E31: =IF(ROW(B17)-1>=$E$14,"",OFFSET(INDIRECT(MID(CELL("filename",Sheet1!$A$15),FIND("]",CELL("filename",Sheet1!$A$15))+1,31)&"!"&ADDRESS(MATCH(Sheet7!$D$9,Sheet1!C:C,0)+1,3,4)),ROW(B17)-1+SUM($B$14:$D$14),0)) -> 
B32: =IF(ROW(B18)-1>=$B$14,"",OFFSET(INDIRECT(MID(CELL("filename",Sheet1!$A$15),FIND("]",CELL("filename",Sheet1!$A$15))+1,31)&"!"&ADDRESS(MATCH(Sheet7!$D$9,Sheet1!C:C,0)+1,3,4)),ROW(B18)-1,0)) ->  | C32: =IF(ROW(B18)-1>=$C$14,"",OFFSET(INDIRECT(MID(CELL("filename",Sheet1!$A$15),FIND("]",CELL("filename",Sheet1!$A$15))+1,31)&"!"&ADDRESS(MATCH(Sheet7!$D$9,Sheet1!C:C,0)+1,3,4)),ROW(B18)-1+SUM($B$14:$B$14),0)) ->  | D32: =IF(ROW(B18)-1>=$D$14,"",OFFSET(INDIRECT(MID(CELL("filename",Sheet1!$A$15),FIND("]",CELL("filename",Sheet1!$A$15))+1,31)&"!"&ADDRESS(MATCH(Sheet7!$D$9,Sheet1!C:C,0)+1,3,4)),ROW(B18)-1+SUM($B$14:$C$14),0)) ->  | E32: =IF(ROW(B18)-1>=$E$14,"",OFFSET(INDIRECT(MID(CELL("filename",Sheet1!$A$15),FIND("]",CELL("filename",Sheet1!$A$15))+1,31)&"!"&ADDRESS(MATCH(Sheet7!$D$9,Sheet1!C:C,0)+1,3,4)),ROW(B18)-1+SUM($B$14:$D$14),0)) -> 
B33: =IF(ROW(B19)-1>=$B$14,"",OFFSET(INDIRECT(MID(CELL("filename",Sheet1!$A$15),FIND("]",CELL("filename",Sheet1!$A$15))+1,31)&"!"&ADDRESS(MATCH(Sheet7!$D$9,Sheet1!C:C,0)+1,3,4)),ROW(B19)-1,0)) ->  | C33: =IF(ROW(B19)-1>=$C$14,"",OFFSET(INDIRECT(MID(CELL("filename",Sheet1!$A$15),FIND("]",CELL("filename",Sheet1!$A$15))+1,31)&"!"&ADDRESS(MATCH(Sheet7!$D$9,Sheet1!C:C,0)+1,3,4)),ROW(B19)-1+SUM($B$14:$B$14),0)) ->  | D33: =IF(ROW(B19)-1>=$D$14,"",OFFSET(INDIRECT(MID(CELL("filename",Sheet1!$A$15),FIND("]",CELL("filename",Sheet1!$A$15))+1,31)&"!"&ADDRESS(MATCH(Sheet7!$D$9,Sheet1!C:C,0)+1,3,4)),ROW(B19)-1+SUM($B$14:$C$14),0)) ->  | E33: =IF(ROW(B19)-1>=$E$14,"",OFFSET(INDIRECT(MID(CELL("filename",Sheet1!$A$15),FIND("]",CELL("filename",Sheet1!$A$15))+1,31)&"!"&ADDRESS(MATCH(Sheet7!$D$9,Sheet1!C:C,0)+1,3,4)),ROW(B19)-1+SUM($B$14:$D$14),0)) -> 
B34: =IF(ROW(B20)-1>=$B$14,"",OFFSET(INDIRECT(MID(CELL("filename",Sheet1!$A$15),FIND("]",CELL("filename",Sheet1!$A$15))+1,31)&"!"&ADDRESS(MATCH(Sheet7!$D$9,Sheet1!C:C,0)+1,3,4)),ROW(B20)-1,0)) ->  | C34: =IF(ROW(B20)-1>=$C$14,"",OFFSET(INDIRECT(MID(CELL("filename",Sheet1!$A$15),FIND("]",CELL("filename",Sheet1!$A$15))+1,31)&"!"&ADDRESS(MATCH(Sheet7!$D$9,Sheet1!C:C,0)+1,3,4)),ROW(B20)-1+SUM($B$14:$B$14),0)) ->  | D34: =IF(ROW(B20)-1>=$D$14,"",OFFSET(INDIRECT(MID(CELL("filename",Sheet1!$A$15),FIND("]",CELL("filename",Sheet1!$A$15))+1,31)&"!"&ADDRESS(MATCH(Sheet7!$D$9,Sheet1!C:C,0)+1,3,4)),ROW(B20)-1+SUM($B$14:$C$14),0)) ->  | E34: =IF(ROW(B20)-1>=$E$14,"",OFFSET(INDIRECT(MID(CELL("filename",Sheet1!$A$15),FIND("]",CELL("filename",Sheet1!$A$15))+1,31)&"!"&ADDRESS(MATCH(Sheet7!$D$9,Sheet1!C:C,0)+1,3,4)),ROW(B20)-1+SUM($B$14:$D$14),0)) -> 
B36: परीक्षा प्रभारी | E36: केन्द्राधीक्षक
B37: =Sheet2!$B$37 -> XYZ (Lecturer) | E37: =Sheet2!$E$37 -> XYZ (Principal)

Sheet Sheet9
B1: =Sheet2!$B$1 -> Half Yearly Examination 2024
B2: परीक्षा केंद्र नाम एवं परीक्षा केंद्र क्रमांक
B3: =Sheet2!$B$3 -> Govt Sr Sc School Malutana (216405)
B4: परीक्षा कक्ष / हॉल क्रमांक
B5: =Sheet2!$K$8 -> 08
B6: परीक्षा दिनांक (दिवस) ... से ... तक
B7: =Sheet2!$B$7 -> 14-12-2024 | C7: =IF(B7="","",TEXT(B7,"DDDD")) -> Saturday | D7: =Sheet2!$D$7 -> 24-12-2024 | E7: =IF(D7="","",TEXT(D7,"DDDD")) -> Tuesday
B8: परीक्षार्थी रोल नंबर ... से ... तक
B9: =IF(B14>0,B15,IF(C14>0,C15,IF(D14>0,D15,IF(E14>0,E15,0)))) -> 1096 | D9: =IF(E14>0,LOOKUP(2,1/(E15:E34<>""),E15:E34),IF(D14>0,LOOKUP(2,1/(D15:D34<>""),D15:D34),IF(C14>0,LOOKUP(2,1/(C15:C34<>""),C15:C34),IF(B14>0,LOOKUP(2,1/(B15:B34<>""),B15:B34),0)))) -> 2101
B10: कुल सम्मिलित परीक्षार्थी
B11: =COUNTIF($B$15:$E$34,">0") -> 17
B12: परीक्षार्थी बैठक व्यवस्था
B13: पंक्ति 1 | C13: पंक्ति 2 | D13: पंक्ति 3 | E13: पंक्ति 4
B14: =Sheet2!L8 -> 6 | C14: =Sheet2!M8 -> 0 | D14: =Sheet2!N8 -> 0 | E14: =Sheet2!O8 -> 11
B15: =IF(ROW(B1)-1>=$B$14,"",OFFSET(INDIRECT(MID(CELL("filename",Sheet1!$A$15),FIND("]",CELL("filename",Sheet1!$A$15))+1,31)&"!"&ADDRESS(MATCH(Sheet8!$D$9,Sheet1!C:C,0)+1,3,4)),ROW(B1)-1,0)) -> 1096 | C15: =IF(ROW(B1)-1>=$C$14,"",OFFSET(INDIRECT(MID(CELL("filename",Sheet1!$A$15),FIND("]",CELL("filename",Sheet1!$A$15))+1,31)&"!"&ADDRESS(MATCH(Sheet8!$D$9,Sheet1!C:C,0)+1,3,4)),ROW(B1)-1+SUM($B$14:$B$14),0)) ->  | D15: =IF(ROW(B1)-1>=$D$14,"",OFFSET(INDIRECT(MID(CELL("filename",Sheet1!$A$15),FIND("]",CELL("filename",Sheet1!$A$15))+1,31)&"!"&ADDRESS(MATCH(Sheet8!$D$9,Sheet1!C:C,0)+1,3,4)),ROW(B1)-1+SUM($B$14:$C$14),0)) ->  | E15: =IF(ROW(B1)-1>=$E$14,"",OFFSET(INDIRECT(MID(CELL("filename",Sheet1!$A$15),FIND("]",CELL("filename",Sheet1!$A$15))+1,31)&"!"&ADDRESS(MATCH(Sheet8!$D$9,Sheet1!C:C,0)+1,3,4)),ROW(B1)-1+SUM($B$14:$D$14),0)) -> 1098 | F15: =IF(SUM(B15:E15)>0,1,"") -> 1
B16: =IF(ROW(B2)-1>=$B$14,"",OFFSET(INDIRECT(MID(CELL("filename",Sheet1!$A$15),FIND("]",CELL("filename",Sheet1!$A$15))+1,31)&"!"&ADDRESS(MATCH(Sheet8!$D$9,Sheet1!C:C,0)+1,3,4)),ROW(B2)-1,0)) -> 2096 | C16: =IF(ROW(B2)-1>=$C$14,"",OFFSET(INDIRECT(MID(CELL("filename",Sheet1!$A$15),FIND("]",CELL("filename",Sheet1!$A$15))+1,31)&"!"&ADDRESS(MATCH(Sheet8!$D$9,Sheet1!C:C,0)+1,3,4)),ROW(B2)-1+SUM($B$14:$B$14),0)) ->  | D16: =IF(ROW(B2)-1>=$D$14,"",OFFSET(INDIRECT(MID(CELL("filename",Sheet1!$A$15),FIND("]",CELL("filename",Sheet1!$A$15))+1,31)&"!"&ADDRESS(MATCH(Sheet8!$D$9,Sheet1!C:C,0)+1,3,4)),ROW(B2)-1+SUM($B$14:$C$14),0)) ->  | E16: =IF(ROW(B2)-1>=$E$14,"",OFFSET(INDIRECT(MID(CELL("filename",Sheet1!$A$15),FIND("]",CELL("filename",Sheet1!$A$15))+1,31)&"!"&ADDRESS(MATCH(Sheet8!$D$9,Sheet1!C:C,0)+1,3,4)),ROW(B2)-1+SUM($B$14:$D$14),0)) -> 2098 | F16: =IF(SUM(B16:E16)>0,1,"") -> 1
B17: =IF(ROW(B3)-1>=$B$14,"",OFFSET(INDIRECT(MID(CELL("filename",Sheet1!$A$15),FIND("]",CELL("filename",Sheet1!$A$15))+1,31)&"!"&ADDRESS(MATCH(Sheet8!$D$9,Sheet1!C:C,0)+1,3,4)),ROW(B3)-1,0)) -> 197 | C17: =IF(ROW(B3)-1>=$C$14,"",OFFSET(INDIRECT(MID(CELL("filename",Sheet1!$A$15),FIND("]",CELL("filename",Sheet1!$A$15))+1,31)&"!"&ADDRESS(MATCH(Sheet8!$D$9,Sheet1!C:C,0)+1,3,4)),ROW(B3)-1+SUM($B$14:$B$14),0)) ->  | D17: =IF(ROW(B3)-1>=$D$14,"",OFFSET(INDIRECT(MID(CELL("filename",Sheet1!$A$15),FIND("]",CELL("filename",Sheet1!$A$15))+1,31)&"!"&ADDRESS(MATCH(Sheet8!$D$9,Sheet1!C:C,0)+1,3,4)),ROW(B3)-1+SUM($B$14:$C$14),0)) ->  | E17: =IF(ROW(B3)-1>=$E$14,"",OFFSET(INDIRECT(MID(CELL("filename",Sheet1!$A$15),FIND("]",CELL("filename",Sheet1!$A$15))+1,31)&"!"&ADDRESS(MATCH(Sheet8!$D$9,Sheet1!C:C,0)+1,3,4)),ROW(B3)-1+SUM($B$14:$D$14),0)) -> 199 | F17: 1
B18: =IF(ROW(B4)-1>=$B$14,"",OFFSET(INDIRECT(MID(CELL("filename",Sheet1!$A$15),FIND("]",CELL("filename",Sheet1!$A$15))+1,31)&"!"&ADDRESS(MATCH(Sheet8!$D$9,Sheet1!C:C,0)+1,3,4)),ROW(B4)-1,0)) -> 1097 | C18: =IF(ROW(B4)-1>=$C$14,"",OFFSET(INDIRECT(MID(CELL("filename",Sheet1!$A$15),FIND("]",CELL("filename",Sheet1!$A$15))+1,31)&"!"&ADDRESS(MATCH(Sheet8!$D$9,Sheet1!C:C,0)+1,3,4)),ROW(B4)-1+SUM($B$14:$B$14),0)) ->  | D18: =IF(ROW(B4)-1>=$D$14,"",OFFSET(INDIRECT(MID(CELL("filename",Sheet1!$A$15),FIND("]",CELL("filename",Sheet1!$A$15))+1,31)&"!"&ADDRESS(MATCH(Sheet8!$D$9,Sheet1!C:C,0)+1,3,4)),ROW(B4)-1+SUM($B$14:$C$14),0)) ->  | E18: =IF(ROW(B4)-1>=$E$14,"",OFFSET(INDIRECT(MID(CELL("filename",Sheet1!$A$15),FIND("]",CELL("filename",Sheet1!$A$15))+1,31)&"!"&ADDRESS(MATCH(Sheet8!$D$9,Sheet1!C:C,0)+1,3,4)),ROW(B4)-1+SUM($B$14:$D$14),0)) -> 1099 | F18: 1
B19: =IF(ROW(B5)-1>=$B$14,"",OFFSET(INDIRECT(MID(CELL("filename",Sheet1!$A$15),FIND("]",CELL("filename",Sheet1!$A$15))+1,31)&"!"&ADDRESS(MATCH(Sheet8!$D$9,Sheet1!C:C,0)+1,3,4)),ROW(B5)-1,0)) -> 2097 | C19: =IF(ROW(B5)-1>=$C$14,"",OFFSET(INDIRECT(MID(CELL("filename",Sheet1!$A$15),FIND("]",CELL("filename",Sheet1!$A$15))+1,31)&"!"&ADDRESS(MATCH(Sheet8!$D$9,Sheet1!C:C,0)+1,3,4)),ROW(B5)-1+SUM($B$14:$B$14),0)) ->  | D19: =IF(ROW(B5)-1>=$D$14,"",OFFSET(INDIRECT(MID(CELL("filename",Sheet1!$A$15),FIND("]",CELL("filename",Sheet1!$A$15))+1,31)&"!"&ADDRESS(MATCH(Sheet8!$D$9,Sheet1!C:C,0)+1,3,4)),ROW(B5)-1+SUM($B$14:$C$14),0)) ->  | E19: =IF(ROW(B5)-1>=$E$14,"",OFFSET(INDIRECT(MID(CELL("filename",Sheet1!$A$15),FIND("]",CELL("filename",Sheet1!$A$15))+1,31)&"!"&ADDRESS(MATCH(Sheet8!$D$9,Sheet1!C:C,0)+1,3,4)),ROW(B5)-1+SUM($B$14:$D$14),0)) -> 2099 | F19: 1
B20: =IF(ROW(B6)-1>=$B$14,"",OFFSET(INDIRECT(MID(CELL("filename",Sheet1!$A$15),FIND("]",CELL("filename",Sheet1!$A$15))+1,31)&"!"&ADDRESS(MATCH(Sheet8!$D$9,Sheet1!C:C,0)+1,3,4)),ROW(B6)-1,0)) -> 198 | C20: =IF(ROW(B6)-1>=$C$14,"",OFFSET(INDIRECT(MID(CELL("filename",Sheet1!$A$15),FIND("]",CELL("filename",Sheet1!$A$15))+1,31)&"!"&ADDRESS(MATCH(Sheet8!$D$9,Sheet1!C:C,0)+1,3,4)),ROW(B6)-1+SUM($B$14:$B$14),0)) ->  | D20: =IF(ROW(B6)-1>=$D$14,"",OFFSET(INDIRECT(MID(CELL("filename",Sheet1!$A$15),FIND("]",CELL("filename",Sheet1!$A$15))+1,31)&"!"&ADDRESS(MATCH(Sheet8!$D$9,Sheet1!C:C,0)+1,3,4)),ROW(B6)-1+SUM($B$14:$C$14),0)) ->  | E20: =IF(ROW(B6)-1>=$E$14,"",OFFSET(INDIRECT(MID(CELL("filename",Sheet1!$A$15),FIND("]",CELL("filename",Sheet1!$A$15))+1,31)&"!"&ADDRESS(MATCH(Sheet8!$D$9,Sheet1!C:C,0)+1,3,4)),ROW(B6)-1+SUM($B$14:$D$14),0)) -> 200 | F20: 1
B21: =IF(ROW(B7)-1>=$B$14,"",OFFSET(INDIRECT(MID(CELL("filename",Sheet1!$A$15),FIND("]",CELL("filename",Sheet1!$A$15))+1,31)&"!"&ADDRESS(MATCH(Sheet8!$D$9,Sheet1!C:C,0)+1,3,4)),ROW(B7)-1,0)) ->  | C21: =IF(ROW(B7)-1>=$C$14,"",OFFSET(INDIRECT(MID(CELL("filename",Sheet1!$A$15),FIND("]",CELL("filename",Sheet1!$A$15))+1,31)&"!"&ADDRESS(MATCH(Sheet8!$D$9,Sheet1!C:C,0)+1,3,4)),ROW(B7)-1+SUM($B$14:$B$14),0)) ->  | D21: =IF(ROW(B7)-1>=$D$14,"",OFFSET(INDIRECT(MID(CELL("filename",Sheet1!$A$15),FIND("]",CELL("filename",Sheet1!$A$15))+1,31)&"!"&ADDRESS(MATCH(Sheet8!$D$9,Sheet1!C:C,0)+1,3,4)),ROW(B7)-1+SUM($B$14:$C$14),0)) ->  | E21: =IF(ROW(B7)-1>=$E$14,"",OFFSET(INDIRECT(MID(CELL("filename",Sheet1!$A$15),FIND("]",CELL("filename",Sheet1!$A$15))+1,31)&"!"&ADDRESS(MATCH(Sheet8!$D$9,Sheet1!C:C,0)+1,3,4)),ROW(B7)-1+SUM($B$14:$D$14),0)) -> 1100 | F21: 1
B22: =IF(ROW(B8)-1>=$B$14,"",OFFSET(INDIRECT(MID(CELL("filename",Sheet1!$A$15),FIND("]",CELL("filename",Sheet1!$A$15))+1,31)&"!"&ADDRESS(MATCH(Sheet8!$D$9,Sheet1!C:C,0)+1,3,4)),ROW(B8)-1,0)) ->  | C22: =IF(ROW(B8)-1>=$C$14,"",OFFSET(INDIRECT(MID(CELL("filename",Sheet1!$A$15),FIND("]",CELL("filename",Sheet1!$A$15))+1,31)&"!"&ADDRESS(MATCH(Sheet8!$D$9,Sheet1!C:C,0)+1,3,4)),ROW(B8)-1+SUM($B$14:$B$14),0)) ->  | D22: =IF(ROW(B8)-1>=$D$14,"",OFFSET(INDIRECT(MID(CELL("filename",Sheet1!$A$15),FIND("]",CELL("filename",Sheet1!$A$15))+1,31)&"!"&ADDRESS(MATCH(Sheet8!$D$9,Sheet1!C:C,0)+1,3,4)),ROW(B8)-1+SUM($B$14:$C$14),0)) ->  | E22: =IF(ROW(B8)-1>=$E$14,"",OFFSET(INDIRECT(MID(CELL("filename",Sheet1!$A$15),FIND("]",CELL("filename",Sheet1!$A$15))+1,31)&"!"&ADDRESS(MATCH(Sheet8!$D$9,Sheet1!C:C,0)+1,3,4)),ROW(B8)-1+SUM($B$14:$D$14),0)) -> 2100 | F22: 1
B23: =IF(ROW(B9)-1>=$B$14,"",OFFSET(INDIRECT(MID(CELL("filename",Sheet1!$A$15),FIND("]",CELL("filename",Sheet1!$A$15))+1,31)&"!"&ADDRESS(MATCH(Sheet8!$D$9,Sheet1!C:C,0)+1,3,4)),ROW(B9)-1,0)) ->  | C23: =IF(ROW(B9)-1>=$C$14,"",OFFSET(INDIRECT(MID(CELL("filename",Sheet1!$A$15),FIND("]",CELL("filename",Sheet1!$A$15))+1,31)&"!"&ADDRESS(MATCH(Sheet8!$D$9,Sheet1!C:C,0)+1,3,4)),ROW(B9)-1+SUM($B$14:$B$14),0)) ->  | D23: =IF(ROW(B9)-1>=$D$14,"",OFFSET(INDIRECT(MID(CELL("filename",Sheet1!$A$15),FIND("]",CELL("filename",Sheet1!$A$15))+1,31)&"!"&ADDRESS(MATCH(Sheet8!$D$9,Sheet1!C:C,0)+1,3,4)),ROW(B9)-1+SUM($B$14:$C$14),0)) ->  | E23: =IF(ROW(B9)-1>=$E$14,"",OFFSET(INDIRECT(MID(CELL("filename",Sheet1!$A$15),FIND("]",CELL("filename",Sheet1!$A$15))+1,31)&"!"&ADDRESS(MATCH(Sheet8!$D$9,Sheet1!C:C,0)+1,3,4)),ROW(B9)-1+SUM($B$14:$D$14),0)) -> 201 | F23: 1
B24: =IF(ROW(B10)-1>=$B$14,"",OFFSET(INDIRECT(MID(CELL("filename",Sheet1!$A$15),FIND("]",CELL("filename",Sheet1!$A$15))+1,31)&"!"&ADDRESS(MATCH(Sheet8!$D$9,Sheet1!C:C,0)+1,3,4)),ROW(B10)-1,0)) ->  | C24: =IF(ROW(B10)-1>=$C$14,"",OFFSET(INDIRECT(MID(CELL("filename",Sheet1!$A$15),FIND("]",CELL("filename",Sheet1!$A$15))+1,31)&"!"&ADDRESS(MATCH(Sheet8!$D$9,Sheet1!C:C,0)+1,3,4)),ROW(B10)-1+SUM($B$14:$B$14),0)) ->  | D24: =IF(ROW(B10)-1>=$D$14,"",OFFSET(INDIRECT(MID(CELL("filename",Sheet1!$A$15),FIND("]",CELL("filename",Sheet1!$A$15))+1,31)&"!"&ADDRESS(MATCH(Sheet8!$D$9,Sheet1!C:C,0)+1,3,4)),ROW(B10)-1+SUM($B$14:$C$14),0)) ->  | E24: =IF(ROW(B10)-1>=$E$14,"",OFFSET(INDIRECT(MID(CELL("filename",Sheet1!$A$15),FIND("]",CELL("filename",Sheet1!$A$15))+1,31)&"!"&ADDRESS(MATCH(Sheet8!$D$9,Sheet1!C:C,0)+1,3,4)),ROW(B10)-1+SUM($B$14:$D$14),0)) -> 1101 | F24: 1
B25: =IF(ROW(B11)-1>=$B$14,"",OFFSET(INDIRECT(MID(CELL("filename",Sheet1!$A$15),FIND("]",CELL("filename",Sheet1!$A$15))+1,31)&"!"&ADDRESS(MATCH(Sheet8!$D$9,Sheet1!C:C,0)+1,3,4)),ROW(B11)-1,0)) ->  | C25: =IF(ROW(B11)-1>=$C$14,"",OFFSET(INDIRECT(MID(CELL("filename",Sheet1!$A$15),FIND("]",CELL("filename",Sheet1!$A$15))+1,31)&"!"&ADDRESS(MATCH(Sheet8!$D$9,Sheet1!C:C,0)+1,3,4)),ROW(B11)-1+SUM($B$14:$B$14),0)) ->  | D25: =IF(ROW(B11)-1>=$D$14,"",OFFSET(INDIRECT(MID(CELL("filename",Sheet1!$A$15),FIND("]",CELL("filename",Sheet1!$A$15))+1,31)&"!"&ADDRESS(MATCH(Sheet8!$D$9,Sheet1!C:C,0)+1,3,4)),ROW(B11)-1+SUM($B$14:$C$14),0)) ->  | E25: =IF(ROW(B11)-1>=$E$14,"",OFFSET(INDIRECT(MID(CELL("filename",Sheet1!$A$15),FIND("]",CELL("filename",Sheet1!$A$15))+1,31)&"!"&ADDRESS(MATCH(Sheet8!$D$9,Sheet1!C:C,0)+1,3,4)),ROW(B11)-1+SUM($B$14:$D$14),0)) -> 2101 | F25: 1
B26: =IF(ROW(B12)-1>=$B$14,"",OFFSET(INDIRECT(MID(CELL("filename",Sheet1!$A$15),FIND("]",CELL("filename",Sheet1!$A$15))+1,31)&"!"&ADDRESS(MATCH(Sheet8!$D$9,Sheet1!C:C,0)+1,3,4)),ROW(B12)-1,0)) ->  | C26: =IF(ROW(B12)-1>=$C$14,"",OFFSET(INDIRECT(MID(CELL("filename",Sheet1!$A$15),FIND("]",CELL("filename",Sheet1!$A$15))+1,31)&"!"&ADDRESS(MATCH(Sheet8!$D$9,Sheet1!C:C,0)+1,3,4)),ROW(B12)-1+SUM($B$14:$B$14),0)) ->  | D26: =IF(ROW(B12)-1>=$D$14,"",OFFSET(INDIRECT(MID(CELL("filename",Sheet1!$A$15),FIND("]",CELL("filename",Sheet1!$A$15))+1,31)&"!"&ADDRESS(MATCH(Sheet8!$D$9,Sheet1!C:C,0)+1,3,4)),ROW(B12)-1+SUM($B$14:$C$14),0)) ->  | E26: =IF(ROW(B12)-1>=$E$14,"",OFFSET(INDIRECT(MID(CELL("filename",Sheet1!$A$15),FIND("]",CELL("filename",Sheet1!$A$15))+1,31)&"!"&ADDRESS(MATCH(Sheet8!$D$9,Sheet1!C:C,0)+1,3,4)),ROW(B12)-1+SUM($B$14:$D$14),0)) -> 
B27: =IF(ROW(B13)-1>=$B$14,"",OFFSET(INDIRECT(MID(CELL("filename",Sheet1!$A$15),FIND("]",CELL("filename",Sheet1!$A$15))+1,31)&"!"&ADDRESS(MATCH(Sheet8!$D$9,Sheet1!C:C,0)+1,3,4)),ROW(B13)-1,0)) ->  | C27: =IF(ROW(B13)-1>=$C$14,"",OFFSET(INDIRECT(MID(CELL("filename",Sheet1!$A$15),FIND("]",CELL("filename",Sheet1!$A$15))+1,31)&"!"&ADDRESS(MATCH(Sheet8!$D$9,Sheet1!C:C,0)+1,3,4)),ROW(B13)-1+SUM($B$14:$B$14),0)) ->  | D27: =IF(ROW(B13)-1>=$D$14,"",OFFSET(INDIRECT(MID(CELL("filename",Sheet1!$A$15),FIND("]",CELL("filename",Sheet1!$A$15))+1,31)&"!"&ADDRESS(MATCH(Sheet8!$D$9,Sheet1!C:C,0)+1,3,4)),ROW(B13)-1+SUM($B$14:$C$14),0)) ->  | E27: =IF(ROW(B13)-1>=$E$14,"",OFFSET(INDIRECT(MID(CELL("filename",Sheet1!$A$15),FIND("]",CELL("filename",Sheet1!$A$15))+1,31)&"!"&ADDRESS(MATCH(Sheet8!$D$9,Sheet1!C:C,0)+1,3,4)),ROW(B13)-1+SUM($B$14:$D$14),0)) -> 
B28: =IF(ROW(B14)-1>=$B$14,"",OFFSET(INDIRECT(MID(CELL("filename",Sheet1!$A$15),FIND("]",CELL("filename",Sheet1!$A$15))+1,31)&"!"&ADDRESS(MATCH(Sheet8!$D$9,Sheet1!C:C,0)+1,3,4)),ROW(B14)-1,0)) ->  | C28: =IF(ROW(B14)-1>=$C$14,"",OFFSET(INDIRECT(MID(CELL("filename",Sheet1!$A$15),FIND("]",CELL("filename",Sheet1!$A$15))+1,31)&"!"&ADDRESS(MATCH(Sheet8!$D$9,Sheet1!C:C,0)+1,3,4)),ROW(B14)-1+SUM($B$14:$B$14),0)) ->  | D28: =IF(ROW(B14)-1>=$D$14,"",OFFSET(INDIRECT(MID(CELL("filename",Sheet1!$A$15),FIND("]",CELL("filename",Sheet1!$A$15))+1,31)&"!"&ADDRESS(MATCH(Sheet8!$D$9,Sheet1!C:C,0)+1,3,4)),ROW(B14)-1+SUM($B$14:$C$14),0)) ->  | E28: =IF(ROW(B14)-1>=$E$14,"",OFFSET(INDIRECT(MID(CELL("filename",Sheet1!$A$15),FIND("]",CELL("filename",Sheet1!$A$15))+1,31)&"!"&ADDRESS(MATCH(Sheet8!$D$9,Sheet1!C:C,0)+1,3,4)),ROW(B14)-1+SUM($B$14:$D$14),0)) -> 
B29: =IF(ROW(B15)-1>=$B$14,"",OFFSET(INDIRECT(MID(CELL("filename",Sheet1!$A$15),FIND("]",CELL("filename",Sheet1!$A$15))+1,31)&"!"&ADDRESS(MATCH(Sheet8!$D$9,Sheet1!C:C,0)+1,3,4)),ROW(B15)-1,0)) ->  | C29: =IF(ROW(B15)-1>=$C$14,"",OFFSET(INDIRECT(MID(CELL("filename",Sheet1!$A$15),FIND("]",CELL("filename",Sheet1!$A$15))+1,31)&"!"&ADDRESS(MATCH(Sheet8!$D$9,Sheet1!C:C,0)+1,3,4)),ROW(B15)-1+SUM($B$14:$B$14),0)) ->  | D29: =IF(ROW(B15)-1>=$D$14,"",OFFSET(INDIRECT(MID(CELL("filename",Sheet1!$A$15),FIND("]",CELL("filename",Sheet1!$A$15))+1,31)&"!"&ADDRESS(MATCH(Sheet8!$D$9,Sheet1!C:C,0)+1,3,4)),ROW(B15)-1+SUM($B$14:$C$14),0)) ->  | E29: =IF(ROW(B15)-1>=$E$14,"",OFFSET(INDIRECT(MID(CELL("filename",Sheet1!$A$15),FIND("]",CELL("filename",Sheet1!$A$15))+1,31)&"!"&ADDRESS(MATCH(Sheet8!$D$9,Sheet1!C:C,0)+1,3,4)),ROW(B15)-1+SUM($B$14:$D$14),0)) -> 
B30: =IF(ROW(B16)-1>=$B$14,"",OFFSET(INDIRECT(MID(CELL("filename",Sheet1!$A$15),FIND("]",CELL("filename",Sheet1!$A$15))+1,31)&"!"&ADDRESS(MATCH(Sheet8!$D$9,Sheet1!C:C,0)+1,3,4)),ROW(B16)-1,0)) ->  | C30: =IF(ROW(B16)-1>=$C$14,"",OFFSET(INDIRECT(MID(CELL("filename",Sheet1!$A$15),FIND("]",CELL("filename",Sheet1!$A$15))+1,31)&"!"&ADDRESS(MATCH(Sheet8!$D$9,Sheet1!C:C,0)+1,3,4)),ROW(B16)-1+SUM($B$14:$B$14),0)) ->  | D30: =IF(ROW(B16)-1>=$D$14,"",OFFSET(INDIRECT(MID(CELL("filename",Sheet1!$A$15),FIND("]",CELL("filename",Sheet1!$A$15))+1,31)&"!"&ADDRESS(MATCH(Sheet8!$D$9,Sheet1!C:C,0)+1,3,4)),ROW(B16)-1+SUM($B$14:$C$14),0)) ->  | E30: =IF(ROW(B16)-1>=$E$14,"",OFFSET(INDIRECT(MID(CELL("filename",Sheet1!$A$15),FIND("]",CELL("filename",Sheet1!$A$15))+1,31)&"!"&ADDRESS(MATCH(Sheet8!$D$9,Sheet1!C:C,0)+1,3,4)),ROW(B16)-1+SUM($B$14:$D$14),0)) -> 
B31: =IF(ROW(B17)-1>=$B$14,"",OFFSET(INDIRECT(MID(CELL("filename",Sheet1!$A$15),FIND("]",CELL("filename",Sheet1!$A$15))+1,31)&"!"&ADDRESS(MATCH(Sheet8!$D$9,Sheet1!C:C,0)+1,3,4)),ROW(B17)-1,0)) ->  | C31: =IF(ROW(B17)-1>=$C$14,"",OFFSET(INDIRECT(MID(CELL("filename",Sheet1!$A$15),FIND("]",CELL("filename",Sheet1!$A$15))+1,31)&"!"&ADDRESS(MATCH(Sheet8!$D$9,Sheet1!C:C,0)+1,3,4)),ROW(B17)-1+SUM($B$14:$B$14),0)) ->  | D31: =IF(ROW(B17)-1>=$D$14,"",OFFSET(INDIRECT(MID(CELL("filename",Sheet1!$A$15),FIND("]",CELL("filename",Sheet1!$A$15))+1,31)&"!"&ADDRESS(MATCH(Sheet8!$D$9,Sheet1!C:C,0)+1,3,4)),ROW(B17)-1+SUM($B$14:$C$14),0)) ->  | E31: =IF(ROW(B17)-1>=$E$14,"",OFFSET(INDIRECT(MID(CELL("filename",Sheet1!$A$15),FIND("]",CELL("filename",Sheet1!$A$15))+1,31)&"!"&ADDRESS(MATCH(Sheet8!$D$9,Sheet1!C:C,0)+1,3,4)),ROW(B17)-1+SUM($B$14:$D$14),0)) -> 
B32: =IF(ROW(B18)-1>=$B$14,"",OFFSET(INDIRECT(MID(CELL("filename",Sheet1!$A$15),FIND("]",CELL("filename",Sheet1!$A$15))+1,31)&"!"&ADDRESS(MATCH(Sheet8!$D$9,Sheet1!C:C,0)+1,3,4)),ROW(B18)-1,0)) ->  | C32: =IF(ROW(B18)-1>=$C$14,"",OFFSET(INDIRECT(MID(CELL("filename",Sheet1!$A$15),FIND("]",CELL("filename",Sheet1!$A$15))+1,31)&"!"&ADDRESS(MATCH(Sheet8!$D$9,Sheet1!C:C,0)+1,3,4)),ROW(B18)-1+SUM($B$14:$B$14),0)) ->  | D32: =IF(ROW(B18)-1>=$D$14,"",OFFSET(INDIRECT(MID(CELL("filename",Sheet1!$A$15),FIND("]",CELL("filename",Sheet1!$A$15))+1,31)&"!"&ADDRESS(MATCH(Sheet8!$D$9,Sheet1!C:C,0)+1,3,4)),ROW(B18)-1+SUM($B$14:$C$14),0)) ->  | E32: =IF(ROW(B18)-1>=$E$14,"",OFFSET(INDIRECT(MID(CELL("filename",Sheet1!$A$15),FIND("]",CELL("filename",Sheet1!$A$15))+1,31)&"!"&ADDRESS(MATCH(Sheet8!$D$9,Sheet1!C:C,0)+1,3,4)),ROW(B18)-1+SUM($B$14:$D$14),0)) -> 
B33: =IF(ROW(B19)-1>=$B$14,"",OFFSET(INDIRECT(MID(CELL("filename",Sheet1!$A$15),FIND("]",CELL("filename",Sheet1!$A$15))+1,31)&"!"&ADDRESS(MATCH(Sheet8!$D$9,Sheet1!C:C,0)+1,3,4)),ROW(B19)-1,0)) ->  | C33: =IF(ROW(B19)-1>=$C$14,"",OFFSET(INDIRECT(MID(CELL("filename",Sheet1!$A$15),FIND("]",CELL("filename",Sheet1!$A$15))+1,31)&"!"&ADDRESS(MATCH(Sheet8!$D$9,Sheet1!C:C,0)+1,3,4)),ROW(B19)-1+SUM($B$14:$B$14),0)) ->  | D33: =IF(ROW(B19)-1>=$D$14,"",OFFSET(INDIRECT(MID(CELL("filename",Sheet1!$A$15),FIND("]",CELL("filename",Sheet1!$A$15))+1,31)&"!"&ADDRESS(MATCH(Sheet8!$D$9,Sheet1!C:C,0)+1,3,4)),ROW(B19)-1+SUM($B$14:$C$14),0)) ->  | E33: =IF(ROW(B19)-1>=$E$14,"",OFFSET(INDIRECT(MID(CELL("filename",Sheet1!$A$15),FIND("]",CELL("filename",Sheet1!$A$15))+1,31)&"!"&ADDRESS(MATCH(Sheet8!$D$9,Sheet1!C:C,0)+1,3,4)),ROW(B19)-1+SUM($B$14:$D$14),0)) -> 
B34: =IF(ROW(B20)-1>=$B$14,"",OFFSET(INDIRECT(MID(CELL("filename",Sheet1!$A$15),FIND("]",CELL("filename",Sheet1!$A$15))+1,31)&"!"&ADDRESS(MATCH(Sheet8!$D$9,Sheet1!C:C,0)+1,3,4)),ROW(B20)-1,0)) ->  | C34: =IF(ROW(B20)-1>=$C$14,"",OFFSET(INDIRECT(MID(CELL("filename",Sheet1!$A$15),FIND("]",CELL("filename",Sheet1!$A$15))+1,31)&"!"&ADDRESS(MATCH(Sheet8!$D$9,Sheet1!C:C,0)+1,3,4)),ROW(B20)-1+SUM($B$14:$B$14),0)) ->  | D34: =IF(ROW(B20)-1>=$D$14,"",OFFSET(INDIRECT(MID(CELL("filename",Sheet1!$A$15),FIND("]",CELL("filename",Sheet1!$A$15))+1,31)&"!"&ADDRESS(MATCH(Sheet8!$D$9,Sheet1!C:C,0)+1,3,4)),ROW(B20)-1+SUM($B$14:$C$14),0)) ->  | E34: =IF(ROW(B20)-1>=$E$14,"",OFFSET(INDIRECT(MID(CELL("filename",Sheet1!$A$15),FIND("]",CELL("filename",Sheet1!$A$15))+1,31)&"!"&ADDRESS(MATCH(Sheet8!$D$9,Sheet1!C:C,0)+1,3,4)),ROW(B20)-1+SUM($B$14:$D$14),0)) -> 
B36: परीक्षा प्रभारी | E36: केन्द्राधीक्षक
B37: =Sheet2!$B$37 -> XYZ (Lecturer) | E37: =Sheet2!$E$37 -> XYZ (Principal)

Sheet Sheet10
B1: =Sheet2!$B$1 -> Half Yearly Examination 2024
B2: परीक्षा केंद्र नाम एवं परीक्षा केंद्र क्रमांक
B3: =Sheet2!$B$3 -> Govt Sr Sc School Malutana (216405)
B4: परीक्षा कक्ष / हॉल क्रमांक
B5: =Sheet2!$K$9 -> 09
B6: परीक्षा दिनांक (दिवस) ... से ... तक
B7: =Sheet2!$B$7 -> 14-12-2024 | C7: =IF(B7="","",TEXT(B7,"DDDD")) -> Saturday | D7: =Sheet2!$D$7 -> 24-12-2024 | E7: =IF(D7="","",TEXT(D7,"DDDD")) -> Tuesday
B8: परीक्षार्थी रोल नंबर ... से ... तक
B9: =IF(B14>0,B15,IF(C14>0,C15,IF(D14>0,D15,IF(E14>0,E15,0)))) -> 202 | D9: =IF(E14>0,LOOKUP(2,1/(E15:E34<>""),E15:E34),IF(D14>0,LOOKUP(2,1/(D15:D34<>""),D15:D34),IF(C14>0,LOOKUP(2,1/(C15:C34<>""),C15:C34),IF(B14>0,LOOKUP(2,1/(B15:B34<>""),B15:B34),0)))) -> 2108
B10: कुल सम्मिलित परीक्षार्थी
B11: =COUNTIF($B$15:$E$34,">0") -> 21
B12: परीक्षार्थी बैठक व्यवस्था
B13: पंक्ति 1 | C13: पंक्ति 2 | D13: पंक्ति 3 | E13: पंक्ति 4
B14: =Sheet2!L9 -> 6 | C14: =Sheet2!M9 -> 5 | D14: =Sheet2!N9 -> 5 | E14: =Sheet2!O9 -> 5
B15: =IF(ROW(B1)-1>=$B$14,"",OFFSET(INDIRECT(MID(CELL("filename",Sheet1!$A$15),FIND("]",CELL("filename",Sheet1!$A$15))+1,31)&"!"&ADDRESS(MATCH(Sheet9!$D$9,Sheet1!C:C,0)+1,3,4)),ROW(B1)-1,0)) -> 202 | C15: =IF(ROW(B1)-1>=$C$14,"",OFFSET(INDIRECT(MID(CELL("filename",Sheet1!$A$15),FIND("]",CELL("filename",Sheet1!$A$15))+1,31)&"!"&ADDRESS(MATCH(Sheet9!$D$9,Sheet1!C:C,0)+1,3,4)),ROW(B1)-1+SUM($B$14:$B$14),0)) -> 204 | D15: =IF(ROW(B1)-1>=$D$14,"",OFFSET(INDIRECT(MID(CELL("filename",Sheet1!$A$15),FIND("]",CELL("filename",Sheet1!$A$15))+1,31)&"!"&ADDRESS(MATCH(Sheet9!$D$9,Sheet1!C:C,0)+1,3,4)),ROW(B1)-1+SUM($B$14:$C$14),0)) -> 2105 | E15: =IF(ROW(B1)-1>=$E$14,"",OFFSET(INDIRECT(MID(CELL("filename",Sheet1!$A$15),FIND("]",CELL("filename",Sheet1!$A$15))+1,31)&"!"&ADDRESS(MATCH(Sheet9!$D$9,Sheet1!C:C,0)+1,3,4)),ROW(B1)-1+SUM($B$14:$D$14),0)) -> 1107 | F15: =IF(SUM(B15:E15)>0,1,"") -> 1
B16: =IF(ROW(B2)-1>=$B$14,"",OFFSET(INDIRECT(MID(CELL("filename",Sheet1!$A$15),FIND("]",CELL("filename",Sheet1!$A$15))+1,31)&"!"&ADDRESS(MATCH(Sheet9!$D$9,Sheet1!C:C,0)+1,3,4)),ROW(B2)-1,0)) -> 1102 | C16: =IF(ROW(B2)-1>=$C$14,"",OFFSET(INDIRECT(MID(CELL("filename",Sheet1!$A$15),FIND("]",CELL("filename",Sheet1!$A$15))+1,31)&"!"&ADDRESS(MATCH(Sheet9!$D$9,Sheet1!C:C,0)+1,3,4)),ROW(B2)-1+SUM($B$14:$B$14),0)) -> 1104 | D16: =IF(ROW(B2)-1>=$D$14,"",OFFSET(INDIRECT(MID(CELL("filename",Sheet1!$A$15),FIND("]",CELL("filename",Sheet1!$A$15))+1,31)&"!"&ADDRESS(MATCH(Sheet9!$D$9,Sheet1!C:C,0)+1,3,4)),ROW(B2)-1+SUM($B$14:$C$14),0)) -> 206 | E16: =IF(ROW(B2)-1>=$E$14,"",OFFSET(INDIRECT(MID(CELL("filename",Sheet1!$A$15),FIND("]",CELL("filename",Sheet1!$A$15))+1,31)&"!"&ADDRESS(MATCH(Sheet9!$D$9,Sheet1!C:C,0)+1,3,4)),ROW(B2)-1+SUM($B$14:$D$14),0)) -> 2107 | F16: =IF(SUM(B16:E16)>0,1,"") -> 1
B17: =IF(ROW(B3)-1>=$B$14,"",OFFSET(INDIRECT(MID(CELL("filename",Sheet1!$A$15),FIND("]",CELL("filename",Sheet1!$A$15))+1,31)&"!"&ADDRESS(MATCH(Sheet9!$D$9,Sheet1!C:C,0)+1,3,4)),ROW(B3)-1,0)) -> 2102 | C17: =IF(ROW(B3)-1>=$C$14,"",OFFSET(INDIRECT(MID(CELL("filename",Sheet1!$A$15),FIND("]",CELL("filename",Sheet1!$A$15))+1,31)&"!"&ADDRESS(MATCH(Sheet9!$D$9,Sheet1!C:C,0)+1,3,4)),ROW(B3)-1+SUM($B$14:$B$14),0)) -> 2104 | D17: =IF(ROW(B3)-1>=$D$14,"",OFFSET(INDIRECT(MID(CELL("filename",Sheet1!$A$15),FIND("]",CELL("filename",Sheet1!$A$15))+1,31)&"!"&ADDRESS(MATCH(Sheet9!$D$9,Sheet1!C:C,0)+1,3,4)),ROW(B3)-1+SUM($B$14:$C$14),0)) -> 1106 | E17: =IF(ROW(B3)-1>=$E$14,"",OFFSET(INDIRECT(MID(CELL("filename",Sheet1!$A$15),FIND("]",CELL("filename",Sheet1!$A$15))+1,31)&"!"&ADDRESS(MATCH(Sheet9!$D$9,Sheet1!C:C,0)+1,3,4)),ROW(B3)-1+SUM($B$14:$D$14),0)) -> 208 | F17: 1
B18: =IF(ROW(B4)-1>=$B$14,"",OFFSET(INDIRECT(MID(CELL("filename",Sheet1!$A$15),FIND("]",CELL("filename",Sheet1!$A$15))+1,31)&"!"&ADDRESS(MATCH(Sheet9!$D$9,Sheet1!C:C,0)+1,3,4)),ROW(B4)-1,0)) -> 203 | C18: =IF(ROW(B4)-1>=$C$14,"",OFFSET(INDIRECT(MID(CELL("filename",Sheet1!$A$15),FIND("]",CELL("filename",Sheet1!$A$15))+1,31)&"!"&ADDRESS(MATCH(Sheet9!$D$9,Sheet1!C:C,0)+1,3,4)),ROW(B4)-1+SUM($B$14:$B$14),0)) -> 205 | D18: =IF(ROW(B4)-1>=$D$14,"",OFFSET(INDIRECT(MID(CELL("filename",Sheet1!$A$15),FIND("]",CELL("filename",Sheet1!$A$15))+1,31)&"!"&ADDRESS(MATCH(Sheet9!$D$9,Sheet1!C:C,0)+1,3,4)),ROW(B4)-1+SUM($B$14:$C$14),0)) -> 2106 | E18: =IF(ROW(B4)-1>=$E$14,"",OFFSET(INDIRECT(MID(CELL("filename",Sheet1!$A$15),FIND("]",CELL("filename",Sheet1!$A$15))+1,31)&"!"&ADDRESS(MATCH(Sheet9!$D$9,Sheet1!C:C,0)+1,3,4)),ROW(B4)-1+SUM($B$14:$D$14),0)) -> 1108 | F18: 1
B19: =IF(ROW(B5)-1>=$B$14,"",OFFSET(INDIRECT(MID(CELL("filename",Sheet1!$A$15),FIND("]",CELL("filename",Sheet1!$A$15))+1,31)&"!"&ADDRESS(MATCH(Sheet9!$D$9,Sheet1!C:C,0)+1,3,4)),ROW(B5)-1,0)) -> 1103 | C19: =IF(ROW(B5)-1>=$C$14,"",OFFSET(INDIRECT(MID(CELL("filename",Sheet1!$A$15),FIND("]",CELL("filename",Sheet1!$A$15))+1,31)&"!"&ADDRESS(MATCH(Sheet9!$D$9,Sheet1!C:C,0)+1,3,4)),ROW(B5)-1+SUM($B$14:$B$14),0)) -> 1105 | D19: =IF(ROW(B5)-1>=$D$14,"",OFFSET(INDIRECT(MID(CELL("filename",Sheet1!$A$15),FIND("]",CELL("filename",Sheet1!$A$15))+1,31)&"!"&ADDRESS(MATCH(Sheet9!$D$9,Sheet1!C:C,0)+1,3,4)),ROW(B5)-1+SUM($B$14:$C$14),0)) -> 207 | E19: =IF(ROW(B5)-1>=$E$14,"",OFFSET(INDIRECT(MID(CELL("filename",Sheet1!$A$15),FIND("]",CELL("filename",Sheet1!$A$15))+1,31)&"!"&ADDRESS(MATCH(Sheet9!$D$9,Sheet1!C:C,0)+1,3,4)),ROW(B5)-1+SUM($B$14:$D$14),0)) -> 2108 | F19: 1
B20: =IF(ROW(B6)-1>=$B$14,"",OFFSET(INDIRECT(MID(CELL("filename",Sheet1!$A$15),FIND("]",CELL("filename",Sheet1!$A$15))+1,31)&"!"&ADDRESS(MATCH(Sheet9!$D$9,Sheet1!C:C,0)+1,3,4)),ROW(B6)-1,0)) -> 2103 | C20: =IF(ROW(B6)-1>=$C$14,"",OFFSET(INDIRECT(MID(CELL("filename",Sheet1!$A$15),FIND("]",CELL("filename",Sheet1!$A$15))+1,31)&"!"&ADDRESS(MATCH(Sheet9!$D$9,Sheet1!C:C,0)+1,3,4)),ROW(B6)-1+SUM($B$14:$B$14),0)) ->  | D20: =IF(ROW(B6)-1>=$D$14,"",OFFSET(INDIRECT(MID(CELL("filename",Sheet1!$A$15),FIND("]",CELL("filename",Sheet1!$A$15))+1,31)&"!"&ADDRESS(MATCH(Sheet9!$D$9,Sheet1!C:C,0)+1,3,4)),ROW(B6)-1+SUM($B$14:$C$14),0)) ->  | E20: =IF(ROW(B6)-1>=$E$14,"",OFFSET(INDIRECT(MID(CELL("filename",Sheet1!$A$15),FIND("]",CELL("filename",Sheet1!$A$15))+1,31)&"!"&ADDRESS(MATCH(Sheet9!$D$9,Sheet1!C:C,0)+1,3,4)),ROW(B6)-1+SUM($B$14:$D$14),0)) ->  | F20: 1
B21: =IF(ROW(B7)-1>=$B$14,"",OFFSET(INDIRECT(MID(CELL("filename",Sheet1!$A$15),FIND("]",CELL("filename",Sheet1!$A$15))+1,31)&"!"&ADDRESS(MATCH(Sheet9!$D$9,Sheet1!C:C,0)+1,3,4)),ROW(B7)-1,0)) ->  | C21: =IF(ROW(B7)-1>=$C$14,"",OFFSET(INDIRECT(MID(CELL("filename",Sheet1!$A$15),FIND("]",CELL("filename",Sheet1!$A$15))+1,31)&"!"&ADDRESS(MATCH(Sheet9!$D$9,Sheet1!C:C,0)+1,3,4)),ROW(B7)-1+SUM($B$14:$B$14),0)) ->  | D21: =IF(ROW(B7)-1>=$D$14,"",OFFSET(INDIRECT(MID(CELL("filename",Sheet1!$A$15),FIND("]",CELL("filename",Sheet1!$A$15))+1,31)&"!"&ADDRESS(MATCH(Sheet9!$D$9,Sheet1!C:C,0)+1,3,4)),ROW(B7)-1+SUM($B$14:$C$14),0)) ->  | E21: =IF(ROW(B7)-1>=$E$14,"",OFFSET(INDIRECT(MID(CELL("filename",Sheet1!$A$15),FIND("]",CELL("filename",Sheet1!$A$15))+1,31)&"!"&ADDRESS(MATCH(Sheet9!$D$9,Sheet1!C:C,0)+1,3,4)),ROW(B7)-1+SUM($B$14:$D$14),0)) -> 
B22: =IF(ROW(B8)-1>=$B$14,"",OFFSET(INDIRECT(MID(CELL("filename",Sheet1!$A$15),FIND("]",CELL("filename",Sheet1!$A$15))+1,31)&"!"&ADDRESS(MATCH(Sheet9!$D$9,Sheet1!C:C,0)+1,3,4)),ROW(B8)-1,0)) ->  | C22: =IF(ROW(B8)-1>=$C$14,"",OFFSET(INDIRECT(MID(CELL("filename",Sheet1!$A$15),FIND("]",CELL("filename",Sheet1!$A$15))+1,31)&"!"&ADDRESS(MATCH(Sheet9!$D$9,Sheet1!C:C,0)+1,3,4)),ROW(B8)-1+SUM($B$14:$B$14),0)) ->  | D22: =IF(ROW(B8)-1>=$D$14,"",OFFSET(INDIRECT(MID(CELL("filename",Sheet1!$A$15),FIND("]",CELL("filename",Sheet1!$A$15))+1,31)&"!"&ADDRESS(MATCH(Sheet9!$D$9,Sheet1!C:C,0)+1,3,4)),ROW(B8)-1+SUM($B$14:$C$14),0)) ->  | E22: =IF(ROW(B8)-1>=$E$14,"",OFFSET(INDIRECT(MID(CELL("filename",Sheet1!$A$15),FIND("]",CELL("filename",Sheet1!$A$15))+1,31)&"!"&ADDRESS(MATCH(Sheet9!$D$9,Sheet1!C:C,0)+1,3,4)),ROW(B8)-1+SUM($B$14:$D$14),0)) -> 
B23: =IF(ROW(B9)-1>=$B$14,"",OFFSET(INDIRECT(MID(CELL("filename",Sheet1!$A$15),FIND("]",CELL("filename",Sheet1!$A$15))+1,31)&"!"&ADDRESS(MATCH(Sheet9!$D$9,Sheet1!C:C,0)+1,3,4)),ROW(B9)-1,0)) ->  | C23: =IF(ROW(B9)-1>=$C$14,"",OFFSET(INDIRECT(MID(CELL("filename",Sheet1!$A$15),FIND("]",CELL("filename",Sheet1!$A$15))+1,31)&"!"&ADDRESS(MATCH(Sheet9!$D$9,Sheet1!C:C,0)+1,3,4)),ROW(B9)-1+SUM($B$14:$B$14),0)) ->  | D23: =IF(ROW(B9)-1>=$D$14,"",OFFSET(INDIRECT(MID(CELL("filename",Sheet1!$A$15),FIND("]",CELL("filename",Sheet1!$A$15))+1,31)&"!"&ADDRESS(MATCH(Sheet9!$D$9,Sheet1!C:C,0)+1,3,4)),ROW(B9)-1+SUM($B$14:$C$14),0)) ->  | E23: =IF(ROW(B9)-1>=$E$14,"",OFFSET(INDIRECT(MID(CELL("filename",Sheet1!$A$15),FIND("]",CELL("filename",Sheet1!$A$15))+1,31)&"!"&ADDRESS(MATCH(Sheet9!$D$9,Sheet1!C:C,0)+1,3,4)),ROW(B9)-1+SUM($B$14:$D$14),0)) -> 
B24: =IF(ROW(B10)-1>=$B$14,"",OFFSET(INDIRECT(MID(CELL("filename",Sheet1!$A$15),FIND("]",CELL("filename",Sheet1!$A$15))+1,31)&"!"&ADDRESS(MATCH(Sheet9!$D$9,Sheet1!C:C,0)+1,3,4)),ROW(B10)-1,0)) ->  | C24: =IF(ROW(B10)-1>=$C$14,"",OFFSET(INDIRECT(MID(CELL("filename",Sheet1!$A$15),FIND("]",CELL("filename",Sheet1!$A$15))+1,31)&"!"&ADDRESS(MATCH(Sheet9!$D$9,Sheet1!C:C,0)+1,3,4)),ROW(B10)-1+SUM($B$14:$B$14),0)) ->  | D24: =IF(ROW(B10)-1>=$D$14,"",OFFSET(INDIRECT(MID(CELL("filename",Sheet1!$A$15),FIND("]",CELL("filename",Sheet1!$A$15))+1,31)&"!"&ADDRESS(MATCH(Sheet9!$D$9,Sheet1!C:C,0)+1,3,4)),ROW(B10)-1+SUM($B$14:$C$14),0)) ->  | E24: =IF(ROW(B10)-1>=$E$14,"",OFFSET(INDIRECT(MID(CELL("filename",Sheet1!$A$15),FIND("]",CELL("filename",Sheet1!$A$15))+1,31)&"!"&ADDRESS(MATCH(Sheet9!$D$9,Sheet1!C:C,0)+1,3,4)),ROW(B10)-1+SUM($B$14:$D$14),0)) -> 
B25: =IF(ROW(B11)-1>=$B$14,"",OFFSET(INDIRECT(MID(CELL("filename",Sheet1!$A$15),FIND("]",CELL("filename",Sheet1!$A$15))+1,31)&"!"&ADDRESS(MATCH(Sheet9!$D$9,Sheet1!C:C,0)+1,3,4)),ROW(B11)-1,0)) ->  | C25: =IF(ROW(B11)-1>=$C$14,"",OFFSET(INDIRECT(MID(CELL("filename",Sheet1!$A$15),FIND("]",CELL("filename",Sheet1!$A$15))+1,31)&"!"&ADDRESS(MATCH(Sheet9!$D$9,Sheet1!C:C,0)+1,3,4)),ROW(B11)-1+SUM($B$14:$B$14),0)) ->  | D25: =IF(ROW(B11)-1>=$D$14,"",OFFSET(INDIRECT(MID(CELL("filename",Sheet1!$A$15),FIND("]",CELL("filename",Sheet1!$A$15))+1,31)&"!"&ADDRESS(MATCH(Sheet9!$D$9,Sheet1!C:C,0)+1,3,4)),ROW(B11)-1+SUM($B$14:$C$14),0)) ->  | E25: =IF(ROW(B11)-1>=$E$14,"",OFFSET(INDIRECT(MID(CELL("filename",Sheet1!$A$15),FIND("]",CELL("filename",Sheet1!$A$15))+1,31)&"!"&ADDRESS(MATCH(Sheet9!$D$9,Sheet1!C:C,0)+1,3,4)),ROW(B11)-1+SUM($B$14:$D$14),0)) -> 
B26: =IF(ROW(B12)-1>=$B$14,"",OFFSET(INDIRECT(MID(CELL("filename",Sheet1!$A$15),FIND("]",CELL("filename",Sheet1!$A$15))+1,31)&"!"&ADDRESS(MATCH(Sheet9!$D$9,Sheet1!C:C,0)+1,3,4)),ROW(B12)-1,0)) ->  | C26: =IF(ROW(B12)-1>=$C$14,"",OFFSET(INDIRECT(MID(CELL("filename",Sheet1!$A$15),FIND("]",CELL("filename",Sheet1!$A$15))+1,31)&"!"&ADDRESS(MATCH(Sheet9!$D$9,Sheet1!C:C,0)+1,3,4)),ROW(B12)-1+SUM($B$14:$B$14),0)) ->  | D26: =IF(ROW(B12)-1>=$D$14,"",OFFSET(INDIRECT(MID(CELL("filename",Sheet1!$A$15),FIND("]",CELL("filename",Sheet1!$A$15))+1,31)&"!"&ADDRESS(MATCH(Sheet9!$D$9,Sheet1!C:C,0)+1,3,4)),ROW(B12)-1+SUM($B$14:$C$14),0)) ->  | E26: =IF(ROW(B12)-1>=$E$14,"",OFFSET(INDIRECT(MID(CELL("filename",Sheet1!$A$15),FIND("]",CELL("filename",Sheet1!$A$15))+1,31)&"!"&ADDRESS(MATCH(Sheet9!$D$9,Sheet1!C:C,0)+1,3,4)),ROW(B12)-1+SUM($B$14:$D$14),0)) -> 
B27: =IF(ROW(B13)-1>=$B$14,"",OFFSET(INDIRECT(MID(CELL("filename",Sheet1!$A$15),FIND("]",CELL("filename",Sheet1!$A$15))+1,31)&"!"&ADDRESS(MATCH(Sheet9!$D$9,Sheet1!C:C,0)+1,3,4)),ROW(B13)-1,0)) ->  | C27: =IF(ROW(B13)-1>=$C$14,"",OFFSET(INDIRECT(MID(CELL("filename",Sheet1!$A$15),FIND("]",CELL("filename",Sheet1!$A$15))+1,31)&"!"&ADDRESS(MATCH(Sheet9!$D$9,Sheet1!C:C,0)+1,3,4)),ROW(B13)-1+SUM($B$14:$B$14),0)) ->  | D27: =IF(ROW(B13)-1>=$D$14,"",OFFSET(INDIRECT(MID(CELL("filename",Sheet1!$A$15),FIND("]",CELL("filename",Sheet1!$A$15))+1,31)&"!"&ADDRESS(MATCH(Sheet9!$D$9,Sheet1!C:C,0)+1,3,4)),ROW(B13)-1+SUM($B$14:$C$14),0)) ->  | E27: =IF(ROW(B13)-1>=$E$14,"",OFFSET(INDIRECT(MID(CELL("filename",Sheet1!$A$15),FIND("]",CELL("filename",Sheet1!$A$15))+1,31)&"!"&ADDRESS(MATCH(Sheet9!$D$9,Sheet1!C:C,0)+1,3,4)),ROW(B13)-1+SUM($B$14:$D$14),0)) -> 
B28: =IF(ROW(B14)-1>=$B$14,"",OFFSET(INDIRECT(MID(CELL("filename",Sheet1!$A$15),FIND("]",CELL("filename",Sheet1!$A$15))+1,31)&"!"&ADDRESS(MATCH(Sheet9!$D$9,Sheet1!C:C,0)+1,3,4)),ROW(B14)-1,0)) ->  | C28: =IF(ROW(B14)-1>=$C$14,"",OFFSET(INDIRECT(MID(CELL("filename",Sheet1!$A$15),FIND("]",CELL("filename",Sheet1!$A$15))+1,31)&"!"&ADDRESS(MATCH(Sheet9!$D$9,Sheet1!C:C,0)+1,3,4)),ROW(B14)-1+SUM($B$14:$B$14),0)) ->  | D28: =IF(ROW(B14)-1>=$D$14,"",OFFSET(INDIRECT(MID(CELL("filename",Sheet1!$A$15),FIND("]",CELL("filename",Sheet1!$A$15))+1,31)&"!"&ADDRESS(MATCH(Sheet9!$D$9,Sheet1!C:C,0)+1,3,4)),ROW(B14)-1+SUM($B$14:$C$14),0)) ->  | E28: =IF(ROW(B14)-1>=$E$14,"",OFFSET(INDIRECT(MID(CELL("filename",Sheet1!$A$15),FIND("]",CELL("filename",Sheet1!$A$15))+1,31)&"!"&ADDRESS(MATCH(Sheet9!$D$9,Sheet1!C:C,0)+1,3,4)),ROW(B14)-1+SUM($B$14:$D$14),0)) -> 
B29: =IF(ROW(B15)-1>=$B$14,"",OFFSET(INDIRECT(MID(CELL("filename",Sheet1!$A$15),FIND("]",CELL("filename",Sheet1!$A$15))+1,31)&"!"&ADDRESS(MATCH(Sheet9!$D$9,Sheet1!C:C,0)+1,3,4)),ROW(B15)-1,0)) ->  | C29: =IF(ROW(B15)-1>=$C$14,"",OFFSET(INDIRECT(MID(CELL("filename",Sheet1!$A$15),FIND("]",CELL("filename",Sheet1!$A$15))+1,31)&"!"&ADDRESS(MATCH(Sheet9!$D$9,Sheet1!C:C,0)+1,3,4)),ROW(B15)-1+SUM($B$14:$B$14),0)) ->  | D29: =IF(ROW(B15)-1>=$D$14,"",OFFSET(INDIRECT(MID(CELL("filename",Sheet1!$A$15),FIND("]",CELL("filename",Sheet1!$A$15))+1,31)&"!"&ADDRESS(MATCH(Sheet9!$D$9,Sheet1!C:C,0)+1,3,4)),ROW(B15)-1+SUM($B$14:$C$14),0)) ->  | E29: =IF(ROW(B15)-1>=$E$14,"",OFFSET(INDIRECT(MID(CELL("filename",Sheet1!$A$15),FIND("]",CELL("filename",Sheet1!$A$15))+1,31)&"!"&ADDRESS(MATCH(Sheet9!$D$9,Sheet1!C:C,0)+1,3,4)),ROW(B15)-1+SUM($B$14:$D$14),0)) -> 
B30: =IF(ROW(B16)-1>=$B$14,"",OFFSET(INDIRECT(MID(CELL("filename",Sheet1!$A$15),FIND("]",CELL("filename",Sheet1!$A$15))+1,31)&"!"&ADDRESS(MATCH(Sheet9!$D$9,Sheet1!C:C,0)+1,3,4)),ROW(B16)-1,0)) ->  | C30: =IF(ROW(B16)-1>=$C$14,"",OFFSET(INDIRECT(MID(CELL("filename",Sheet1!$A$15),FIND("]",CELL("filename",Sheet1!$A$15))+1,31)&"!"&ADDRESS(MATCH(Sheet9!$D$9,Sheet1!C:C,0)+1,3,4)),ROW(B16)-1+SUM($B$14:$B$14),0)) ->  | D30: =IF(ROW(B16)-1>=$D$14,"",OFFSET(INDIRECT(MID(CELL("filename",Sheet1!$A$15),FIND("]",CELL("filename",Sheet1!$A$15))+1,31)&"!"&ADDRESS(MATCH(Sheet9!$D$9,Sheet1!C:C,0)+1,3,4)),ROW(B16)-1+SUM($B$14:$C$14),0)) ->  | E30: =IF(ROW(B16)-1>=$E$14,"",OFFSET(INDIRECT(MID(CELL("filename",Sheet1!$A$15),FIND("]",CELL("filename",Sheet1!$A$15))+1,31)&"!"&ADDRESS(MATCH(Sheet9!$D$9,Sheet1!C:C,0)+1,3,4)),ROW(B16)-1+SUM($B$14:$D$14),0)) -> 
B31: =IF(ROW(B17)-1>=$B$14,"",OFFSET(INDIRECT(MID(CELL("filename",Sheet1!$A$15),FIND("]",CELL("filename",Sheet1!$A$15))+1,31)&"!"&ADDRESS(MATCH(Sheet9!$D$9,Sheet1!C:C,0)+1,3,4)),ROW(B17)-1,0)) ->  | C31: =IF(ROW(B17)-1>=$C$14,"",OFFSET(INDIRECT(MID(CELL("filename",Sheet1!$A$15),FIND("]",CELL("filename",Sheet1!$A$15))+1,31)&"!"&ADDRESS(MATCH(Sheet9!$D$9,Sheet1!C:C,0)+1,3,4)),ROW(B17)-1+SUM($B$14:$B$14),0)) ->  | D31: =IF(ROW(B17)-1>=$D$14,"",OFFSET(INDIRECT(MID(CELL("filename",Sheet1!$A$15),FIND("]",CELL("filename",Sheet1!$A$15))+1,31)&"!"&ADDRESS(MATCH(Sheet9!$D$9,Sheet1!C:C,0)+1,3,4)),ROW(B17)-1+SUM($B$14:$C$14),0)) ->  | E31: =IF(ROW(B17)-1>=$E$14,"",OFFSET(INDIRECT(MID(CELL("filename",Sheet1!$A$15),FIND("]",CELL("filename",Sheet1!$A$15))+1,31)&"!"&ADDRESS(MATCH(Sheet9!$D$9,Sheet1!C:C,0)+1,3,4)),ROW(B17)-1+SUM($B$14:$D$14),0)) -> 
B32: =IF(ROW(B18)-1>=$B$14,"",OFFSET(INDIRECT(MID(CELL("filename",Sheet1!$A$15),FIND("]",CELL("filename",Sheet1!$A$15))+1,31)&"!"&ADDRESS(MATCH(Sheet9!$D$9,Sheet1!C:C,0)+1,3,4)),ROW(B18)-1,0)) ->  | C32: =IF(ROW(B18)-1>=$C$14,"",OFFSET(INDIRECT(MID(CELL("filename",Sheet1!$A$15),FIND("]",CELL("filename",Sheet1!$A$15))+1,31)&"!"&ADDRESS(MATCH(Sheet9!$D$9,Sheet1!C:C,0)+1,3,4)),ROW(B18)-1+SUM($B$14:$B$14),0)) ->  | D32: =IF(ROW(B18)-1>=$D$14,"",OFFSET(INDIRECT(MID(CELL("filename",Sheet1!$A$15),FIND("]",CELL("filename",Sheet1!$A$15))+1,31)&"!"&ADDRESS(MATCH(Sheet9!$D$9,Sheet1!C:C,0)+1,3,4)),ROW(B18)-1+SUM($B$14:$C$14),0)) ->  | E32: =IF(ROW(B18)-1>=$E$14,"",OFFSET(INDIRECT(MID(CELL("filename",Sheet1!$A$15),FIND("]",CELL("filename",Sheet1!$A$15))+1,31)&"!"&ADDRESS(MATCH(Sheet9!$D$9,Sheet1!C:C,0)+1,3,4)),ROW(B18)-1+SUM($B$14:$D$14),0)) -> 
B33: =IF(ROW(B19)-1>=$B$14,"",OFFSET(INDIRECT(MID(CELL("filename",Sheet1!$A$15),FIND("]",CELL("filename",Sheet1!$A$15))+1,31)&"!"&ADDRESS(MATCH(Sheet9!$D$9,Sheet1!C:C,0)+1,3,4)),ROW(B19)-1,0)) ->  | C33: =IF(ROW(B19)-1>=$C$14,"",OFFSET(INDIRECT(MID(CELL("filename",Sheet1!$A$15),FIND("]",CELL("filename",Sheet1!$A$15))+1,31)&"!"&ADDRESS(MATCH(Sheet9!$D$9,Sheet1!C:C,0)+1,3,4)),ROW(B19)-1+SUM($B$14:$B$14),0)) ->  | D33: =IF(ROW(B19)-1>=$D$14,"",OFFSET(INDIRECT(MID(CELL("filename",Sheet1!$A$15),FIND("]",CELL("filename",Sheet1!$A$15))+1,31)&"!"&ADDRESS(MATCH(Sheet9!$D$9,Sheet1!C:C,0)+1,3,4)),ROW(B19)-1+SUM($B$14:$C$14),0)) ->  | E33: =IF(ROW(B19)-1>=$E$14,"",OFFSET(INDIRECT(MID(CELL("filename",Sheet1!$A$15),FIND("]",CELL("filename",Sheet1!$A$15))+1,31)&"!"&ADDRESS(MATCH(Sheet9!$D$9,Sheet1!C:C,0)+1,3,4)),ROW(B19)-1+SUM($B$14:$D$14),0)) -> 
B34: =IF(ROW(B20)-1>=$B$14,"",OFFSET(INDIRECT(MID(CELL("filename",Sheet1!$A$15),FIND("]",CELL("filename",Sheet1!$A$15))+1,31)&"!"&ADDRESS(MATCH(Sheet9!$D$9,Sheet1!C:C,0)+1,3,4)),ROW(B20)-1,0)) ->  | C34: =IF(ROW(B20)-1>=$C$14,"",OFFSET(INDIRECT(MID(CELL("filename",Sheet1!$A$15),FIND("]",CELL("filename",Sheet1!$A$15))+1,31)&"!"&ADDRESS(MATCH(Sheet9!$D$9,Sheet1!C:C,0)+1,3,4)),ROW(B20)-1+SUM($B$14:$B$14),0)) ->  | D34: =IF(ROW(B20)-1>=$D$14,"",OFFSET(INDIRECT(MID(CELL("filename",Sheet1!$A$15),FIND("]",CELL("filename",Sheet1!$A$15))+1,31)&"!"&ADDRESS(MATCH(Sheet9!$D$9,Sheet1!C:C,0)+1,3,4)),ROW(B20)-1+SUM($B$14:$C$14),0)) ->  | E34: =IF(ROW(B20)-1>=$E$14,"",OFFSET(INDIRECT(MID(CELL("filename",Sheet1!$A$15),FIND("]",CELL("filename",Sheet1!$A$15))+1,31)&"!"&ADDRESS(MATCH(Sheet9!$D$9,Sheet1!C:C,0)+1,3,4)),ROW(B20)-1+SUM($B$14:$D$14),0)) -> 
B36: परीक्षा प्रभारी | E36: केन्द्राधीक्षक
B37: =Sheet2!$B$37 -> XYZ (Lecturer) | E37: =Sheet2!$E$37 -> XYZ (Principal)

Sheet Sheet11
B1: =Sheet2!$B$1 -> Half Yearly Examination 2024
B2: परीक्षा केंद्र नाम एवं परीक्षा केंद्र क्रमांक
B3: =Sheet2!$B$3 -> Govt Sr Sc School Malutana (216405)
B4: परीक्षा कक्ष / हॉल क्रमांक
B5: =Sheet2!$K$10 -> 10
B6: परीक्षा दिनांक (दिवस) ... से ... तक
B7: =Sheet2!$B$7 -> 14-12-2024 | C7: =IF(B7="","",TEXT(B7,"DDDD")) -> Saturday | D7: =Sheet2!$D$7 -> 24-12-2024 | E7: =IF(D7="","",TEXT(D7,"DDDD")) -> Tuesday
B8: परीक्षार्थी रोल नंबर ... से ... तक
B9: =IF(B14>0,B15,IF(C14>0,C15,IF(D14>0,D15,IF(E14>0,E15,0)))) -> 209 | D9: =IF(E14>0,LOOKUP(2,1/(E15:E34<>""),E15:E34),IF(D14>0,LOOKUP(2,1/(D15:D34<>""),D15:D34),IF(C14>0,LOOKUP(2,1/(C15:C34<>""),C15:C34),IF(B14>0,LOOKUP(2,1/(B15:B34<>""),B15:B34),0)))) -> 213
B10: कुल सम्मिलित परीक्षार्थी
B11: =COUNTIF($B$15:$E$34,">0") -> 13
B12: परीक्षार्थी बैठक व्यवस्था
B13: पंक्ति 1 | C13: पंक्ति 2 | D13: पंक्ति 3 | E13: पंक्ति 4
B14: =Sheet2!L10 -> 1 | C14: =Sheet2!M10 -> 1 | D14: =Sheet2!N10 -> 2 | E14: =Sheet2!O10 -> 9
B15: =IF(ROW(B1)-1>=$B$14,"",OFFSET(INDIRECT(MID(CELL("filename",Sheet1!$A$15),FIND("]",CELL("filename",Sheet1!$A$15))+1,31)&"!"&ADDRESS(MATCH(Sheet10!$D$9,Sheet1!C:C,0)+1,3,4)),ROW(B1)-1,0)) -> 209 | C15: =IF(ROW(B1)-1>=$C$14,"",OFFSET(INDIRECT(MID(CELL("filename",Sheet1!$A$15),FIND("]",CELL("filename",Sheet1!$A$15))+1,31)&"!"&ADDRESS(MATCH(Sheet10!$D$9,Sheet1!C:C,0)+1,3,4)),ROW(B1)-1+SUM($B$14:$B$14),0)) -> 1109 | D15: =IF(ROW(B1)-1>=$D$14,"",OFFSET(INDIRECT(MID(CELL("filename",Sheet1!$A$15),FIND("]",CELL("filename",Sheet1!$A$15))+1,31)&"!"&ADDRESS(MATCH(Sheet10!$D$9,Sheet1!C:C,0)+1,3,4)),ROW(B1)-1+SUM($B$14:$C$14),0)) -> 2109 | E15: =IF(ROW(B1)-1>=$E$14,"",OFFSET(INDIRECT(MID(CELL("filename",Sheet1!$A$15),FIND("]",CELL("filename",Sheet1!$A$15))+1,31)&"!"&ADDRESS(MATCH(Sheet10!$D$9,Sheet1!C:C,0)+1,3,4)),ROW(B1)-1+SUM($B$14:$D$14),0)) -> 1110 | F15: =IF(SUM(B15:E15)>0,1,"") -> 1
B16: =IF(ROW(B2)-1>=$B$14,"",OFFSET(INDIRECT(MID(CELL("filename",Sheet1!$A$15),FIND("]",CELL("filename",Sheet1!$A$15))+1,31)&"!"&ADDRESS(MATCH(Sheet10!$D$9,Sheet1!C:C,0)+1,3,4)),ROW(B2)-1,0)) ->  | C16: =IF(ROW(B2)-1>=$C$14,"",OFFSET(INDIRECT(MID(CELL("filename",Sheet1!$A$15),FIND("]",CELL("filename",Sheet1!$A$15))+1,31)&"!"&ADDRESS(MATCH(Sheet10!$D$9,Sheet1!C:C,0)+1,3,4)),ROW(B2)-1+SUM($B$14:$B$14),0)) ->  | D16: =IF(ROW(B2)-1>=$D$14,"",OFFSET(INDIRECT(MID(CELL("filename",Sheet1!$A$15),FIND("]",CELL("filename",Sheet1!$A$15))+1,31)&"!"&ADDRESS(MATCH(Sheet10!$D$9,Sheet1!C:C,0)+1,3,4)),ROW(B2)-1+SUM($B$14:$C$14),0)) -> 210 | E16: =IF(ROW(B2)-1>=$E$14,"",OFFSET(INDIRECT(MID(CELL("filename",Sheet1!$A$15),FIND("]",CELL("filename",Sheet1!$A$15))+1,31)&"!"&ADDRESS(MATCH(Sheet10!$D$9,Sheet1!C:C,0)+1,3,4)),ROW(B2)-1+SUM($B$14:$D$14),0)) -> 2110 | F16: =IF(SUM(B16:E16)>0,1,"") -> 1
B17: =IF(ROW(B3)-1>=$B$14,"",OFFSET(INDIRECT(MID(CELL("filename",Sheet1!$A$15),FIND("]",CELL("filename",Sheet1!$A$15))+1,31)&"!"&ADDRESS(MATCH(Sheet10!$D$9,Sheet1!C:C,0)+1,3,4)),ROW(B3)-1,0)) ->  | C17: =IF(ROW(B3)-1>=$C$14,"",OFFSET(INDIRECT(MID(CELL("filename",Sheet1!$A$15),FIND("]",CELL("filename",Sheet1!$A$15))+1,31)&"!"&ADDRESS(MATCH(Sheet10!$D$9,Sheet1!C:C,0)+1,3,4)),ROW(B3)-1+SUM($B$14:$B$14),0)) ->  | D17: =IF(ROW(B3)-1>=$D$14,"",OFFSET(INDIRECT(MID(CELL("filename",Sheet1!$A$15),FIND("]",CELL("filename",Sheet1!$A$15))+1,31)&"!"&ADDRESS(MATCH(Sheet10!$D$9,Sheet1!C:C,0)+1,3,4)),ROW(B3)-1+SUM($B$14:$C$14),0)) ->  | E17: =IF(ROW(B3)-1>=$E$14,"",OFFSET(INDIRECT(MID(CELL("filename",Sheet1!$A$15),FIND("]",CELL("filename",Sheet1!$A$15))+1,31)&"!"&ADDRESS(MATCH(Sheet10!$D$9,Sheet1!C:C,0)+1,3,4)),ROW(B3)-1+SUM($B$14:$D$14),0)) -> 211 | F17: 1
B18: =IF(ROW(B4)-1>=$B$14,"",OFFSET(INDIRECT(MID(CELL("filename",Sheet1!$A$15),FIND("]",CELL("filename",Sheet1!$A$15))+1,31)&"!"&ADDRESS(MATCH(Sheet10!$D$9,Sheet1!C:C,0)+1,3,4)),ROW(B4)-1,0)) ->  | C18: =IF(ROW(B4)-1>=$C$14,"",OFFSET(INDIRECT(MID(CELL("filename",Sheet1!$A$15),FIND("]",CELL("filename",Sheet1!$A$15))+1,31)&"!"&ADDRESS(MATCH(Sheet10!$D$9,Sheet1!C:C,0)+1,3,4)),ROW(B4)-1+SUM($B$14:$B$14),0)) ->  | D18: =IF(ROW(B4)-1>=$D$14,"",OFFSET(INDIRECT(MID(CELL("filename",Sheet1!$A$15),FIND("]",CELL("filename",Sheet1!$A$15))+1,31)&"!"&ADDRESS(MATCH(Sheet10!$D$9,Sheet1!C:C,0)+1,3,4)),ROW(B4)-1+SUM($B$14:$C$14),0)) ->  | E18: =IF(ROW(B4)-1>=$E$14,"",OFFSET(INDIRECT(MID(CELL("filename",Sheet1!$A$15),FIND("]",CELL("filename",Sheet1!$A$15))+1,31)&"!"&ADDRESS(MATCH(Sheet10!$D$9,Sheet1!C:C,0)+1,3,4)),ROW(B4)-1+SUM($B$14:$D$14),0)) -> 1111 | F18: 1
B19: =IF(ROW(B5)-1>=$B$14,"",OFFSET(INDIRECT(MID(CELL("filename",Sheet1!$A$15),FIND("]",CELL("filename",Sheet1!$A$15))+1,31)&"!"&ADDRESS(MATCH(Sheet10!$D$9,Sheet1!C:C,0)+1,3,4)),ROW(B5)-1,0)) ->  | C19: =IF(ROW(B5)-1>=$C$14,"",OFFSET(INDIRECT(MID(CELL("filename",Sheet1!$A$15),FIND("]",CELL("filename",Sheet1!$A$15))+1,31)&"!"&ADDRESS(MATCH(Sheet10!$D$9,Sheet1!C:C,0)+1,3,4)),ROW(B5)-1+SUM($B$14:$B$14),0)) ->  | D19: =IF(ROW(B5)-1>=$D$14,"",OFFSET(INDIRECT(MID(CELL("filename",Sheet1!$A$15),FIND("]",CELL("filename",Sheet1!$A$15))+1,31)&"!"&ADDRESS(MATCH(Sheet10!$D$9,Sheet1!C:C,0)+1,3,4)),ROW(B5)-1+SUM($B$14:$C$14),0)) ->  | E19: =IF(ROW(B5)-1>=$E$14,"",OFFSET(INDIRECT(MID(CELL("filename",Sheet1!$A$15),FIND("]",CELL("filename",Sheet1!$A$15))+1,31)&"!"&ADDRESS(MATCH(Sheet10!$D$9,Sheet1!C:C,0)+1,3,4)),ROW(B5)-1+SUM($B$14:$D$14),0)) -> 2111 | F19: 1
B20: =IF(ROW(B6)-1>=$B$14,"",OFFSET(INDIRECT(MID(CELL("filename",Sheet1!$A$15),FIND("]",CELL("filename",Sheet1!$A$15))+1,31)&"!"&ADDRESS(MATCH(Sheet10!$D$9,Sheet1!C:C,0)+1,3,4)),ROW(B6)-1,0)) ->  | C20: =IF(ROW(B6)-1>=$C$14,"",OFFSET(INDIRECT(MID(CELL("filename",Sheet1!$A$15),FIND("]",CELL("filename",Sheet1!$A$15))+1,31)&"!"&ADDRESS(MATCH(Sheet10!$D$9,Sheet1!C:C,0)+1,3,4)),ROW(B6)-1+SUM($B$14:$B$14),0)) ->  | D20: =IF(ROW(B6)-1>=$D$14,"",OFFSET(INDIRECT(MID(CELL("filename",Sheet1!$A$15),FIND("]",CELL("filename",Sheet1!$A$15))+1,31)&"!"&ADDRESS(MATCH(Sheet10!$D$9,Sheet1!C:C,0)+1,3,4)),ROW(B6)-1+SUM($B$14:$C$14),0)) ->  | E20: =IF(ROW(B6)-1>=$E$14,"",OFFSET(INDIRECT(MID(CELL("filename",Sheet1!$A$15),FIND("]",CELL("filename",Sheet1!$A$15))+1,31)&"!"&ADDRESS(MATCH(Sheet10!$D$9,Sheet1!C:C,0)+1,3,4)),ROW(B6)-1+SUM($B$14:$D$14),0)) -> 212 | F20: 1
B21: =IF(ROW(B7)-1>=$B$14,"",OFFSET(INDIRECT(MID(CELL("filename",Sheet1!$A$15),FIND("]",CELL("filename",Sheet1!$A$15))+1,31)&"!"&ADDRESS(MATCH(Sheet10!$D$9,Sheet1!C:C,0)+1,3,4)),ROW(B7)-1,0)) ->  | C21: =IF(ROW(B7)-1>=$C$14,"",OFFSET(INDIRECT(MID(CELL("filename",Sheet1!$A$15),FIND("]",CELL("filename",Sheet1!$A$15))+1,31)&"!"&ADDRESS(MATCH(Sheet10!$D$9,Sheet1!C:C,0)+1,3,4)),ROW(B7)-1+SUM($B$14:$B$14),0)) ->  | D21: =IF(ROW(B7)-1>=$D$14,"",OFFSET(INDIRECT(MID(CELL("filename",Sheet1!$A$15),FIND("]",CELL("filename",Sheet1!$A$15))+1,31)&"!"&ADDRESS(MATCH(Sheet10!$D$9,Sheet1!C:C,0)+1,3,4)),ROW(B7)-1+SUM($B$14:$C$14),0)) ->  | E21: =IF(ROW(B7)-1>=$E$14,"",OFFSET(INDIRECT(MID(CELL("filename",Sheet1!$A$15),FIND("]",CELL("filename",Sheet1!$A$15))+1,31)&"!"&ADDRESS(MATCH(Sheet10!$D$9,Sheet1!C:C,0)+1,3,4)),ROW(B7)-1+SUM($B$14:$D$14),0)) -> 1112 | F21: 1
B22: =IF(ROW(B8)-1>=$B$14,"",OFFSET(INDIRECT(MID(CELL("filename",Sheet1!$A$15),FIND("]",CELL("filename",Sheet1!$A$15))+1,31)&"!"&ADDRESS(MATCH(Sheet10!$D$9,Sheet1!C:C,0)+1,3,4)),ROW(B8)-1,0)) ->  | C22: =IF(ROW(B8)-1>=$C$14,"",OFFSET(INDIRECT(MID(CELL("filename",Sheet1!$A$15),FIND("]",CELL("filename",Sheet1!$A$15))+1,31)&"!"&ADDRESS(MATCH(Sheet10!$D$9,Sheet1!C:C,0)+1,3,4)),ROW(B8)-1+SUM($B$14:$B$14),0)) ->  | D22: =IF(ROW(B8)-1>=$D$14,"",OFFSET(INDIRECT(MID(CELL("filename",Sheet1!$A$15),FIND("]",CELL("filename",Sheet1!$A$15))+1,31)&"!"&ADDRESS(MATCH(Sheet10!$D$9,Sheet1!C:C,0)+1,3,4)),ROW(B8)-1+SUM($B$14:$C$14),0)) ->  | E22: =IF(ROW(B8)-1>=$E$14,"",OFFSET(INDIRECT(MID(CELL("filename",Sheet1!$A$15),FIND("]",CELL("filename",Sheet1!$A$15))+1,31)&"!"&ADDRESS(MATCH(Sheet10!$D$9,Sheet1!C:C,0)+1,3,4)),ROW(B8)-1+SUM($B$14:$D$14),0)) -> 2112 | F22: 1
B23: =IF(ROW(B9)-1>=$B$14,"",OFFSET(INDIRECT(MID(CELL("filename",Sheet1!$A$15),FIND("]",CELL("filename",Sheet1!$A$15))+1,31)&"!"&ADDRESS(MATCH(Sheet10!$D$9,Sheet1!C:C,0)+1,3,4)),ROW(B9)-1,0)) ->  | C23: =IF(ROW(B9)-1>=$C$14,"",OFFSET(INDIRECT(MID(CELL("filename",Sheet1!$A$15),FIND("]",CELL("filename",Sheet1!$A$15))+1,31)&"!"&ADDRESS(MATCH(Sheet10!$D$9,Sheet1!C:C,0)+1,3,4)),ROW(B9)-1+SUM($B$14:$B$14),0)) ->  | D23: =IF(ROW(B9)-1>=$D$14,"",OFFSET(INDIRECT(MID(CELL("filename",Sheet1!$A$15),FIND("]",CELL("filename",Sheet1!$A$15))+1,31)&"!"&ADDRESS(MATCH(Sheet10!$D$9,Sheet1!C:C,0)+1,3,4)),ROW(B9)-1+SUM($B$14:$C$14),0)) ->  | E23: =IF(ROW(B9)-1>=$E$14,"",OFFSET(INDIRECT(MID(CELL("filename",Sheet1!$A$15),FIND("]",CELL("filename",Sheet1!$A$15))+1,31)&"!"&ADDRESS(MATCH(Sheet10!$D$9,Sheet1!C:C,0)+1,3,4)),ROW(B9)-1+SUM($B$14:$D$14),0)) -> 213 | F23: 1
B24: =IF(ROW(B10)-1>=$B$14,"",OFFSET(INDIRECT(MID(CELL("filename",Sheet1!$A$15),FIND("]",CELL("filename",Sheet1!$A$15))+1,31)&"!"&ADDRESS(MATCH(Sheet10!$D$9,Sheet1!C:C,0)+1,3,4)),ROW(B10)-1,0)) ->  | C24: =IF(ROW(B10)-1>=$C$14,"",OFFSET(INDIRECT(MID(CELL("filename",Sheet1!$A$15),FIND("]",CELL("filename",Sheet1!$A$15))+1,31)&"!"&ADDRESS(MATCH(Sheet10!$D$9,Sheet1!C:C,0)+1,3,4)),ROW(B10)-1+SUM($B$14:$B$14),0)) ->  | D24: =IF(ROW(B10)-1>=$D$14,"",OFFSET(INDIRECT(MID(CELL("filename",Sheet1!$A$15),FIND("]",CELL("filename",Sheet1!$A$15))+1,31)&"!"&ADDRESS(MATCH(Sheet10!$D$9,Sheet1!C:C,0)+1,3,4)),ROW(B10)-1+SUM($B$14:$C$14),0)) ->  | E24: =IF(ROW(B10)-1>=$E$14,"",OFFSET(INDIRECT(MID(CELL("filename",Sheet1!$A$15),FIND("]",CELL("filename",Sheet1!$A$15))+1,31)&"!"&ADDRESS(MATCH(Sheet10!$D$9,Sheet1!C:C,0)+1,3,4)),ROW(B10)-1+SUM($B$14:$D$14),0)) -> 
B25: =IF(ROW(B11)-1>=$B$14,"",OFFSET(INDIRECT(MID(CELL("filename",Sheet1!$A$15),FIND("]",CELL("filename",Sheet1!$A$15))+1,31)&"!"&ADDRESS(MATCH(Sheet10!$D$9,Sheet1!C:C,0)+1,3,4)),ROW(B11)-1,0)) ->  | C25: =IF(ROW(B11)-1>=$C$14,"",OFFSET(INDIRECT(MID(CELL("filename",Sheet1!$A$15),FIND("]",CELL("filename",Sheet1!$A$15))+1,31)&"!"&ADDRESS(MATCH(Sheet10!$D$9,Sheet1!C:C,0)+1,3,4)),ROW(B11)-1+SUM($B$14:$B$14),0)) ->  | D25: =IF(ROW(B11)-1>=$D$14,"",OFFSET(INDIRECT(MID(CELL("filename",Sheet1!$A$15),FIND("]",CELL("filename",Sheet1!$A$15))+1,31)&"!"&ADDRESS(MATCH(Sheet10!$D$9,Sheet1!C:C,0)+1,3,4)),ROW(B11)-1+SUM($B$14:$C$14),0)) ->  | E25: =IF(ROW(B11)-1>=$E$14,"",OFFSET(INDIRECT(MID(CELL("filename",Sheet1!$A$15),FIND("]",CELL("filename",Sheet1!$A$15))+1,31)&"!"&ADDRESS(MATCH(Sheet10!$D$9,Sheet1!C:C,0)+1,3,4)),ROW(B11)-1+SUM($B$14:$D$14),0)) -> 
B26: =IF(ROW(B12)-1>=$B$14,"",OFFSET(INDIRECT(MID(CELL("filename",Sheet1!$A$15),FIND("]",CELL("filename",Sheet1!$A$15))+1,31)&"!"&ADDRESS(MATCH(Sheet10!$D$9,Sheet1!C:C,0)+1,3,4)),ROW(B12)-1,0)) ->  | C26: =IF(ROW(B12)-1>=$C$14,"",OFFSET(INDIRECT(MID(CELL("filename",Sheet1!$A$15),FIND("]",CELL("filename",Sheet1!$A$15))+1,31)&"!"&ADDRESS(MATCH(Sheet10!$D$9,Sheet1!C:C,0)+1,3,4)),ROW(B12)-1+SUM($B$14:$B$14),0)) ->  | D26: =IF(ROW(B12)-1>=$D$14,"",OFFSET(INDIRECT(MID(CELL("filename",Sheet1!$A$15),FIND("]",CELL("filename",Sheet1!$A$15))+1,31)&"!"&ADDRESS(MATCH(Sheet10!$D$9,Sheet1!C:C,0)+1,3,4)),ROW(B12)-1+SUM($B$14:$C$14),0)) ->  | E26: =IF(ROW(B12)-1>=$E$14,"",OFFSET(INDIRECT(MID(CELL("filename",Sheet1!$A$15),FIND("]",CELL("filename",Sheet1!$A$15))+1,31)&"!"&ADDRESS(MATCH(Sheet10!$D$9,Sheet1!C:C,0)+1,3,4)),ROW(B12)-1+SUM($B$14:$D$14),0)) -> 
B27: =IF(ROW(B13)-1>=$B$14,"",OFFSET(INDIRECT(MID(CELL("filename",Sheet1!$A$15),FIND("]",CELL("filename",Sheet1!$A$15))+1,31)&"!"&ADDRESS(MATCH(Sheet10!$D$9,Sheet1!C:C,0)+1,3,4)),ROW(B13)-1,0)) ->  | C27: =IF(ROW(B13)-1>=$C$14,"",OFFSET(INDIRECT(MID(CELL("filename",Sheet1!$A$15),FIND("]",CELL("filename",Sheet1!$A$15))+1,31)&"!"&ADDRESS(MATCH(Sheet10!$D$9,Sheet1!C:C,0)+1,3,4)),ROW(B13)-1+SUM($B$14:$B$14),0)) ->  | D27: =IF(ROW(B13)-1>=$D$14,"",OFFSET(INDIRECT(MID(CELL("filename",Sheet1!$A$15),FIND("]",CELL("filename",Sheet1!$A$15))+1,31)&"!"&ADDRESS(MATCH(Sheet10!$D$9,Sheet1!C:C,0)+1,3,4)),ROW(B13)-1+SUM($B$14:$C$14),0)) ->  | E27: =IF(ROW(B13)-1>=$E$14,"",OFFSET(INDIRECT(MID(CELL("filename",Sheet1!$A$15),FIND("]",CELL("filename",Sheet1!$A$15))+1,31)&"!"&ADDRESS(MATCH(Sheet10!$D$9,Sheet1!C:C,0)+1,3,4)),ROW(B13)-1+SUM($B$14:$D$14),0)) -> 
B28: =IF(ROW(B14)-1>=$B$14,"",OFFSET(INDIRECT(MID(CELL("filename",Sheet1!$A$15),FIND("]",CELL("filename",Sheet1!$A$15))+1,31)&"!"&ADDRESS(MATCH(Sheet10!$D$9,Sheet1!C:C,0)+1,3,4)),ROW(B14)-1,0)) ->  | C28: =IF(ROW(B14)-1>=$C$14,"",OFFSET(INDIRECT(MID(CELL("filename",Sheet1!$A$15),FIND("]",CELL("filename",Sheet1!$A$15))+1,31)&"!"&ADDRESS(MATCH(Sheet10!$D$9,Sheet1!C:C,0)+1,3,4)),ROW(B14)-1+SUM($B$14:$B$14),0)) ->  | D28: =IF(ROW(B14)-1>=$D$14,"",OFFSET(INDIRECT(MID(CELL("filename",Sheet1!$A$15),FIND("]",CELL("filename",Sheet1!$A$15))+1,31)&"!"&ADDRESS(MATCH(Sheet10!$D$9,Sheet1!C:C,0)+1,3,4)),ROW(B14)-1+SUM($B$14:$C$14),0)) ->  | E28: =IF(ROW(B14)-1>=$E$14,"",OFFSET(INDIRECT(MID(CELL("filename",Sheet1!$A$15),FIND("]",CELL("filename",Sheet1!$A$15))+1,31)&"!"&ADDRESS(MATCH(Sheet10!$D$9,Sheet1!C:C,0)+1,3,4)),ROW(B14)-1+SUM($B$14:$D$14),0)) -> 
B29: =IF(ROW(B15)-1>=$B$14,"",OFFSET(INDIRECT(MID(CELL("filename",Sheet1!$A$15),FIND("]",CELL("filename",Sheet1!$A$15))+1,31)&"!"&ADDRESS(MATCH(Sheet10!$D$9,Sheet1!C:C,0)+1,3,4)),ROW(B15)-1,0)) ->  | C29: =IF(ROW(B15)-1>=$C$14,"",OFFSET(INDIRECT(MID(CELL("filename",Sheet1!$A$15),FIND("]",CELL("filename",Sheet1!$A$15))+1,31)&"!"&ADDRESS(MATCH(Sheet10!$D$9,Sheet1!C:C,0)+1,3,4)),ROW(B15)-1+SUM($B$14:$B$14),0)) ->  | D29: =IF(ROW(B15)-1>=$D$14,"",OFFSET(INDIRECT(MID(CELL("filename",Sheet1!$A$15),FIND("]",CELL("filename",Sheet1!$A$15))+1,31)&"!"&ADDRESS(MATCH(Sheet10!$D$9,Sheet1!C:C,0)+1,3,4)),ROW(B15)-1+SUM($B$14:$C$14),0)) ->  | E29: =IF(ROW(B15)-1>=$E$14,"",OFFSET(INDIRECT(MID(CELL("filename",Sheet1!$A$15),FIND("]",CELL("filename",Sheet1!$A$15))+1,31)&"!"&ADDRESS(MATCH(Sheet10!$D$9,Sheet1!C:C,0)+1,3,4)),ROW(B15)-1+SUM($B$14:$D$14),0)) -> 
B30: =IF(ROW(B16)-1>=$B$14,"",OFFSET(INDIRECT(MID(CELL("filename",Sheet1!$A$15),FIND("]",CELL("filename",Sheet1!$A$15))+1,31)&"!"&ADDRESS(MATCH(Sheet10!$D$9,Sheet1!C:C,0)+1,3,4)),ROW(B16)-1,0)) ->  | C30: =IF(ROW(B16)-1>=$C$14,"",OFFSET(INDIRECT(MID(CELL("filename",Sheet1!$A$15),FIND("]",CELL("filename",Sheet1!$A$15))+1,31)&"!"&ADDRESS(MATCH(Sheet10!$D$9,Sheet1!C:C,0)+1,3,4)),ROW(B16)-1+SUM($B$14:$B$14),0)) ->  | D30: =IF(ROW(B16)-1>=$D$14,"",OFFSET(INDIRECT(MID(CELL("filename",Sheet1!$A$15),FIND("]",CELL("filename",Sheet1!$A$15))+1,31)&"!"&ADDRESS(MATCH(Sheet10!$D$9,Sheet1!C:C,0)+1,3,4)),ROW(B16)-1+SUM($B$14:$C$14),0)) ->  | E30: =IF(ROW(B16)-1>=$E$14,"",OFFSET(INDIRECT(MID(CELL("filename",Sheet1!$A$15),FIND("]",CELL("filename",Sheet1!$A$15))+1,31)&"!"&ADDRESS(MATCH(Sheet10!$D$9,Sheet1!C:C,0)+1,3,4)),ROW(B16)-1+SUM($B$14:$D$14),0)) -> 
B31: =IF(ROW(B17)-1>=$B$14,"",OFFSET(INDIRECT(MID(CELL("filename",Sheet1!$A$15),FIND("]",CELL("filename",Sheet1!$A$15))+1,31)&"!"&ADDRESS(MATCH(Sheet10!$D$9,Sheet1!C:C,0)+1,3,4)),ROW(B17)-1,0)) ->  | C31: =IF(ROW(B17)-1>=$C$14,"",OFFSET(INDIRECT(MID(CELL("filename",Sheet1!$A$15),FIND("]",CELL("filename",Sheet1!$A$15))+1,31)&"!"&ADDRESS(MATCH(Sheet10!$D$9,Sheet1!C:C,0)+1,3,4)),ROW(B17)-1+SUM($B$14:$B$14),0)) ->  | D31: =IF(ROW(B17)-1>=$D$14,"",OFFSET(INDIRECT(MID(CELL("filename",Sheet1!$A$15),FIND("]",CELL("filename",Sheet1!$A$15))+1,31)&"!"&ADDRESS(MATCH(Sheet10!$D$9,Sheet1!C:C,0)+1,3,4)),ROW(B17)-1+SUM($B$14:$C$14),0)) ->  | E31: =IF(ROW(B17)-1>=$E$14,"",OFFSET(INDIRECT(MID(CELL("filename",Sheet1!$A$15),FIND("]",CELL("filename",Sheet1!$A$15))+1,31)&"!"&ADDRESS(MATCH(Sheet10!$D$9,Sheet1!C:C,0)+1,3,4)),ROW(B17)-1+SUM($B$14:$D$14),0)) -> 
B32: =IF(ROW(B18)-1>=$B$14,"",OFFSET(INDIRECT(MID(CELL("filename",Sheet1!$A$15),FIND("]",CELL("filename",Sheet1!$A$15))+1,31)&"!"&ADDRESS(MATCH(Sheet10!$D$9,Sheet1!C:C,0)+1,3,4)),ROW(B18)-1,0)) ->  | C32: =IF(ROW(B18)-1>=$C$14,"",OFFSET(INDIRECT(MID(CELL("filename",Sheet1!$A$15),FIND("]",CELL("filename",Sheet1!$A$15))+1,31)&"!"&ADDRESS(MATCH(Sheet10!$D$9,Sheet1!C:C,0)+1,3,4)),ROW(B18)-1+SUM($B$14:$B$14),0)) ->  | D32: =IF(ROW(B18)-1>=$D$14,"",OFFSET(INDIRECT(MID(CELL("filename",Sheet1!$A$15),FIND("]",CELL("filename",Sheet1!$A$15))+1,31)&"!"&ADDRESS(MATCH(Sheet10!$D$9,Sheet1!C:C,0)+1,3,4)),ROW(B18)-1+SUM($B$14:$C$14),0)) ->  | E32: =IF(ROW(B18)-1>=$E$14,"",OFFSET(INDIRECT(MID(CELL("filename",Sheet1!$A$15),FIND("]",CELL("filename",Sheet1!$A$15))+1,31)&"!"&ADDRESS(MATCH(Sheet10!$D$9,Sheet1!C:C,0)+1,3,4)),ROW(B18)-1+SUM($B$14:$D$14),0)) -> 
B33: =IF(ROW(B19)-1>=$B$14,"",OFFSET(INDIRECT(MID(CELL("filename",Sheet1!$A$15),FIND("]",CELL("filename",Sheet1!$A$15))+1,31)&"!"&ADDRESS(MATCH(Sheet10!$D$9,Sheet1!C:C,0)+1,3,4)),ROW(B19)-1,0)) ->  | C33: =IF(ROW(B19)-1>=$C$14,"",OFFSET(INDIRECT(MID(CELL("filename",Sheet1!$A$15),FIND("]",CELL("filename",Sheet1!$A$15))+1,31)&"!"&ADDRESS(MATCH(Sheet10!$D$9,Sheet1!C:C,0)+1,3,4)),ROW(B19)-1+SUM($B$14:$B$14),0)) ->  | D33: =IF(ROW(B19)-1>=$D$14,"",OFFSET(INDIRECT(MID(CELL("filename",Sheet1!$A$15),FIND("]",CELL("filename",Sheet1!$A$15))+1,31)&"!"&ADDRESS(MATCH(Sheet10!$D$9,Sheet1!C:C,0)+1,3,4)),ROW(B19)-1+SUM($B$14:$C$14),0)) ->  | E33: =IF(ROW(B19)-1>=$E$14,"",OFFSET(INDIRECT(MID(CELL("filename",Sheet1!$A$15),FIND("]",CELL("filename",Sheet1!$A$15))+1,31)&"!"&ADDRESS(MATCH(Sheet10!$D$9,Sheet1!C:C,0)+1,3,4)),ROW(B19)-1+SUM($B$14:$D$14),0)) -> 
B34: =IF(ROW(B20)-1>=$B$14,"",OFFSET(INDIRECT(MID(CELL("filename",Sheet1!$A$15),FIND("]",CELL("filename",Sheet1!$A$15))+1,31)&"!"&ADDRESS(MATCH(Sheet10!$D$9,Sheet1!C:C,0)+1,3,4)),ROW(B20)-1,0)) ->  | C34: =IF(ROW(B20)-1>=$C$14,"",OFFSET(INDIRECT(MID(CELL("filename",Sheet1!$A$15),FIND("]",CELL("filename",Sheet1!$A$15))+1,31)&"!"&ADDRESS(MATCH(Sheet10!$D$9,Sheet1!C:C,0)+1,3,4)),ROW(B20)-1+SUM($B$14:$B$14),0)) ->  | D34: =IF(ROW(B20)-1>=$D$14,"",OFFSET(INDIRECT(MID(CELL("filename",Sheet1!$A$15),FIND("]",CELL("filename",Sheet1!$A$15))+1,31)&"!"&ADDRESS(MATCH(Sheet10!$D$9,Sheet1!C:C,0)+1,3,4)),ROW(B20)-1+SUM($B$14:$C$14),0)) ->  | E34: =IF(ROW(B20)-1>=$E$14,"",OFFSET(INDIRECT(MID(CELL("filename",Sheet1!$A$15),FIND("]",CELL("filename",Sheet1!$A$15))+1,31)&"!"&ADDRESS(MATCH(Sheet10!$D$9,Sheet1!C:C,0)+1,3,4)),ROW(B20)-1+SUM($B$14:$D$14),0)) -> 
B36: परीक्षा प्रभारी | E36: केन्द्राधीक्षक
B37: =Sheet2!$B$37 -> XYZ (Lecturer) | E37: =Sheet2!$E$37 -> XYZ (Principal)

Sheet Sheet12
A1: =Sheet13!$A$1 -> कार्यालय प्रधानाचार्य एवं अध्यक्ष, प्रारंभिक शिक्षा पूर्णता प्रमाण पत्र परीक्षा, 2024 डाइट अलवर
A2: =Sheet13!$A$2 -> Email-dietalwar@gmail.com
A3: परीक्षा केंद्र एवं नोडल (संग्रहण) केंद्र व्यय का मदवार इकजाई विवरण
A4: परीक्षा केंद्र कोड नं. - | C4: =Sheet13!$C$4 -> 80905 | D4: परीक्षार्थी संख्यां - | E4: =Sheet13!$I$4 -> 164
A5: क्र.सं. | B5: मदवार व्यय | E5: कुल व्यय
A6: 1 | B6: केन्द्राधीक्षक का मानदेय - | E6: =Sheet13!$F$6 -> 600
A7: 2 | B7: परीक्षा प्रभारी का मानदेय - | E7: =Sheet13!$F$7 -> 540
A8: 3 | B8: परिवीक्षकों का मानदेय - | E8: =80*2*6 -> 960
A9: 4 | B9: वीक्षकों का मानदेय - | E9: =80*7*6 -> 3360
A10: 5 | B10: सहायक कर्मचारियों का मानदेय - | E10: =50*6*2 -> 600
A11: 6 | B11: उत्तर-पुस्तिका जांच हेतु मानदेय - | E11: 0
A12: 7 | B12: परीक्षा केंद्र हेतु स्टेशनरी आदि व्यय हेतु रु. 500/- | E12: 500
A13: 8 | B13: नोडल (संग्रहण) केंद्र के लिए स्टेशनरी आदि व्यय हेतु रु. 1000/- | E13: 0
A14: 9 | B14: उत्तर पुस्तिका परिवहन व्यय | E14: 360
A15: 10 | B15: प्रश्न पत्र पेटिका परिवहन व्यय | E15: 500
A16: 11 | B16: परीक्षा दिवस को पुलिस थाने से प्रश्न पत्र लाने का किराया | E16: 360
A17: सर्व योग | E17: =SUM(E6:E16) -> 7780
B18: बैंक खाता संख्यां जिसमे राशी जमा की जानी हैं -
B19: खाता धारक का नाम -
B20: बैंक शाखा का नाम -
B21: बैंक IFSC कोड
B22: संस्था का TAN नंबर
A23: नोट : नोडल (संग्रहण)/ परीक्षा केंद्र बैंक पासबुक की प्रति जमा करें -
B25: हस्ताक्षर केन्द्राधीक्षक
B26: नाम केन्द्राधीक्षक : | C26: =Sheet13!$C$29 -> 0
B27: मोबाइल नंबर : | C27: =Sheet13!$C$30 -> 0

Sheet Sheet13
A1: कार्यालय प्रधानाचार्य एवं अध्यक्ष, प्रारंभिक शिक्षा पूर्णता प्रमाण पत्र परीक्षा, 2024 डाइट अलवर
A2: Email-dietalwar@gmail.com
A3: परीक्षा केंद्र एवं नोडल (संग्रहण) केंद्र व्यय विवरण
B4: परीक्षा केंद्र कोड नंबर : | C4: 80905 | H4: परीक्षार्थी संख्यां : | I4: 164
A5: क्र. सं. | B5: पदनाम- केन्द्राधीक्षक/परीक्षा प्रभारी/पर्यवीक्षक/वीक्षक/सहा कर्मचारी | C5: नाम कार्मिक | D5: कुल दिवस | E5: मानदेय दर | F5: कुल मानदेय | G5: बैंक खाता संख्यां | H5: बैंक एवं शाखा | I5: आई एफ एस सी कोड | J5: एम्प्लोयी आईडी | K5: हस्ताक्षर
A6: 1 | B6: केन्द्राधीक्षक | D6: 6 | E6: 100 | F6: =D6*E6 -> 600
A7: 2 | B7: परीक्षा प्रभारी | D7: 6 | E7: 90 | F7: =D7*E7 -> 540
A8: 3 | B8: वीक्षक/परिवीक्षक | D8: 6 | E8: 80 | F8: 480
A9: 4 | B9: वीक्षक/परिवीक्षक | D9: 5 | E9: 80 | F9: 400
A10: 5 | B10: वीक्षक/परिवीक्षक | D10: 2 | E10: 80 | F10: 160
A11: 6 | B11: वीक्षक/परिवीक्षक | D11: 3 | E11: 80 | F11: 240
A12: 7 | B12: वीक्षक/परिवीक्षक | D12: 6 | E12: 80 | F12: 480
A13: 8 | B13: वीक्षक/परिवीक्षक | D13: 2 | E13: 80 | F13: 160
A14: 9 | B14: वीक्षक/परिवीक्षक | D14: 4 | E14: 80 | F14: 320
A15: 10 | B15: वीक्षक/परिवीक्षक | D15: 3 | E15: 80 | F15: 240
A16: 11 | B16: वीक्षक/परिवीक्षक | D16: 5 | E16: 80 | F16: 400
A17: 12 | B17: वीक्षक/परिवीक्षक | D17: 5 | E17: 80 | F17: 400
A18: 13 | B18: वीक्षक/परिवीक्षक | D18: 6 | E18: 80 | F18: 480
A19: 14 | B19: वीक्षक/परिवीक्षक | D19: 4 | E19: 80 | F19: 320
A20: 15 | B20: वीक्षक/परिवीक्षक | D20: 1 | E20: 80 | F20: 80
A21: 16 | B21: वीक्षक/परिवीक्षक | D21: 2 | E21: 80 | F21: 160
A22: 17 | B22: वीक्षक/परिवीक्षक | D22: 1 | E22: 80 | F22: 80
A23: 18 | B23: वीक्षक/परिवीक्षक | D23: 1 | E23: 80 | F23: 80
A24: 19 | B24: सहायक कर्मचारी | D24: 3 | E24: 50 | F24: 150
A25: 20 | B25: सहायक कर्मचारी | D25: 3 | E25: 50 | F25: 150
A26: मानदेय का कुल योग - | D26: =SUM(D6:D25) -> 74 | E26: =SUM(E6:E25) -> 1570 | F26: =SUM(F6:F25) -> 5920
B28: हस्ताक्षर केन्द्राधीक्षक
B29: नाम केन्द्राधीक्षक :
B30: मोबाइल नंबर :

Sheet Sheet14
A1: =Sheet13!$A$1 -> कार्यालय प्रधानाचार्य एवं अध्यक्ष, प्रारंभिक शिक्षा पूर्णता प्रमाण पत्र परीक्षा, 2024 डाइट अलवर
A2: =Sheet13!$A$2 -> Email-dietalwar@gmail.com
A3: परीक्षा केंद्र द्वारा बण्डल भेजने का व्यय विवरण
A4: क्र. सं. | B4: कार्मिक का नाम | C4: पद नाम | D4: दिनांक | E4: बण्डल का किराया | F4: कार्मिक का किराया | G4: कुल व्यय | H4: Bank Account Number | I4: Bank Name & Branch Name | J4: Bank IFSC | K4: Employee ID | L4: हस्ताक्षर
A5: 1 | C5: वरिष्ठ अध्या | D5: 2024-03-28 | E5: 0 | F5: 60 | G5: =E5+F5 -> 60
A6: 2 | C6: वरिष्ठ अध्या | D6: 2024-03-29 | E6: 0 | F6: 60 | G6: 60
A7: 3 | C7: वरिष्ठ अध्या | D7: 2024-03-30 | E7: 0 | F7: 60 | G7: 60
A8: 4 | C8: वरिष्ठ अध्या | D8: 2024-03-31 | E8: 0 | F8: 60 | G8: 60
A9: 5 | C9: वरिष्ठ अध्या | D9: 2024-04-01 | E9: 0 | F9: 60 | G9: 60
A10: 6 | C10: वरिष्ठ अध्या | D10: 2024-04-02 | E10: 0 | F10: 60 | G10: 60
A11: मानदेय का कुल योग | E11: =SUM(E5:E10) -> 0 | F11: 360 | G11: =SUM(G5:G10) -> 360
B13: हस्ताक्षर केन्द्राधीक्षक
B14: नाम केन्द्राधीक्षक : | C14: =Sheet13!$C$29 -> 0
B15: मोबाइल नंबर : | C15: =Sheet13!$C$30 -> 0

Sheet Sheet15
B2: =Sheet2!$B$1 -> Half Yearly Examination 2024
B3: =Sheet2!$B$2 -> परीक्षा केंद्र नाम एवं परीक्षा केंद्र क्रमांक
B4: =Sheet2!$B$3 -> Govt Sr Sc School Malutana (216405)
B5: परीक्षार्थी समेकित बैठक व्यवस्था
B6: क्र. सं. | C6: कक्ष क्रमांक | D6: रोल नंबर | G6: कुल परीक्षार्थी
D7: से | E7: तक | F7: कुल
B8: 1 | C8: 001 | F8: =IF(D8="","",E8-D8+1) ->  | G8: =SUM(F8:F9) -> 0
F9: =IF(D9="","",E9-D9+1) -> 
B10: 2 | C10: 002 | G10: =SUM(F10:F11) -> 0
B12: 3 | C12: 003 | G12: =SUM(F12:F13) -> 0
B14: 4 | C14: 004 | G14: =SUM(F14:F15) -> 0
B16: 5 | C16: 005 | G16: =SUM(F16:F17) -> 0
B18: 6 | C18: 006 | G18: =SUM(F18:F19) -> 0
B20: 7 | C20: 007 | G20: =SUM(F20:F21) -> 0
B22: 8 | C22: 008 | G22: =SUM(F22:F23) -> 0
B24: 9 | C24: 009 | G24: =SUM(F24:F25) -> 0
B26: 10 | C26: 010 | G26: =SUM(F26:F27) -> 0
B29: परीक्षा प्रभारी | F29: केन्द्राधीक्षक
B30: =Sheet2!$B$37 -> XYZ (Lecturer) | F30: =Sheet2!$E$37 -> XYZ (Principal)

Sheet Sheet16
B2: =Sheet2!$B$1 -> Half Yearly Examination 2024
B3: =Sheet2!$B$2 -> परीक्षा केंद्र नाम एवं परीक्षा केंद्र क्रमांक
B4: =Sheet2!$B$3 -> Govt Sr Sc School Malutana (216405)
B5: परीक्षार्थी समेकित बैठक व्यवस्था
B6: क्र. सं. | C6: कक्ष क्रमांक | D6: रोल नंबर | G6: कुल परीक्षार्थी
D7: से | E7: तक | F7: कुल
B8: 1 | C8: 001 | F8: =IF(D8="","",E8-D8+1) ->  | G8: =SUM(F8:F10) -> 0
F9: =IF(D9="","",E9-D9+1) -> 
B11: 2 | C11: 002 | G11: =SUM(F11:F13) -> 0
B14: 3 | C14: 003 | G14: =SUM(F14:F16) -> 0
B17: 4 | C17: 004 | G17: =SUM(F17:F19) -> 0
B20: 5 | C20: 005 | G20: =SUM(F20:F22) -> 0
B23: 6 | C23: 006 | G23: =SUM(F23:F25) -> 0
B26: 7 | C26: 007 | G26: =SUM(F26:F28) -> 0
B29: 8 | C29: 008 | G29: =SUM(F29:F31) -> 0
B32: 9 | C32: 009 | G32: =SUM(F32:F34) -> 0
B35: 10 | C35: 010 | G35: =SUM(F35:F37) -> 0
B39: परीक्षा प्रभारी | F39: केन्द्राधीक्षक
B40: =Sheet2!$B$37 -> XYZ (Lecturer) | F40: =Sheet2!$E$37 -> XYZ (Principal)

Sheet Sheet17
C1: Examination Centre Detail
B3: Examination Name :
B4: Exam Centre Name :
B5: Exam Centre Code :
B6: Superintendent Name :
B7: Superintendent Desig. :
B8: Exam Incharge Name :
B9: Exam Incharge Desig. :
B10: Examination Start Date :
B11: Examination End Date :
B12: Examnination Innings :
